Workbook

Sheet Inputs
C3: TCRP E-09
C4: TRANSIT STATE OF GOOD REPAIR
C5: VEHICLE REPLACEMENT MODEL - INPUTS
C7: INSTRUCTIONS
C9: Note: this model is used to predict the average annual cost, the cost-minimizing
C10: replacement age, and prioritization data for transit vehicles.
C11: To use this model please follow these instructions, and see the TCRP E-09 report for more information.
D12: 1. Open the spreadsheet with macros enabled
D13: 2. Select an asset type from the dropdown or select "User-Specified" if developing a new model.
D14: 3. Enter accumulated mileage (per vehicle) and number of vehicles for up to 20 subfleets of the same vehicle type.
D15: 4. Enter the base year and base year fleet statistics.
D16: 5. Enter the cost of a new vehicle.
D17: 6. If desired enter an estimate of other replacement benefits per vehicle mile (e.g., reduced emissions).
D18: 7. If desired enter the delay cost, typical schedule headway, recovery time, vehicles per consist, and/or the discount rate.
D19: 8. If desired click the "Click to Edit Details" button to edit additional details (necessary only for a new model).
D20: 9. To view results click the "Click for Results" button.
C22: REQUIRED INPUTS
C24: Vehicle Type: | G24: Bus
C27: Inventory Description:
E28: Accumulated | F28: Number of | I28: Accumulated | J28: Number of
D29: Group | E29: Milegage | F29: Vehicles | H29: Group | I29: Milegage | J29: Vehicles
D31: 1 | E31: 147882 | F31: 90 | H31: 11 | I31: 162325 | J31: 6
D32: 2 | E32: 114252 | F32: 25 | H32: 12 | I32: 212726 | J32: 60
D33: 3 | E33: 456352 | F33: 117 | H33: 13 | I33: 25063 | J33: 26
D34: 4 | E34: 296374 | F34: 25 | H34: 14 | I34: 18970 | J34: 54
D35: 5 | E35: 418462 | F35: 159 | H35: 15
D36: 6 | E36: 246390 | F36: 40 | H36: 16
D37: 7 | E37: 245590 | F37: 60 | H37: 17
D38: 8 | E38: 285708 | F38: 165 | H38: 18
D39: 9 | E39: 272171 | F39: 10 | H39: 19
D40: 10 | E40: 191941 | F40: 39 | H40: 20
C42: Base Year Statistics:
I43: Override
H44: Default | I44: Value | J44: Notes
C46: Base Year | H46: 2009 | I46: 2009
C47: Passenger Miles (000) | H47: 1 | I47: 259207.643
C48: Unlinked Trips (000) | H48: 1 | I48: 58485.434
C49: Vehicle Miles (000) | H49: 1 | I49: 31005.729
C50: Revenue Vehicle Miles (000) | H50: 1 | I50: 23747.017
C51: Revenue Vehicle Hours (000) | H51: 1 | I51: 1746.548
C52: Number of Road Calls (buses) or Failures (rail) | H52: 1 | I52: 4299
C53: Energy Cost for Vehicle Operations (000) | H53: 1 | I53: 22956.315
C54: Vehicle Maintenance Cost (000) | H54: 1 | I54: 58574.452
C56: OPTIONAL INPUTS
I58: Override
H59: Default | I59: Value | J59: Notes
C61: New Vehicle Cost ($ per vehicle) | H61: 397000
C62: Other Benefits of Replacement ($/vehicle mile) | H62: 0 | J62: results in higher benefit for replacement
C63: Passenger Delay Cost ($ per hour) | H63: 48.4
C64: Typical Schedule Headway (min) | H64: 30
C65: Typical Recovery Time After Road Call/Failure (min) | H65: 60
C66: Vehicles per Consist | H66: 1 | J66: leave blank for buses
C67: Discount Rate (%) | H67: 0.07
C69: Vehicle List
C70: Bus
C71: Heavy Rail
C72: Light Rail
C73: User-Specified

Sheet Detailed Inputs
C3: TCRP E-09
C4: TRANSIT STATE OF GOOD REPAIR
C5: VEHICLE REPLACEMENT MODEL - DETAILED INPUTS
C7: REHABILITATION COSTS
D9: Lifetime Mileage | F9: Rehab Cost ($/vehicle mile) | I9: Lifetime Mileage | K9: Rehab Cost ($/vehicle mile)
D10: From | E10: To | F10: Default | G10: Override | I10: From | J10: To | K10: Default | L10: Override
D12: 0 | E12: 35000 | F12: =IF(Inputs!$G$24="Bus",0.158991722811707,0) -> 0.1589917228 | I12: =E26 -> 525000 | J12: 560000 | K12: =IF(Inputs!$G$24="Bus",0.692589096171615,0) -> 0.6925890962
D13: =E12 -> 35000 | E13: 70000 | F13: =IF(Inputs!$G$24="Bus",0.373327315373453,0) -> 0.3733273154 | I13: =J12 -> 560000 | J13: 595000 | K13: =IF(Inputs!$G$24="Bus",0.704166159551995,0) -> 0.7041661596
D14: =E13 -> 70000 | E14: 105000 | F14: =IF(Inputs!$G$24="Bus",0.521139233863795,0) -> 0.5211392339 | I14: =J13 -> 595000 | J14: 630000 | K14: =IF(Inputs!$G$24="Bus",0.718158673708854,0) -> 0.7181586737
D15: 105000 | E15: 140000 | F15: =IF(Inputs!$G$24="Bus",0.594814011812456,0) -> 0.5948140118 | I15: 630000 | J15: 665000 | K15: =IF(Inputs!$G$24="Bus",0.734447221511808,0) -> 0.7344472215
D16: 140000 | E16: 175000 | F16: =IF(Inputs!$G$24="Bus",0.627501332157651,0) -> 0.6275013322 | I16: 665000 | J16: 700000 | K16: =IF(Inputs!$G$24="Bus",0.752659906353446,0) -> 0.7526599064
D17: 175000 | E17: 210000 | F17: =IF(Inputs!$G$24="Bus",0.641612770295223,0) -> 0.6416127703 | I17: 700000 | J17: 735000 | K17: =IF(Inputs!$G$24="Bus",0.772132014767538,0) -> 0.7721320148
D18: 210000 | E18: 245000 | F18: =IF(Inputs!$G$24="Bus",0.648354720004888,0) -> 0.64835472 | I18: 735000 | J18: 770000 | K18: =IF(Inputs!$G$24="Bus",0.79187968331879,0) -> 0.7918796833
D19: 245000 | E19: 280000 | F19: =IF(Inputs!$G$24="Bus",0.652614138282429,0) -> 0.6526141383 | I19: 770000 | J19: 805000 | K19: =IF(Inputs!$G$24="Bus",0.81060127345571,0) -> 0.8106012735
D20: 280000 | E20: 315000 | F20: =IF(Inputs!$G$24="Bus",0.656155369772874,0) -> 0.6561553698 | I20: 805000 | J20: 840000 | K20: =IF(Inputs!$G$24="Bus",0.82672120626999,0) -> 0.8267212063
D21: 315000 | E21: 350000 | F21: =IF(Inputs!$G$24="Bus",0.659476510438738,0) -> 0.6594765104 | I21: 840000 | J21: 875000 | K21: =IF(Inputs!$G$24="Bus",0.838487681626975,0) -> 0.8384876816
D22: 350000 | E22: 385000 | F22: =IF(Inputs!$G$24="Bus",0.662781693149278,0) -> 0.6627816931 | I22: 875000 | J22: 910000 | K22: =IF(Inputs!$G$24="Bus",0.838487681626975,0) -> 0.8384876816
D23: 385000 | E23: 420000 | F23: =IF(Inputs!$G$24="Bus",0.666363792828946,0) -> 0.6663637928 | I23: 910000 | J23: 945000 | K23: =IF(Inputs!$G$24="Bus",0.838487681626975,0) -> 0.8384876816
D24: 420000 | E24: 455000 | F24: =IF(Inputs!$G$24="Bus",0.670656089337205,0) -> 0.6706560893 | I24: 945000 | J24: 980000 | K24: =IF(Inputs!$G$24="Bus",0.838487681626975,0) -> 0.8384876816
D25: 455000 | E25: 490000 | F25: =IF(Inputs!$G$24="Bus",0.676156233086216,0) -> 0.6761562331 | I25: 980000 | J25: 1015000 | K25: =IF(Inputs!$G$24="Bus",0.838487681626975,0) -> 0.8384876816
D26: 490000 | E26: 525000 | F26: =IF(Inputs!$G$24="Bus",0.683338177338452,0) -> 0.6833381773 | I26: 1015000 | J26: 1050000 | K26: =IF(Inputs!$G$24="Bus",0.838487681626975,0) -> 0.8384876816
C28: ADDITIONAL MODEL PARAMETERS
J30: Override
I31: Default | J31: Value | K31: Notes
C33: Energy Model Coefficient 1 | I33: =IF(Inputs!$G$24="Bus",0.000000627,IF(Inputs!$G$24="Heavy Rail",0.0000004,IF(Inputs!$G$24="Light Rail",0.0000004,0))) -> 6.27e-07 | K33: populated by vehicle type
C34: Energy Model Coefficient 2 | I34: =IF(FuelC1=0,0,(FuelCost/BusMiles)/(Calculations!BC99/Calculations!BC6)) -> 0.6210567902 | K34: calculated w/ base-year data
C35: Maintenance Model Coefficient 1 | I35: =IF(Inputs!$G$24="Bus",0.00000126,IF(Inputs!$G$24="Heavy Rail",0.0000004,IF(Inputs!$G$24="Light Rail",0.0000005,0))) -> 1.26e-06 | K35: populated by vehicle type
C36: Maintenance Model Coefficient 2 | I36: =IF(MaintC1=0,0,(MaintCost/BusMiles)/(Calculations!BC100/Calculations!BC6)) -> 1.318152788 | K36: calculated w/ base-year data
C37: Delay Model Coefficient 1 | I37: =IF(Inputs!$G$24="Heavy Rail",0.0000007,IF(Inputs!$G$24="Light Rail",0.000001,0.00000198)) -> 1.98e-06 | K37: populated by vehicle type
C38: Delay Model Coefficient 2 | I38: =IF(DelayC1=0,0,IF(CarsPerTrain="",1,CarsPerTrain)*DelayUnitCost*Headway/60*(PaxMiles/RevBusMiles+RecoverTime/60*PaxTrips/RevBusHours)*(RoadCalls/BusMiles/1000)/(Calculations!BC101/Calculations!BC6)) -> 0.08364222208 | K38: calculated w/ base-year data
C40: Vehicle List
C41: Bus
C42: Heavy Rail
C43: Light Rail
C44: Other

Sheet Results
C3: TCRP E-09
C4: TRANSIT STATE OF GOOD REPAIR
C5: VEHICLE REPLACEMENT MODEL - RESULTS
C7: SUMMARY RESULTS
C9: Vehicle Type: | D9: =Inputs!G24 -> Bus
C10: Cost-Minimizing Replacement Mileage (miles) | F10: =Inputs_Results!F38 -> 530920.0171
C11: Cost-Minimizing Replacement Age (years) | F11: =Inputs_Results!F39 -> 15
C12: Average Annual Agency Cost: | E12: =Inputs_Results!F41 -> 155300.8249
C13: Average Annual User Cost: | E13: =Inputs_Results!F42 -> 4965.36385
C14: Average Annual Total Cost: | E14: =Inputs_Results!F40 -> 160266.1887
C16: PRIORITIZATION DATA
C18: Prioritization Index (PI) Coefficients (copy and paste into the prioritization model)
C19: Note: PI = C0 + C1 * Age + C2 * Age^2
C21: C0 | D21: C1 | E21: C2
C23: =Inputs_Results!D164 -> -0.1497648823 | D23: =Inputs_Results!C164 -> 0.004084105252 | E23: =Inputs_Results!B164 -> 0.0003586269756
C25: Sample PI Results
C26: Age | D26: PI
C27: =+Inputs_Results!A171 -> 5 | D27: =+Inputs_Results!B171 -> -0.1233776894
C28: =+Inputs_Results!A172 -> 6 | D28: =+Inputs_Results!B172 -> -0.1131121271
C29: =+Inputs_Results!A173 -> 7 | D29: =+Inputs_Results!B173 -> -0.1031295611
C30: =+Inputs_Results!A174 -> 8 | D30: =+Inputs_Results!B174 -> -0.09296044656
C31: =+Inputs_Results!A175 -> 9 | D31: =+Inputs_Results!B175 -> -0.08242226272
C32: =+Inputs_Results!A176 -> 10 | D32: =+Inputs_Results!B176 -> -0.07144826264
C33: =+Inputs_Results!A177 -> 11 | D33: =+Inputs_Results!B177 -> -0.05999775209
C34: =+Inputs_Results!A178 -> 12 | D34: =+Inputs_Results!B178 -> -0.0480207384
C35: =+Inputs_Results!A179 -> 13 | D35: =+Inputs_Results!B179 -> -0.0354531058
C36: =+Inputs_Results!A180 -> 14 | D36: =+Inputs_Results!B180 -> -0.02222356383
C37: =+Inputs_Results!A181 -> 15 | D37: =+Inputs_Results!B181 -> -0.008261701915
C38: =+Inputs_Results!A182 -> 16 | D38: =+Inputs_Results!B182 -> 0.006496264177
C39: =+Inputs_Results!A183 -> 17 | D39: =+Inputs_Results!B183 -> 0.02210358134
C40: =+Inputs_Results!A184 -> 18 | D40: =+Inputs_Results!B184 -> 0.03859954723
C41: =+Inputs_Results!A185 -> 19 | D41: =+Inputs_Results!B185 -> 0.05600582641
C42: =+Inputs_Results!A186 -> 20 | D42: =+Inputs_Results!B186 -> 0.07432250418
C43: =+Inputs_Results!A187 -> 21 | D43: =+Inputs_Results!B187 -> 0.093524461
C44: =+Inputs_Results!A188 -> 22 | D44: =+Inputs_Results!B188 -> 0.1135590439
C45: =+Inputs_Results!A189 -> 23 | D45: =+Inputs_Results!B189 -> 0.1343462993
C46: =+Inputs_Results!A190 -> 24 | D46: =+Inputs_Results!B190 -> 0.1557831274
C47: =+Inputs_Results!A191 -> 25 | D47: =+Inputs_Results!B191 -> 0.1777524129
C51: Objective Function
C52: 10100.27422
C54: Decision Variables
C55: Description | D55: Agency | E55: Total
C56: State 5-Excellent | D56: 31.92705219 | E56: 31.92705195
C57: State 4-Good | D57: 175.583281 | E57: 175.5832797
C58: State 3-Adequate | D58: 503.1116793 | E58: 503.1116774
C59: State 2-Marginal | D59: 1029.838367 | E59: 1029.838366
C60: State 1-Poor | D60: 1029.838367 | E60: 1029.838366
C61: State 0-Failed | D61: 1529.838367 | E61: 3029.838366
C63: Results by State and Action
E64: Optimal | F64: Agency | G64: Total | I64: Benefit | M64: Constraints
C65: State | D65: Action | E65: Action? | F65: Cost | G65: Cost | H65: LT Cost | I65: Agency | K65: User | L65: Total | M65: Agency | N65: Total
C66: 5-Excellent | D66: 0-Do Minimum | E66: =IF(H66=MIN(H66:H68),"Y","") -> Y | F66: 0 | G66: 0 | H66: 31.92705195 | I66: 0 | K66: =L66-I66 -> 0 | L66: 0 | M66: -6.230465033e-10 | N66: 0
D67: 1-Rehab | E67: =IF(H67=MIN(H66:H68),"Y","") ->  | F67: 1000 | G67: 1000 | H67: 1164.096523 | I67: -1132.169472 | K67: 9.56080612e-07 | L67: -1132.169471 | M67: 1132.169472 | N67: 1132.169471
D68: 2-Replace | E68: =IF(H68=MIN(H66:H68),"Y","") ->  | F68: 1000 | G68: 1000 | H68: 1029.838366 | I68: -997.9113143 | K68: -1.510909442e-08 | L68: -997.9113144 | M68: 997.9113143 | N68: 997.9113144
C69: 4-Good | D69: 0-Do Minimum | E69: =IF(H69=MIN(H69:H71),"Y","") -> Y | F69: 0 | G69: 0 | H69: 175.5832797 | I69: 0 | K69: 0 | L69: 0 | M69: -6.232596661e-08 | N69: 0
D70: 1-Rehab | E70: =IF(H70=MIN(H69:H71),"Y","") ->  | F70: 1000 | G70: 1000 | H70: 1164.096523 | I70: -988.5132434 | K70: -2.138938271e-08 | L70: -988.5132434 | M70: 988.5132433 | N70: 988.5132434
D71: 2-Replace | E71: =IF(H71=MIN(H69:H71),"Y","") ->  | F71: 1000 | G71: 1000 | H71: 1029.838366 | I71: -854.2550856 | K71: -9.925790891e-07 | L71: -854.2550866 | M71: 854.2550855 | N71: 854.2550866
C72: 3-Adequate | D72: 0-Do Minimum | E72: =IF(H72=MIN(H72:H74),"Y","") -> Y | F72: 0 | G72: 0 | H72: 503.1116774 | I72: 0 | K72: 0 | L72: 0 | M72: -2.276430564e-07 | N72: 0
D73: 1-Rehab | E73: =IF(H73=MIN(H72:H74),"Y","") ->  | F73: 1000 | G73: 1000 | H73: 1164.096523 | I73: -660.9848453 | K73: -4.659585784e-07 | L73: -660.9848457 | M73: 660.984845 | N73: 660.9848457
D74: 2-Replace | E74: =IF(H74=MIN(H72:H74),"Y","") ->  | F74: 1000 | G74: 1000 | H74: 1029.838366 | I74: -526.7266875 | K74: -1.437148171e-06 | L74: -526.7266889 | M74: 526.7266873 | N74: 526.7266889
C75: 2-Marginal | D75: 0-Do Minimum | E75: =IF(H75=MIN(H75:H77),"Y","") ->  | F75: 50 | G75: 50 | H75: 1114.976522 | I75: 0 | K75: 0 | L75: 0 | M75: 8.25508625 | N75: 85.13815527
D76: 1-Rehab | E76: =IF(H76=MIN(H75:H77),"Y","") ->  | F76: 1000 | G76: 1000 | H76: 1164.096523 | I76: -126.0030715 | K76: 76.88306999 | L76: -49.12000152 | M76: 134.2581578 | N76: 134.2581568
D77: 2-Replace | E77: =IF(H77=MIN(H75:H77),"Y","") -> Y | F77: 1000 | G77: 1000 | H77: 1029.838366 | I77: 8.25508625 | K77: 76.88306902 | L77: 85.13815527 | M77: 7.105427358e-14 | N77: -3.197442311e-14
C78: 1-Poor | D78: 0-Do Minimum | E78: =IF(H78=MIN(H78:H80),"Y","") ->  | F78: 100 | G78: 100 | H78: 1267.48728 | I78: 0 | K78: 0 | L78: 0 | M78: 83.88277592 | N78: 237.6489139
D79: 1-Rehab | E79: =IF(H79=MIN(H78:H80),"Y","") ->  | F79: 1000 | G79: 1000 | H79: 1164.096523 | I79: -50.37538184 | K79: 153.766139 | L79: 103.3907572 | M79: 134.2581578 | N79: 134.2581568
D80: 2-Replace | E80: =IF(H80=MIN(H78:H80),"Y","") -> Y | F80: 1000 | G80: 1000 | H80: 1029.838366 | I80: 83.88277592 | K80: 153.766138 | L80: 237.6489139 | M80: 7.105427358e-14 | N80: -3.197442311e-14
C81: 0-Failed | D81: 0-Replace | E81: Y | F81: 1500 | G81: 3000 | H81: 3029.838366 | I81: N/A | K81: N/A | L81: N/A | M81: 1.201426869e-08 | N81: -3.197442311e-14
C83: Results by State
F84: Cost | I84: Benefit | N84: TP | T84: SS | U84: Steady State Cost
C85: State | D85: Opt. Action | F85: Agency | G85: Total | H85: LT | I85: Agency | K85: User | L85: Total | M85: PI | N85: 5 | O85: 4 | P85: 3 | Q85: 2 | R85: 1 | S85: 0 | T85: Distrib | U85: Agency | V85: Total
C86: =C66 -> 5-Excellent | D86: =IF($E66="Y",D66,IF($E67="Y",D67,D68)) -> 0-Do Minimum | F86: =IF($E66="Y",F66,IF($E67="Y",F67,F68)) -> 0 | G86: 0 | H86: 31.92705195 | I86: =IF($E66="Y",I66,IF($E67="Y",I67,I68)) -> 0 | K86: 0 | L86: 0 | M86: =IF(F86>0,L86/F86,"N/A") -> N/A | N86: 0.9844427654 | O86: 0.01555723459 | P86: 0 | Q86: 0 | R86: 0 | S86: 0 | T86: =1/(2-N86+(1-N90)*(D98*(D102*(D105*D107+D106)+D103*D107+D104)+D99*(D105*D107+D106)+D100*D107+D101)+(1-N89)*(D102*(D105*D107+D106)+D103*D107+D104)+(1-N88)*(D105*D107+D106)+(1-N87)*D107) -> 0.6013925589 | U86: =F86*$T86 -> 0 | V86: 0
C87: =C69 -> 4-Good | D87: =IF($E69="Y",D69,IF($E70="Y",D70,D71)) -> 0-Do Minimum | F87: =IF($E69="Y",F69,IF($E70="Y",F70,F71)) -> 0 | G87: 0 | H87: 175.5832797 | I87: =IF($E69="Y",I69,IF($E70="Y",I70,I71)) -> 0 | K87: 0 | L87: 0 | M87: =IF(F87>0,L87/F87,"N/A") -> N/A | N87: 0 | O87: 0.9624740033 | P87: 0.03752599673 | Q87: 0 | R87: 0 | S87: 0 | T87: =D107*T86 -> 0.2493206294 | U87: 0 | V87: 0
C88: =C72 -> 3-Adequate | D88: =IF($E72="Y",D72,IF($E73="Y",D73,D74)) -> 0-Do Minimum | F88: =IF($E72="Y",F72,IF($E73="Y",F73,F74)) -> 0 | G88: 0 | H88: 503.1116774 | I88: =IF($E72="Y",I72,IF($E73="Y",I73,I74)) -> 0 | K88: 0 | L88: 0 | M88: =IF(F88>0,L88/F88,"N/A") -> N/A | N88: 0 | O88: 0 | P88: 0.9331383464 | Q88: 0.0668616536 | R88: 0 | S88: 0 | T88: =D105*T87+D106*T86 -> 0.1399308066 | U88: 0 | V88: 0
C89: =C75 -> 2-Marginal | D89: =IF($E75="Y",D75,IF($E76="Y",D76,D77)) -> 2-Replace | F89: =IF($E75="Y",F75,IF($E76="Y",F76,F77)) -> 1000 | G89: 1000 | H89: 1029.838366 | I89: =IF($E75="Y",I75,IF($E76="Y",I76,I77)) -> 8.25508625 | K89: 76.88306902 | L89: 85.13815527 | M89: =IF(F89>0,L89/F89,"N/A") -> 0.08513815527 | N89: 1 | O89: 0 | P89: 0 | Q89: 0 | R89: 0 | S89: 0 | T89: =D102*T88+D103*T87+D104*T86 -> 0.009356005122 | U89: 9.356005122 | V89: 9.356005122
C90: =C78 -> 1-Poor | D90: =IF($E78="Y",D78,IF($E79="Y",D79,D80)) -> 2-Replace | F90: =IF($E78="Y",F78,IF($E79="Y",F79,F80)) -> 1000 | G90: 1000 | H90: 1029.838366 | I90: =IF($E78="Y",I78,IF($E79="Y",I79,I80)) -> 83.88277592 | K90: 153.766138 | L90: 237.6489139 | M90: =IF(F90>0,L90/F90,"N/A") -> 0.2376489139 | N90: 1 | O90: 0 | P90: 0 | Q90: 0 | R90: 0 | S90: 0 | T90: =D98*T89+D99*T88+D100*T87+D101*T86 -> 0 | U90: 0 | V90: 0
C91: =C81 -> 0-Failed | D91: =D81 -> 0-Replace | F91: =F81 -> 1500 | G91: 3000 | H91: 3029.838366 | I91: =I81 -> N/A | K91: N/A | L91: N/A | M91: N/A | N91: 1 | O91: 0 | P91: 0 | Q91: 0 | R91: 0 | S91: 0 | T91: =1-T90-T89-T88-T87-T86 -> 0 | U91: 0 | V91: 0
C92: Total | T92: =SUM(T86:T91) -> 1 | U92: =SUM(U86:U91) -> 9.356005122 | V92: =SUM(V86:V91) -> 9.356005122
C94: Misc. Parameters
C95: Description | D95: Value
C96: Disc. Rate | D96: 0.07
C97: Disc. Factor | D97: =1/(1+D96) -> 0.9345794393
C98: c1 | D98: =R89/(1-R90) -> 0
C99: c2 | D99: =R88/(1-R90) -> 0
C100: c3 | D100: =R87/(1-R90) -> 0
C101: c4 | D101: =R86/(1-R90) -> 0
C102: c5 | D102: =(Q90*D99+Q88)/(1-Q89-Q90*D98) -> 0.0668616536
C103: c6 | D103: =(Q90*D100+Q87)/(1-Q89-Q90*D98) -> 0
C104: c7 | D104: =(Q90*D101+Q86)/(1-Q89-Q90*D98) -> 0
C105: c8 | D105: =(P90*D98*D103+P90*D100+P89*D103+P87)/(1-P88-P90*D98*D102-P90*D99-P89*D102) -> 0.5612484094
C106: c9 | D106: =(P90*D98*D104+P90*D101+P89*D104+P86)/(1-P88-P90*D98*D102-P90*D99-P89*D102) -> 0
C107: c10 | D107: =(O90*D98*D102*D106+O90*D98*D104+O90*D99*D106+O90*D101+O89*D102*D106+O89*D104+O88*D106+O86)/(1-O87-O90*D98*D102*D105-O90*D98*D103-O90*D99*D105-O90*D100+O89*D103+O88*D105) -> 0.4145721886
C109: Asset List
C110: User-Specified
C111: Guideway-At Grade Ballasted or Expressway
C112: Guideway-Grade Crossing
C113: Guideway-Elevated Structure
C114: Guideway-Steel Viaduct
C115: Guideway-Bridge
C116: Guideway-Foot Walk
C117: Guideway-Elevated Fill
C118: Guideway-Tunnel
C119: Guideway-Retained Cut
C120: Guideway-Tangent Direct Fixation Track
C121: Guideway-Curved Direct Fixation Track
C122: Guideway-Guarded Direct Fixation Track
C123: Guideway-Direct Fixation Tangent Platform Track
C124: Guideway-Direct Fixation Curved Platform Track
C125: Guideway-Guarded Curved Direct Fixation Track
C126: Guideway-Tangent Ballasted Track
C127: Guideway-Curved Ballasted Track
C128: Guideway-Guarded Ballasted Track
C129: Guideway-Ballasted Tangent Platform Track
C130: Guideway-Ballasted Curved Platform Track
C131: Guideway-Guarded Platform Ballasted Track
C132: Guideway-Tangent Embedded Track
C133: Guideway-Curved Embedded Track
C134: Guideway-At-Grade Crossing
C135: Guideway-Special Trackwork
C136: Guideway-Direct Fixation Diamond Crossover
C137: Guideway-Direct Fixation or Ballasted Turnout
C138: Guideway-Turntable
C139: Guideway-Yard Track
C140: Guideway-Wood Tie
C141: Guideway-Concrete Tie
C142: Guideway-Retaining Wall
C143: Guideway-At Grade Bus
C144: Guideway-Bus Turnaround
C145: Guideway-Elevated-Bus
C146: Guideway-Subway Bus
C147: Facilities-Administrative Building
C148: Facilities-Maintenance Building
C149: Facilities-Passenger Building
C150: Facilities-Building Utilities
C151: Facilities-Access and Parking
C152: Facilities-Building Utilities-Elevators and Conveying Systems
C153: Facilities-Building Utilities-Generator
C154: Facilities-Storage Yard
C155: Facilities-Storage Yard-Bus
C156: Facilities-Bus Turnaround Facility
C157: Facilities-Maintenance Equipment
C158: Facilities-Pollution Treatment
C159: Facilities-Bus Washer
C160: Facilities-Train Washer
C161: Facilities-Vehicle Paintbooth
C162: Facilities-Fuel Island
C163: Facilities-Dynamoneter
C164: Facilities-Portable Lift
C165: Facilities-Fixed Lift
C166: Facilities-Wheel Truing Machine
C167: Facilities-Brake Lathe
C168: Facilities-Major Rail Shop
C169: Facilities-Major Bus Shop
C170: Facilities-Train Control Center
C171: Systems-Train Control, Elec., Comm., Revenue Collect. & Util.
C172: Systems-Train Control
C173: Systems-Train Control
C174: Systems-Signals & Train Stops
C175: Systems-Train Control Cable
C176: Systems-Signal Bridge
C177: Systems-Centralized Train Control
C178: Systems-Gates, Flashers, Crossings
C179: Systems-Roadway Traffic Signals
C180: Systems-Interlocking
C181: Systems-Electrification
C182: Systems-Electrification Catenary/Pole
C183: Systems-Electrification Substation
C184: Systems-High Tension Towers
C185: Systems-Electrification Substation Building Components
C186: Systems-Electrification Breaker House
C187: Systems-Electrification Contact Rail/Protection Boards
C188: Systems-Heaters
C189: Systems-Power Cable
C190: Systems-Electrical Systems
C191: Systems-Trolley Wire
C192: Systems-Communications Cable
C193: Systems-Communciations
C194: Systems-MIS/IT/Network System
C195: Systems-Emergency Location System
C196: Systems-SCADA RTU
C197: Systems-Communications Hut or Room
C198: Systems-Bus On-Board Video System
C199: Systems-Central Revenue Collection
C200: Systems-Coin/Bill Counter
C201: Systems-Revenue Collection System-Rail
C202: Systems-Turnstile
C203: Systems-In Station Revenue Collection Equipment
C204: Systems-Parking Meter
C205: Systems-Change Machine
C206: Systems-Passenger Counter-Rail
C207: Systems-System Utilities
C208: Systems-Lighting
C209: Systems-Guideway Drainage
C210: Systems-Pump Room
C211: Systems-Deep Utility Well
C212: Systems-Sump Pump/Discharge Pipes
C213: Systems-Subway Ventilation
C214: Systems-Fan Plant
C215: Systems-Compressed Air Pipes
C216: Systems-Air Conditioning/HVAC-Subway
C217: Systems-Emergency Exit
... 20 more rows

Sheet Inputs_Results
A1: Transit Asset Rehabilitation/Replacement Vehicle Model
A2: Inputs and Summary Results
A4: Input Parameters
A5: Description | F5: Value
A6: Annual Statistics for Base Year Fleet
A7: Base Year | F7: =IF(Inputs!I46<>"",Inputs!I46,Inputs!H46) -> 2009
A8: Passenger Miles (000) | F8: =IF(Inputs!I47<>"",Inputs!I47,Inputs!H47) -> 259207.643
A9: Unlinked Trips (000) | F9: =IF(Inputs!I48<>"",Inputs!I48,Inputs!H48) -> 58485.434
A10: Vehicle Miles (000) | F10: =IF(Inputs!I49<>"",Inputs!I49,Inputs!H49) -> 31005.729
A11: Revenue Vehicle Miles (000) | F11: =IF(Inputs!I50<>"",Inputs!I50,Inputs!H50) -> 23747.017
A12: Revenue Vehicle Hours (000) | F12: =IF(Inputs!I51<>"",Inputs!I51,Inputs!H51) -> 1746.548
A13: Number of Road Calls (buses) or Failures (rail) | F13: =IF(Inputs!I52<>"",Inputs!I52,Inputs!H52) -> 4299
A14: Fuel Cost for Vehicle Operations (000) | F14: =IF(Inputs!I53<>"",Inputs!I53,Inputs!H53) -> 22956.315
A15: Vehicle Maintenance Cost (000) | F15: =IF(Inputs!I54<>"",Inputs!I54,Inputs!H54) -> 58574.452
A16: Cost Parameters
A17: New Vehicle Cost ($ per vehicle) | F17: =IF(Inputs!I61<>"",Inputs!I61,Inputs!H61) -> 397000
A18: Passenger Delay Cost ($ per hour) | F18: =IF(Inputs!I63<>"",Inputs!I63,Inputs!H63) -> 48.4
A19: Energy (Fuel) Cost Model
A20: EnergyC1 | F20: =IF('Detailed Inputs'!J33<>"",'Detailed Inputs'!J33,'Detailed Inputs'!I33) -> 6.27e-07
A21: EnergyC2 | F21: =IF('Detailed Inputs'!J34<>"",'Detailed Inputs'!J34,'Detailed Inputs'!I34) -> 0.6210567902
A22: Maintenance Cost Model
A23: MaintC1 | F23: =IF('Detailed Inputs'!J35<>"",'Detailed Inputs'!J35,'Detailed Inputs'!I35) -> 1.26e-06
A24: MaintC2 | F24: =IF('Detailed Inputs'!J36<>"",'Detailed Inputs'!J36,'Detailed Inputs'!I36) -> 1.318152788
A25: Delay Cost Model
A26: DelayC1 | F26: =IF('Detailed Inputs'!J37<>"",'Detailed Inputs'!J37,'Detailed Inputs'!I37) -> 1.98e-06
A27: DelayC2 | F27: =IF('Detailed Inputs'!J38<>"",'Detailed Inputs'!J38,'Detailed Inputs'!I38) -> 0.08364222208
A28: Other Analysis Parameters
A29: Discount Rate | F29: =IF(Inputs!I67<>"",Inputs!I67,Inputs!H67) -> 0.07
A30: Typical Schedule Headway (min) | F30: =IF(Inputs!I64<>"",Inputs!I64,Inputs!H64) -> 30
A31: Typical Recovery Time After Road Call/Failure (min) | F31: =IF(Inputs!I65<>"",Inputs!I65,Inputs!H65) -> 60
A32: Vehicles/Consist (leave blank for bus) | F32: =IF(Inputs!I66<>"",Inputs!I66,Inputs!H66) -> 1
A33: Other Benefits of Replacement Vehicles ($/vehicle mile) | F33: =IF(Inputs!I62<>"",Inputs!I62,Inputs!H62) -> 0
A34: Annual Miles Per Vehicle | F34: =BusMiles*1000/SUM(TotalFleet) -> 35394.66781
A36: Summary Results
A37: Description | F37: Value
A38: Cost-Minimizing Replacement Mileage | F38: =VLOOKUP($F$39,$A$105:$O$160,2) -> 530920.0171
A39: Approx. Cost-Minimizing Replacement Age | F39: =Q160 -> 15
A40: Annualized Life Cycle Cost (replace at min) | F40: =MIN(O105:O160) -> 160266.1887
A41: Annulaized Agency Life Cycle Cost (replace at min) | F41: =VLOOKUP($F$39,$A$105:$O$160,13) -> 155300.8249
A42: Annualized User Life Cycle Cost (replace at min) | F42: =VLOOKUP($F$39,$A$105:$O$160,14) -> 4965.36385
A44: Inventory Description (base year) | E44: Unit Rehabilitation Costs
A45: Group | B45: Lifetime Mileage Per Bus | C45: Number of Vehicles | E45: Lifetime Mileage | G45: Rehab
A46: 1 | B46: =Inputs!E31 -> 147882 | C46: =Inputs!F31 -> 90 | E46: from | F46: to | G46: Cost ($/mi)
A47: =A46+1 -> 2 | B47: =Inputs!E32 -> 114252 | C47: =Inputs!F32 -> 25 | E47: 0 | F47: =+E47+35000 -> 35000 | G47: =IF('Detailed Inputs'!G12<>"",'Detailed Inputs'!G12,'Detailed Inputs'!F12) -> 0.1589917228
A48: 3 | B48: =Inputs!E33 -> 456352 | C48: =Inputs!F33 -> 117 | E48: =+F47 -> 35000 | F48: 70000 | G48: =IF('Detailed Inputs'!G13<>"",'Detailed Inputs'!G13,'Detailed Inputs'!F13) -> 0.3733273154
A49: 4 | B49: =Inputs!E34 -> 296374 | C49: =Inputs!F34 -> 25 | E49: 70000 | F49: 105000 | G49: =IF('Detailed Inputs'!G14<>"",'Detailed Inputs'!G14,'Detailed Inputs'!F14) -> 0.5211392339
A50: 5 | B50: =Inputs!E35 -> 418462 | C50: =Inputs!F35 -> 159 | E50: 105000 | F50: 140000 | G50: =IF('Detailed Inputs'!G15<>"",'Detailed Inputs'!G15,'Detailed Inputs'!F15) -> 0.5948140118
A51: 6 | B51: =Inputs!E36 -> 246390 | C51: =Inputs!F36 -> 40 | E51: 140000 | F51: 175000 | G51: =IF('Detailed Inputs'!G16<>"",'Detailed Inputs'!G16,'Detailed Inputs'!F16) -> 0.6275013322
A52: 7 | B52: =Inputs!E37 -> 245590 | C52: =Inputs!F37 -> 60 | E52: 175000 | F52: 210000 | G52: =IF('Detailed Inputs'!G17<>"",'Detailed Inputs'!G17,'Detailed Inputs'!F17) -> 0.6416127703
A53: 8 | B53: =Inputs!E38 -> 285708 | C53: =Inputs!F38 -> 165 | E53: 210000 | F53: 245000 | G53: =IF('Detailed Inputs'!G18<>"",'Detailed Inputs'!G18,'Detailed Inputs'!F18) -> 0.64835472
A54: 9 | B54: =Inputs!E39 -> 272171 | C54: =Inputs!F39 -> 10 | E54: 245000 | F54: 280000 | G54: =IF('Detailed Inputs'!G19<>"",'Detailed Inputs'!G19,'Detailed Inputs'!F19) -> 0.6526141383
A55: 10 | B55: =Inputs!E40 -> 191941 | C55: =Inputs!F40 -> 39 | E55: 280000 | F55: 315000 | G55: =IF('Detailed Inputs'!G20<>"",'Detailed Inputs'!G20,'Detailed Inputs'!F20) -> 0.6561553698
A56: =A55+1 -> 11 | B56: =Inputs!I31 -> 162325 | C56: =Inputs!J31 -> 6 | E56: 315000 | F56: 350000 | G56: =IF('Detailed Inputs'!G21<>"",'Detailed Inputs'!G21,'Detailed Inputs'!F21) -> 0.6594765104
A57: 12 | B57: =Inputs!I32 -> 212726 | C57: =Inputs!J32 -> 60 | E57: 350000 | F57: 385000 | G57: =IF('Detailed Inputs'!G22<>"",'Detailed Inputs'!G22,'Detailed Inputs'!F22) -> 0.6627816931
A58: 13 | B58: =Inputs!I33 -> 25063 | C58: =Inputs!J33 -> 26 | E58: 385000 | F58: 420000 | G58: =IF('Detailed Inputs'!G23<>"",'Detailed Inputs'!G23,'Detailed Inputs'!F23) -> 0.6663637928
A59: 14 | B59: =Inputs!I34 -> 18970 | C59: =Inputs!J34 -> 54 | E59: 420000 | F59: 455000 | G59: =IF('Detailed Inputs'!G24<>"",'Detailed Inputs'!G24,'Detailed Inputs'!F24) -> 0.6706560893
A60: 15 | B60: =Inputs!I35 -> 0 | C60: =Inputs!J35 -> 0 | E60: 455000 | F60: 490000 | G60: =IF('Detailed Inputs'!G25<>"",'Detailed Inputs'!G25,'Detailed Inputs'!F25) -> 0.6761562331
A61: 16 | B61: =Inputs!I36 -> 0 | C61: =Inputs!J36 -> 0 | E61: 490000 | F61: 525000 | G61: =IF('Detailed Inputs'!G26<>"",'Detailed Inputs'!G26,'Detailed Inputs'!F26) -> 0.6833381773
A62: 17 | B62: =Inputs!I37 -> 0 | C62: =Inputs!J37 -> 0 | E62: 525000 | F62: 560000 | G62: =IF('Detailed Inputs'!L12<>"",'Detailed Inputs'!L12,'Detailed Inputs'!K12) -> 0.6925890962
A63: 18 | B63: =Inputs!I38 -> 0 | C63: =Inputs!J38 -> 0 | E63: 560000 | F63: 595000 | G63: =IF('Detailed Inputs'!L13<>"",'Detailed Inputs'!L13,'Detailed Inputs'!K13) -> 0.7041661596
A64: 19 | B64: =Inputs!I39 -> 0 | C64: =Inputs!J39 -> 0 | E64: 595000 | F64: 630000 | G64: =IF('Detailed Inputs'!L14<>"",'Detailed Inputs'!L14,'Detailed Inputs'!K14) -> 0.7181586737
A65: 20 | B65: =Inputs!I40 -> 0 | C65: =Inputs!J40 -> 0 | E65: 630000 | F65: 665000 | G65: =IF('Detailed Inputs'!L15<>"",'Detailed Inputs'!L15,'Detailed Inputs'!K15) -> 0.7344472215
A66: 21 | E66: 665000 | F66: 700000 | G66: =IF('Detailed Inputs'!L16<>"",'Detailed Inputs'!L16,'Detailed Inputs'!K16) -> 0.7526599064
A67: 22 | E67: 700000 | F67: 735000 | G67: =IF('Detailed Inputs'!L17<>"",'Detailed Inputs'!L17,'Detailed Inputs'!K17) -> 0.7721320148
A68: 23 | E68: 735000 | F68: 770000 | G68: =IF('Detailed Inputs'!L18<>"",'Detailed Inputs'!L18,'Detailed Inputs'!K18) -> 0.7918796833
A69: 24 | E69: 770000 | F69: 805000 | G69: =IF('Detailed Inputs'!L19<>"",'Detailed Inputs'!L19,'Detailed Inputs'!K19) -> 0.8106012735
A70: 25 | E70: 805000 | F70: 840000 | G70: =IF('Detailed Inputs'!L20<>"",'Detailed Inputs'!L20,'Detailed Inputs'!K20) -> 0.8267212063
A71: 26 | E71: 840000 | F71: 875000 | G71: =IF('Detailed Inputs'!L21<>"",'Detailed Inputs'!L21,'Detailed Inputs'!K21) -> 0.8384876816
A72: 27 | E72: 875000 | F72: 910000 | G72: =IF('Detailed Inputs'!L22<>"",'Detailed Inputs'!L22,'Detailed Inputs'!K22) -> 0.8384876816
A73: 28 | E73: 910000 | F73: 945000 | G73: =IF('Detailed Inputs'!L23<>"",'Detailed Inputs'!L23,'Detailed Inputs'!K23) -> 0.8384876816
A74: 29 | E74: 945000 | F74: 980000 | G74: =IF('Detailed Inputs'!L24<>"",'Detailed Inputs'!L24,'Detailed Inputs'!K24) -> 0.8384876816
A75: 30 | E75: 980000 | F75: 1015000 | G75: =IF('Detailed Inputs'!L25<>"",'Detailed Inputs'!L25,'Detailed Inputs'!K25) -> 0.8384876816
A76: 31 | E76: 1015000 | F76: 1050000 | G76: =IF('Detailed Inputs'!L26<>"",'Detailed Inputs'!L26,'Detailed Inputs'!K26) -> 0.8384876816
A77: 32
A78: 33
A79: 34
A80: 35
A81: 36
A82: 37
A83: 38
A84: 39
A85: 40
A86: 41
A87: 42
A88: 43
A89: 44
A90: 45
A91: 46
A92: 47
A93: 48
A94: 49
A95: 50
A97: Results by Replacement Age
B98: Lifetime Mileage | C98: Annual Cost Per Bus | I98: Life Cycle Average Cost Per Bus Per Year | P98: Optimal Repl. Calc | R98: Replacement Benefit | V98: Priority Index
C99: Agency Costs | G99: Passenger Delay | H99: Total | I99: Agency Costs | N99: Passenger Delay | O99: Total
A100: Approx Age at which Replaced | C100: Rehab. | D100: Maint. | E100: Energy | F100: Subtotal | I100: New Buses | J100: Rehab. | K100: Maint. | L100: Energy | M100: Subtotal | P100: Min Calc | Q100: Age | R100: Agency | S100: User | T100: Other Benefits of New Vehicles | U100: Total
A101: =Calculations!A196 -> 1 | B101: =AnnMiles*Calculations!A196 -> 35394.66781 | C101: =+Calculations!C196 -> 5821.089073 | D101: =+Calculations!D196 -> 49349.14797 | E101: =+Calculations!E196 -> 22992.17597 | F101: =SUM(C101:E101) -> 78162.41301 | G101: =+Calculations!F196 -> 3171.562567 | H101: =SUM(F101:G101) -> 81333.97558 | I101: =+Calculations!M196 -> 424790 | J101: =+Calculations!N196 -> 5821.089073 | K101: =+Calculations!O196 -> 49349.14797 | L101: =+Calculations!P196 -> 22992.17597 | M101: =SUM(I101:L101) -> 502952.413 | N101: =+Calculations!Q196 -> 3171.562567 | O101: =SUM(M101:N101) -> 506123.9756 | P101: =O101 -> 506123.9756 | Q101: =A101 -> 1 | R101: =F101-$F$41 -> -77138.41184 | S101: =G101-$F$42 -> -1793.801283 | T101: =OtherBen*AnnMiles -> 0 | U101: =H101-$F$40+T101 -> -78932.21313 | V101: =U101/NewBusCost -> -0.1988216955
A102: =Calculations!A197 -> 2 | B102: =AnnMiles*Calculations!A197 -> 70789.33562 | C102: =+Calculations!C197 -> 13668.45719 | D102: =+Calculations!D197 -> 51599.79925 | E102: =+Calculations!E197 -> 23508.13284 | F102: 88776.38928 | G102: =+Calculations!F197 -> 3401.803839 | H102: 92178.19312 | I102: =+Calculations!M197 -> 219577.4396 | J102: =+Calculations!N197 -> 9612.088162 | K102: =+Calculations!O197 -> 50436.41912 | L102: =+Calculations!P197 -> 23241.4305 | M102: 302867.3774 | N102: =+Calculations!Q197 -> 3282.790235 | O102: 306150.1676 | P102: =IF(O102<P101,O102,P101) -> 306150.1676 | Q102: =IF(O102<P101,A102,Q101) -> 2 | R102: -66524.43557 | S102: -1563.56001 | T102: =OtherBen*AnnMiles -> 0 | U102: -68087.99559 | V102: =U102/NewBusCost -> -0.1715062861
A103: =Calculations!A198 -> 3 | B103: =AnnMiles*Calculations!A198 -> 106184.0034 | C103: =+Calculations!C198 -> 19080.22535 | D103: =+Calculations!D198 -> 53953.0953 | E103: =+Calculations!E198 -> 24035.66806 | F103: 97068.98871 | G103: =+Calculations!F198 -> 3648.7596 | H103: 100717.7483 | I103: =+Calculations!M198 -> 151277.5113 | J103: =+Calculations!N198 -> 12557.168 | K103: =+Calculations!O198 -> 51530.2871 | L103: =+Calculations!P198 -> 23488.47941 | M103: 238853.4458 | N103: =+Calculations!Q198 -> 3396.625615 | O103: 242250.0714 | P103: =IF(O103<P102,O103,P102) -> 242250.0714 | Q103: =IF(O103<P102,A103,Q102) -> 3 | R103: -58231.83615 | S103: -1316.60425 | T103: =OtherBen*AnnMiles -> 0 | U103: -59548.4404 | V103: =U103/NewBusCost -> -0.1499960715
A104: =Calculations!A199 -> 4 | B104: =AnnMiles*Calculations!A199 -> 141578.6712 | C104: =+Calculations!C199 -> 21777.6453 | D104: =+Calculations!D199 -> 56413.71738 | E104: =+Calculations!E199 -> 24575.04146 | F104: 102766.4041 | G104: =+Calculations!F199 -> 3913.643245 | H104: 106680.0474 | I104: =+Calculations!M199 -> 117205.5623 | J104: =+Calculations!N199 -> 14633.87874 | K104: =+Calculations!O199 -> 52630.17291 | L104: =+Calculations!P199 -> 23733.20374 | M104: 208202.8177 | N104: =+Calculations!Q199 -> 3513.072522 | O104: 211715.8902 | P104: 211715.8902 | Q104: 4 | R104: -52534.42072 | S104: -1051.720604 | T104: =OtherBen*AnnMiles -> 0 | U104: -53586.14132 | V104: =U104/NewBusCost -> -0.1349776859
A105: =Calculations!A200 -> 5 | B105: =AnnMiles*Calculations!A200 -> 176973.339 | C105: =+Calculations!C200 -> 22974.41077 | D105: =+Calculations!D200 -> 58986.56029 | E105: =+Calculations!E200 -> 25126.51869 | F105: 107087.4897 | G105: =+Calculations!F200 -> 4197.75626 | H105: 111285.246 | I105: =+Calculations!M200 -> 96824.60569 | J105: =+Calculations!N200 -> 16084.21965 | K105: =+Calculations!O200 -> 53735.48952 | L105: =+Calculations!P200 -> 23975.48824 | M105: 190619.8031 | N105: =+Calculations!Q200 -> 3632.132653 | O105: 194251.9358 | P105: 194251.9358 | Q105: 5 | R105: -48213.33511 | S105: -767.6075898 | T105: =OtherBen*AnnMiles -> 0 | U105: -48980.9427 | V105: =U105/NewBusCost -> -0.1233776894
A106: =Calculations!A201 -> 6 | B106: =AnnMiles*Calculations!A201 -> 212368.0068 | C106: =+Calculations!C201 -> 23491.0662 | D106: =+Calculations!D201 -> 61676.74206 | E106: =+Calculations!E201 -> 25690.37136 | F106: 110858.1796 | G106: =+Calculations!F201 -> 4502.49461 | H106: 115360.6742 | I106: =+Calculations!M201 -> 83288.9325 | J106: =+Calculations!N201 -> 17119.66568 | K106: =+Calculations!O201 -> 54845.64327 | L106: =+Calculations!P201 -> 24215.2217 | M106: 179469.4632 | N106: =+Calculations!Q201 -> 3753.805599 | O106: 183223.2688 | P106: 183223.2688 | Q106: 6 | R106: -44442.64523 | S106: -462.8692397 | T106: 0 | U106: -44905.51447 | V106: -0.1131121271
A107: =Calculations!A202 -> 7 | B107: =AnnMiles*Calculations!A202 -> 247762.6747 | C107: =+Calculations!C202 -> 23737.90603 | D107: =+Calculations!D202 -> 64489.61411 | E107: =+Calculations!E202 -> 26266.87719 | F107: 114494.3973 | G107: =+Calculations!F202 -> 4829.355603 | H107: 119323.7529 | I107: =+Calculations!M202 -> 73664.62819 | J107: =+Calculations!N202 -> 17884.42467 | K107: =+Calculations!O202 -> 55960.03515 | L107: =+Calculations!P202 -> 24452.2971 | M107: 171961.3851 | N107: =+Calculations!Q202 -> 3878.088865 | O107: 175839.474 | P107: 175839.474 | Q107: 7 | R107: -40806.42752 | S107: -136.0082468 | T107: 0 | U107: -40942.43577 | V107: -0.1031295611
A108: =Calculations!A203 -> 8 | B108: =AnnMiles*Calculations!A203 -> 283157.3425 | C108: =+Calculations!C203 -> 23893.85411 | D108: =+Calculations!D203 -> 67430.77194 | E108: =+Calculations!E203 -> 26856.32013 | F108: 118180.9462 | G108: =+Calculations!F203 -> 5179.945244 | H108: 123360.8914 | I108: =+Calculations!M203 -> 66484.70171 | J108: =+Calculations!N203 -> 18470.15031 | K108: =+Calculations!O203 -> 57078.0622 | L108: =+Calculations!P203 -> 24686.61184 | M108: 166719.5261 | N108: =+Calculations!Q203 -> 4004.977893 | O108: 170724.504 | P108: 170724.504 | Q108: 8 | R108: -37119.87868 | S108: 214.5813939 | T108: 0 | U108: -36905.29728 | V108: -0.09296044656
A109: =Calculations!A204 -> 9 | B109: =AnnMiles*Calculations!A204 -> 318552.0103 | C109: =+Calculations!C204 -> 24023.50755 | D109: =+Calculations!D204 -> 70506.06624 | E109: =+Calculations!E204 -> 27458.99049 | F109: 121988.5643 | G109: =+Calculations!F204 -> 5555.986126 | H109: 127544.5504 | I109: =+Calculations!M204 -> 60934.12864 | J109: =+Calculations!N204 -> 18933.7805 | K109: =+Calculations!O204 -> 58199.11886 | L109: =+Calculations!P204 -> 24918.06795 | M109: 162985.096 | N109: =+Calculations!Q204 -> 4134.466096 | O109: 167119.562 | P109: 167119.562 | Q109: 9 | R109: -33312.26058 | S109: 590.6222762 | T109: 0 | U109: -32721.6383 | V109: -0.08242226272
A110: =Calculations!A205 -> 10 | B110: =AnnMiles*Calculations!A205 -> 353946.6781 | C110: =+Calculations!C205 -> 24145.10291 | D110: =+Calculations!D205 -> 73721.61454 | E110: =+Calculations!E205 -> 28075.18509 | F110: 125941.9025 | G110: =+Calculations!F205 -> 5959.325896 | H110: 131901.2284 | I110: =+Calculations!M205 -> 56523.86858 | J110: =+Calculations!N205 -> 19310.963 | K110: =+Calculations!O205 -> 59322.59833 | L110: =+Calculations!P205 -> 25146.5722 | M110: 160304.0021 | N110: =+Calculations!Q205 -> 4266.544891 | O110: 164570.547 | P110: 164570.547 | Q110: 10 | R110: -29358.92231 | S110: 993.9620465 | T110: 0 | U110: -28364.96027 | V110: -0.07144826264
A111: =Calculations!A206 -> 11 | B111: =AnnMiles*Calculations!A206 -> 389341.3459 | C111: =+Calculations!C206 -> 24266.11401 | D111: =+Calculations!D206 -> 77083.81335 | E111: =+Calculations!E206 -> 28705.20743 | F111: =SUM(C111:E111) -> 130055.1348 | G111: =+Calculations!F206 -> 6391.946332 | H111: =SUM(F111:G111) -> 136447.0811 | I111: =+Calculations!M206 -> 52942.69122 | J111: =+Calculations!N206 -> 19624.90603 | K111: =+Calculations!O206 -> 60447.89394 | L111: =+Calculations!P206 -> 25372.03632 | M111: =SUM(I111:L111) -> 158387.5275 | N111: =+Calculations!Q206 -> 4401.203748 | O111: =SUM(M111:N111) -> 162788.7313 | P111: 162788.7313 | Q111: 11 | R111: =F111-$F$41 -> -25245.69006 | S111: =G111-$F$42 -> 1426.582482 | T111: 0 | U111: =H111-$F$40+T111 -> -23819.10758 | V111: -0.05999775209
A112: =Calculations!A207 -> 12 | B112: =AnnMiles*Calculations!A207 -> 424736.0137 | C112: =+Calculations!C207 -> 24397.26374 | D112: =+Calculations!D207 -> 80599.35092 | E112: =+Calculations!E207 -> 29349.36782 | F112: 134345.9825 | G112: =+Calculations!F207 -> 6855.973078 | H112: 141201.9556 | I112: =+Calculations!M207 -> 49983.0895 | J112: =+Calculations!N207 -> 19891.69032 | K112: =+Calculations!O207 -> 61574.40046 | L112: =+Calculations!P207 -> 25594.37706 | M112: 157043.5573 | N112: =+Calculations!Q207 -> 4538.430235 | O112: 161581.9876 | P112: 161581.9876 | Q112: 12 | R112: -20954.84237 | S112: 1890.609228 | T112: 0 | U112: -19064.23315 | V112: -0.0480207384
A113: =Calculations!A208 -> 13 | B113: =AnnMiles*Calculations!A208 -> 460130.6815 | C113: =+Calculations!C208 -> 24554.41557 | D113: =+Calculations!D208 -> 84275.22053 | E113: =+Calculations!E208 -> 30007.98352 | F113: 138837.6196 | G113: =+Calculations!F208 -> 7353.686093 | H113: 146191.3057 | I113: =+Calculations!M208 -> 47501.38671 | J113: =+Calculations!N208 -> 20123.19858 | K113: =+Calculations!O208 -> 62701.51543 | L113: =+Calculations!P208 -> 25813.51636 | M113: 156139.6171 | N113: =+Calculations!Q208 -> 4678.210076 | O113: 160817.8272 | P113: 160817.8272 | Q113: 13 | R113: -16463.20525 | S113: 2388.322244 | T113: 0 | U113: -14074.883 | V113: -0.0354531058
A114: =Calculations!A209 -> 14 | B114: =AnnMiles*Calculations!A209 -> 495525.3493 | C114: =+Calculations!C209 -> 24755.78974 | D114: =+Calculations!D209 -> 88118.73437 | E114: =+Calculations!E209 -> 30681.3789 | F114: 143555.903 | G114: =+Calculations!F209 -> 7887.53085 | H114: 151443.4339 | I114: =+Calculations!M209 -> 45394.94063 | J114: =+Calculations!N209 -> 20328.63055 | K114: =+Calculations!O209 -> 63828.64045 | L114: =+Calculations!P209 -> 26029.38143 | M114: 155581.5931 | N114: =+Calculations!Q209 -> 4820.527209 | O114: 160402.1203 | P114: 160402.1203 | Q114: 14 | R114: -11744.92184 | S114: 2922.167 | T114: 0 | U114: -8822.754839 | V114: -0.02222356383
A115: =Calculations!A210 -> 15 | B115: =AnnMiles*Calculations!A210 -> 530920.0171 | C115: =+Calculations!C210 -> 25018.73888 | D115: =+Calculations!D210 -> 92137.53816 | E115: =+Calculations!E210 -> 31369.88565 | F115: 148526.1627 | G115: =+Calculations!F210 -> 8460.13035 | H115: 156986.293 | I115: =+Calculations!M210 -> 43588.46601 | J115: =+Calculations!N210 -> 20515.27165 | K115: =+Calculations!O210 -> 64955.18241 | L115: =+Calculations!P210 -> 26241.90479 | M115: 155300.8249 | N115: =+Calculations!Q210 -> 4965.36385 | O115: 160266.1887 | P115: 160266.1887 | Q115: 15 | R115: -6774.662161 | S115: 3494.7665 | T115: 0 | U115: -3279.89566 | V115: -0.008261701915
A116: =Calculations!A211 -> 16 | B116: =AnnMiles*Calculations!A211 -> 566314.6849 | C116: =+Calculations!C211 -> 25357.43842 | D116: =+Calculations!D211 -> 96339.62629 | E116: =+Calculations!E211 -> 32073.84285 | F116: 153770.9076 | G116: =+Calculations!F211 -> 9074.298016 | H116: 162845.2056 | I116: =+Calculations!M211 -> 42025.48615 | J116: =+Calculations!N211 -> 20688.90036 | K116: =+Calculations!O211 -> 66080.55474 | L116: =+Calculations!P211 -> 26451.02437 | M116: 155245.9656 | N116: =+Calculations!Q211 -> 5112.700564 | O116: 160358.6662 | P116: 160266.1887 | Q116: 15 | R116: -1529.917288 | S116: 4108.934167 | T116: 0 | U116: 2579.016878 | V116: 0.006496264177
A117: =Calculations!A212 -> 17 | B117: =AnnMiles*Calculations!A212 -> 601709.3527 | C117: =+Calculations!C212 -> 25781.30399 | D117: =+Calculations!D212 -> 100733.3578 | E117: =+Calculations!E212 -> 32793.59724 | F117: 159308.259 | G117: =+Calculations!F212 -> 9733.051511 | H117: 169041.3105 | I117: =+Calculations!M212 -> 40662.80165 | J117: =+Calculations!N212 -> 20854.02253 | K117: =+Calculations!O212 -> 67204.17857 | L117: =+Calculations!P212 -> 26656.68352 | M117: 155377.6863 | N117: =+Calculations!Q212 -> 5262.516335 | O117: 160640.2026 | P117: 160266.1887 | Q117: 15 | R117: 4007.43413 | S117: 4767.687661 | T117: 0 | U117: 8775.121791 | V117: 0.02210358134
A118: =Calculations!A213 -> 18 | B118: =AnnMiles*Calculations!A213 -> 637104.0205 | C118: =+Calculations!C213 -> 26293.60532 | D118: =+Calculations!D213 -> 105327.4728 | E118: =+Calculations!E213 -> 33529.50331 | F118: 165150.5814 | G118: =+Calculations!F213 -> 10439.62757 | H118: 175590.209 | I118: =+Calculations!M213 -> 39466.80286 | J118: =+Calculations!N213 -> 21014.01482 | K118: =+Calculations!O213 -> 68325.48383 | L118: =+Calculations!P213 -> 26858.83103 | M118: 155665.1325 | N118: =+Calculations!Q213 -> 5414.788646 | O118: 161079.9212 | P118: 160266.1887 | Q118: 15 | R118: 9849.756535 | S118: 5474.263717 | T118: 0 | U118: 15324.02025 | V118: 0.03859954723
A119: =Calculations!A214 -> 19 | B119: =AnnMiles*Calculations!A214 -> 672498.6884 | C119: =+Calculations!C214 -> 26889.97025 | D119: =+Calculations!D214 -> 110131.1101 | E119: =+Calculations!E214 -> 34281.92351 | F119: 171303.0039 | G119: =+Calculations!F214 -> 11197.49789 | H119: 182500.5018 | I119: =+Calculations!M214 -> 38410.9469 | J119: =+Calculations!N214 -> 21171.21434 | K119: =+Calculations!O214 -> 69443.91037 | L119: =+Calculations!P214 -> 27057.42113 | M119: 156083.4927 | N119: =+Calculations!Q214 -> 5569.493552 | O119: 161652.9863 | P119: 160266.1887 | Q119: 15 | R119: 16002.17905 | S119: 6232.134037 | T119: 0 | U119: 22234.31309 | V119: 0.05600582641
A120: =Calculations!A215 -> 20 | B120: =AnnMiles*Calculations!A215 -> 707893.3562 | C120: =+Calculations!C215 -> 27556.7827 | D120: =+Calculations!D215 -> 115153.8255 | E120: =+Calculations!E215 -> 35051.22842 | F120: 177761.8367 | G120: =+Calculations!F215 -> 12010.38621 | H120: 189772.2229 | I120: =+Calculations!M215 -> 37473.99152 | J120: =+Calculations!N215 -> 21326.97703 | K120: =+Calculations!O215 -> 70558.90894 | L120: =+Calculations!P215 -> 27252.41348 | M120: 156612.291 | N120: =+Calculations!Q215 -> 5726.605768 | O120: 162338.8967 | P120: 160266.1887 | Q120: 15 | R120: 22461.0118 | S120: 7045.022356 | T120: 0 | U120: 29506.03416 | V120: 0.07432250418
A121: =Calculations!A216 -> 21 | B121: =AnnMiles*Calculations!A216 -> 743288.024 | C121: =+Calculations!C216 -> 28269.70584 | D121: =+Calculations!D216 -> 120405.6103 | E121: =+Calculations!E216 -> 35837.79695 | F121: 184513.1131 | G121: =+Calculations!F216 -> 12882.28659 | H121: 197395.3997 | I121: =+Calculations!M216 -> 36638.73366 | J121: =+Calculations!N216 -> 21481.72353 | K121: =+Calculations!O216 -> 71669.94215 | L121: =+Calculations!P216 -> 27443.77311 | M121: 157234.1724 | N121: =+Calculations!Q216 -> 5886.09875 | O121: 163120.2712 | P121: 160266.1887 | Q121: 15 | R121: 29212.28828 | S121: 7916.922736 | T121: 0 | U121: 37129.21102 | V121: 0.093524461
A122: =Calculations!A217 -> 22 | B122: =AnnMiles*Calculations!A217 -> 778682.6918 | C122: =+Calculations!C217 -> 28992.71793 | D122: =+Calculations!D217 -> 125896.9117 | E122: =+Calculations!E217 -> 36642.0165 | F122: 191531.6461 | G122: =+Calculations!F217 -> 13817.48304 | H122: 205349.1291 | I122: =+Calculations!M217 -> 35891.09197 | J122: =+Calculations!N217 -> 21634.99118 | K122: =+Calculations!O217 -> 72776.48539 | L122: =+Calculations!P217 -> 27631.47038 | M122: 157934.0389 | N122: =+Calculations!Q217 -> 6047.944779 | O122: 163981.9837 | P122: 160266.1887 | Q122: 15 | R122: 36230.82125 | S122: 8852.119188 | T122: 0 | U122: 45082.94044 | V122: 0.1135590439
A123: =Calculations!A218 -> 23 | B123: =AnnMiles*Calculations!A218 -> 814077.3596 | C123: =+Calculations!C218 -> 29678.16269 | D123: =+Calculations!D218 -> 131638.6531 | E123: =+Calculations!E218 -> 37464.28318 | F123: 198781.099 | G123: =+Calculations!F218 -> 14820.57057 | H123: 213601.6695 | I123: =+Calculations!M218 -> 35219.42872 | J123: =+Calculations!N218 -> 21785.51049 | K123: =+Calculations!O218 -> 73878.02766 | L123: =+Calculations!P218 -> 27815.48091 | M123: 158698.4478 | N123: =+Calculations!Q218 -> 6212.115051 | O123: 164910.5628 | P123: 160266.1887 | Q123: 15 | R123: 43480.2741 | S123: 9855.206724 | T123: 0 | U123: 53335.48083 | V123: 0.1343462993
A124: =Calculations!A219 -> 24 | B124: =AnnMiles*Calculations!A219 -> 849472.0274 | C124: =+Calculations!C219 -> 30268.3542 | D124: =+Calculations!D219 -> 137642.2563 | E124: =+Calculations!E219 -> 38305.00197 | F124: 206215.6125 | G124: =+Calculations!F219 -> 15896.47778 | H124: 222112.0903 | I124: =+Calculations!M219 -> 34614.04123 | J124: =+Calculations!N219 -> 21931.32227 | K124: =+Calculations!O219 -> 74974.07231 | L124: =+Calculations!P219 -> 27995.7855 | M124: 159515.2213 | N124: =+Calculations!Q219 -> 6378.579763 | O124: 165893.8011 | P124: 160266.1887 | Q124: 15 | R124: 50914.78763 | S124: 10931.11393 | T124: 0 | U124: 61845.90156 | V124: 0.1557831274
A125: =Calculations!A220 -> 25 | B125: =AnnMiles*Calculations!A220 -> 884866.6952 | C125: =+Calculations!C220 -> 30699.15462 | D125: =+Calculations!D220 -> 143919.664 | E125: =+Calculations!E220 -> 39164.58694 | F125: 213783.4056 | G125: =+Calculations!F220 -> 17050.49105 | H125: 230833.8966 | I125: =+Calculations!M220 -> 34066.77534 | J125: =+Calculations!N220 -> 22069.94624 | K125: =+Calculations!O220 -> 76064.13777 | L125: =+Calculations!P220 -> 28172.37003 | M125: 160373.2294 | N125: =+Calculations!Q220 -> 6547.3082 | O125: 166920.5376 | P125: 160266.1887 | Q125: 15 | R125: 58482.58072 | S125: 12085.1272 | T125: 0 | U125: 70567.70792 | V125: 0.1777524129
A126: =Calculations!A221 -> 26 | B126: =AnnMiles*Calculations!A221 -> 920261.363 | C126: =+Calculations!C221 -> 30699.15462 | D126: =+Calculations!D221 -> 150483.3635 | E126: =+Calculations!E221 -> 40043.46146 | F126: 221225.9796 | G126: =+Calculations!F221 -> 18288.28052 | H126: 239514.2601 | I126: =+Calculations!M221 -> 33570.72807 | J126: =+Calculations!N221 -> 22195.59638 | K126: =+Calculations!O221 -> 77147.75819 | L126: =+Calculations!P221 -> 28345.22533 | M126: 161259.308 | N126: =+Calculations!Q221 -> 6718.268825 | O126: 167977.5768 | P126: 160266.1887 | Q126: 15 | R126: 65925.15472 | S126: 13322.91667 | T126: 0 | U126: 79248.0714 | V126: 0.1996173083
A127: =Calculations!A222 -> 27 | B127: =AnnMiles*Calculations!A222 -> 955656.0308 | C127: =+Calculations!C222 -> 30699.15462 | D127: =+Calculations!D222 -> 157346.4116 | E127: =+Calculations!E222 -> 40942.0584 | F127: 228987.6246 | G127: =+Calculations!F222 -> 19615.92798 | H127: 248603.5526 | I127: =+Calculations!M222 -> 33120.01641 | J127: =+Calculations!N222 -> 22309.76289 | K127: =+Calculations!O222 -> 78224.48398 | L127: =+Calculations!P222 -> 28514.34706 | M127: 162168.6103 | N127: =+Calculations!Q222 -> 6891.429367 | O127: 169060.0397 | P127: 160266.1887 | Q127: 15 | R127: 73686.79976 | S127: 14650.56413 | T127: 0 | U127: 88337.36389 | V127: 0.2225122516
A128: =Calculations!A223 -> 28 | B128: =AnnMiles*Calculations!A223 -> 991050.6986 | C128: =+Calculations!C223 -> 30699.15462 | D128: =+Calculations!D223 -> 164522.4606 | E128: =+Calculations!E223 -> 41860.82035 | F128: 237082.4356 | G128: =+Calculations!F223 -> 21039.95672 | H128: 258122.3923 | I128: =+Calculations!M223 -> 32709.59554 | J128: =+Calculations!N223 -> 22413.72363 | K128: =+Calculations!O223 -> 79293.88232 | L128: =+Calculations!P223 -> 28679.7356 | M128: 163096.9371 | N128: =+Calculations!Q223 -> 7066.756903 | O128: 170163.694 | P128: 160266.1887 | Q128: 15 | R128: 81781.6107 | S128: 16074.59287 | T128: 0 | U128: 97856.20357 | V128: 0.2464891778
A129: =Calculations!A224 -> 29 | B129: =AnnMiles*Calculations!A224 -> 1026445.366 | C129: =+Calculations!C224 -> 30699.15462 | D129: =+Calculations!D224 -> 172025.7854 | E129: =+Calculations!E224 -> 42800.1998 | F129: 245525.1399 | G129: =+Calculations!F224 -> 22567.36357 | H129: 268092.5034 | I129: =+Calculations!M224 -> 32335.11477 | J129: =+Calculations!N224 -> 22508.58065 | K129: =+Calculations!O224 -> 80355.53759 | L129: =+Calculations!P224 -> 28841.39587 | M129: 164040.6289 | N129: =+Calculations!Q224 -> 7244.217952 | O129: 171284.8468 | P129: 160266.1887 | Q129: 15 | R129: 90224.315 | S129: 17601.99973 | T129: 0 | U129: 107826.3147 | V129: 0.2716028079
A130: =Calculations!A225 -> 30 | B130: =AnnMiles*Calculations!A225 -> 1061840.034 | C130: =+Calculations!C225 -> 30699.15462 | D130: =+Calculations!D225 -> 179871.3121 | E130: =+Calculations!E225 -> 43760.65945 | F130: 254331.1261 | G130: =+Calculations!F225 -> 24205.65335 | H130: 278536.7795 | I130: =+Calculations!M225 -> 31992.80219 | J130: =+Calculations!N225 -> 22595.28937 | K130: =+Calculations!O225 -> 81409.05174 | L130: =+Calculations!P225 -> 28999.33722 | M130: 164996.4805 | N130: =+Calculations!Q225 -> 7423.778551 | O130: 172420.2591 | P130: 160266.1887 | Q130: 15 | R130: 99030.30129 | S130: 19240.2895 | T130: 0 | U130: 118270.5908 | V130: 0.297910808
A131: =Calculations!A226 -> 31 | B131: =AnnMiles*Calculations!A226 -> 1097234.702 | C131: =+Calculations!C226 -> 30699.15462 | D131: =+Calculations!D226 -> 188074.6472 | E131: =+Calculations!E226 -> 44742.67232 | F131: 263516.4742 | G131: =+Calculations!F226 -> 25962.87564 | H131: 289479.3498 | I131: =+Calculations!M226 -> 31679.37172 | J131: =+Calculations!N226 -> 22674.68217 | K131: =+Calculations!O226 -> 82454.04456 | L131: =+Calculations!P226 -> 29153.57319 | M131: 165961.6716 | N131: =+Calculations!Q226 -> 7605.404344 | O131: 173567.076 | P131: 160266.1887 | Q131: 15 | R131: 108215.6493 | S131: 20997.51179 | T131: 0 | U131: 129213.1611 | V131: 0.3254739574
A132: =Calculations!A227 -> 32 | B132: =AnnMiles*Calculations!A227 -> 1132629.37 | C132: =+Calculations!C227 -> 30699.15462 | D132: =+Calculations!D227 -> 196652.1093 | E132: =+Calculations!E227 -> 45746.7221 | F132: 273097.9861 | G132: =+Calculations!F227 -> 27847.66441 | H132: 300945.6505 | I132: =+Calculations!M227 -> 31391.94745 | J132: =+Calculations!N227 -> 22747.48753 | K132: =+Calculations!O227 -> 83490.15395 | L132: =+Calculations!P227 -> 29304.12143 | M132: 166933.7104 | N132: =+Calculations!Q227 -> 7789.060659 | O132: 174722.771 | P132: 160266.1887 | Q132: 15 | R132: 117797.1612 | S132: 22882.30056 | T132: 0 | U132: 140679.4618 | V132: 0.3543563269
A133: =Calculations!A228 -> 33 | B133: =AnnMiles*Calculations!A228 -> 1168024.038 | C133: =+Calculations!C228 -> 30699.15462 | D133: =+Calculations!D228 -> 205620.7611 | E133: =+Calculations!E228 -> 46773.3033 | F133: 283093.219 | G133: =+Calculations!F228 -> 29869.28043 | H133: 312962.4995 | I133: =+Calculations!M228 -> 31128.00191 | J133: =+Calculations!N228 -> 22814.34567 | K133: =+Calculations!O228 -> 84517.03607 | L133: =+Calculations!P228 -> 29451.00345 | M133: 167910.3871 | N133: =+Calculations!Q228 -> 7974.712588 | O133: 175885.0997 | P133: 160266.1887 | Q133: 15 | R133: 127792.3942 | S133: 24903.91658 | T133: 0 | U133: 152696.3107 | V133: 0.3846254679
A134: =Calculations!A229 -> 34 | B134: =AnnMiles*Calculations!A229 -> 1203418.705 | C134: =+Calculations!C229 -> 30699.15462 | D134: =+Calculations!D229 -> 214998.4434 | E134: =+Calculations!E229 -> 47822.92153 | F134: 293520.5195 | G134: =+Calculations!F229 -> 32037.65675 | H134: 325558.1763 | I134: =+Calculations!M229 -> 30885.30503 | J134: =+Calculations!N229 -> 22875.82146 | K134: =+Calculations!O229 -> 85534.36543 | L134: =+Calculations!P229 -> 29594.24449 | M134: 168889.7364 | N134: =+Calculations!Q229 -> 8162.325062 | O134: 177052.0615 | P134: 160266.1887 | Q134: 15 | R134: 138219.6947 | S134: 27072.2929 | T134: 0 | U134: 165291.9876 | V134: 0.4163526136
A135: =Calculations!A230 -> 35 | B135: =AnnMiles*Calculations!A230 -> 1238813.373 | C135: =+Calculations!C230 -> 30699.15462 | D135: =+Calculations!D230 -> 224803.8107 | E135: =+Calculations!E230 -> 48896.09377 | F135: 304399.0591 | G135: =+Calculations!F230 -> 34363.44749 | H135: 338762.5066 | I135: =+Calculations!M230 -> 30661.88198 | J135: =+Calculations!N230 -> 22932.41514 | K135: =+Calculations!O230 -> 86541.83497 | L135: =+Calculations!P230 -> 29733.87329 | M135: 169870.0054 | N135: =+Calculations!Q230 -> 8351.862924 | O135: 178221.8683 | P135: 160266.1887 | Q135: 15 | R135: 149098.2343 | S135: 29398.08364 | T135: 0 | U135: 178496.3179 | V135: 0.4496128914
A136: =Calculations!A231 -> 36 | B136: =AnnMiles*Calculations!A231 -> 1274208.041 | C136: =+Calculations!C231 -> 30699.15462 | D136: =+Calculations!D231 -> 235056.3684 | E136: =+Calculations!E231 -> 49993.34857 | F136: 315748.8716 | G136: =+Calculations!F231 -> 36858.08025 | H136: 352606.9518 | I136: =+Calculations!M231 -> 30455.97795 | J136: =+Calculations!N231 -> 22984.5712 | K136: =+Calculations!O231 -> 87539.15606 | L136: =+Calculations!P231 -> 29869.92194 | M136: 170849.6271 | N136: =+Calculations!Q231 -> 8543.291002 | O136: 179392.9181 | P136: 160266.1887 | Q136: 15 | R136: 160448.0467 | S136: 31892.7164 | T136: 0 | U136: 192340.7631 | V136: 0.4844855495
A137: =Calculations!A232 -> 37 | B137: =AnnMiles*Calculations!A232 -> 1309602.709 | C137: =+Calculations!C232 -> 30699.15462 | D137: =+Calculations!D232 -> 245776.5113 | E137: =+Calculations!E232 -> 51115.22636 | F137: 327590.8923 | G137: =+Calculations!F232 -> 39533.81221 | H137: 367124.7045 | I137: =+Calculations!M232 -> 30266.02864 | J137: =+Calculations!N232 -> 23032.68588 | K137: =+Calculations!O232 -> 88526.05839 | L137: =+Calculations!P232 -> 30002.42567 | M137: 171827.1986 | N137: =+Calculations!Q232 -> 8736.574171 | O137: 180563.7728 | P137: 160266.1887 | Q137: 15 | R137: 172290.0674 | S137: 34568.44836 | T137: 0 | U137: 206858.5158 | V137: 0.5210541959
A138: =Calculations!A233 -> 38 | B138: =AnnMiles*Calculations!A233 -> 1344997.377 | C138: =+Calculations!C233 -> 30699.15462 | D138: =+Calculations!D233 -> 256985.5644 | E138: =+Calculations!E233 -> 52262.2797 | F138: 339946.9988 | G138: =+Calculations!F233 -> 42403.79035 | H138: 382350.7891 | I138: =+Calculations!M233 -> 30090.63545 | J138: =+Calculations!N233 -> 23077.11346 | K138: =+Calculations!O233 -> 89502.2899 | L138: =+Calculations!P233 -> 30131.42267 | M138: 172801.4615 | N138: =+Calculations!Q233 -> 8931.677423 | O138: 181733.1389 | P138: 160266.1887 | Q138: 15 | R138: 184646.1739 | S138: 37438.4265 | T138: 0 | U138: 222084.6004 | V138: 0.5594070539
A139: =Calculations!A234 -> 39 | B139: =AnnMiles*Calculations!A234 -> 1380392.045 | C139: =+Calculations!C234 -> 30699.15462 | D139: =+Calculations!D234 -> 268705.8254 | E139: =+Calculations!E234 -> 53435.07353 | F139: 352840.0535 | G139: =+Calculations!F234 -> 45482.11608 | H139: 398322.1696 | I139: =+Calculations!M234 -> 29928.54437 | J139: =+Calculations!N234 -> 23118.17158 | K139: =+Calculations!O234 -> 90467.61663 | L139: =+Calculations!P234 -> 30256.95388 | M139: 173771.2865 | N139: =+Calculations!Q234 -> 9128.565924 | O139: 182899.8524 | P139: 160266.1887 | Q139: 15 | R139: 197539.2287 | S139: 40516.75223 | T139: 0 | U139: 238055.9809 | V139: 0.5996372315
A140: =Calculations!A235 -> 40 | B140: =AnnMiles*Calculations!A235 -> 1415786.712 | C140: =+Calculations!C235 -> 30699.15462 | D140: =+Calculations!D235 -> 280960.6086 | E140: =+Calculations!E235 -> 54634.18549 | F140: 366293.9487 | G140: =+Calculations!F235 -> 48783.91451 | H140: 415077.8633 | I140: =+Calculations!M235 -> 29778.62813 | J140: =+Calculations!N235 -> 23156.14578 | K140: =+Calculations!O235 -> 91421.82248 | L140: =+Calculations!P235 -> 30379.06282 | M140: 174735.6592 | N140: =+Calculations!Q235 -> 9327.205072 | O140: 184062.8643 | P140: 160266.1887 | Q140: 15 | R140: 210993.1239 | S140: 43818.55066 | T140: 0 | U140: 254811.6745 | V140: 0.6418430089
A141: =Calculations!A236 -> 41 | B141: =AnnMiles*Calculations!A236 -> 1451181.38 | C141: =+Calculations!C236 -> 30699.15462 | D141: =+Calculations!D236 -> 293774.292 | E141: =+Calculations!E236 -> 55860.20618 | F141: 380333.6528 | G141: =+Calculations!F236 -> 52325.40875 | H141: 432659.0615 | I141: =+Calculations!M236 -> 29639.87091 | J141: =+Calculations!N236 -> 23191.29337 | K141: =+Calculations!O236 -> 92364.709 | L141: =+Calculations!P236 -> 30497.79538 | M141: 175693.6687 | N141: =+Calculations!Q236 -> 9527.560553 | O141: 185221.2292 | P141: 160266.1887 | Q141: 15 | R141: 225032.8279 | S141: 47360.0449 | T141: 0 | U141: 272392.8728 | V141: 0.6861281431
A142: =Calculations!A237 -> 42 | B142: =AnnMiles*Calculations!A237 -> 1486576.048 | C142: =+Calculations!C237 -> 30699.15462 | D142: =+Calculations!D237 -> 307172.365 | E142: =+Calculations!E237 -> 57113.73943 | F142: 394985.2591 | G142: =+Calculations!F237 -> 56123.99965 | H142: 451109.2587 | I142: =+Calculations!M237 -> 29511.35518 | J142: =+Calculations!N237 -> 23223.84676 | K142: =+Calculations!O237 -> 93296.09507 | L142: =+Calculations!P237 -> 30613.19964 | M142: 176644.4967 | N142: =+Calculations!Q237 -> 9729.598391 | O142: 186374.095 | P142: 160266.1887 | Q142: 15 | R142: 239684.4342 | S142: 51158.6358 | T142: 0 | U142: 290843.07 | V142: 0.7326021914
A143: =Calculations!A238 -> 43 | B143: =AnnMiles*Calculations!A238 -> 1521970.716 | C143: =+Calculations!C238 -> 30699.15462 | D143: =+Calculations!D238 -> 321181.4798 | E143: =+Calculations!E238 -> 58395.40265 | F143: 410276.0371 | G143: =+Calculations!F238 -> 60198.35128 | H143: 470474.3883 | I143: =+Calculations!M238 -> 29392.25044 | J143: =+Calculations!N238 -> 23254.01632 | K143: =+Calculations!O238 -> 94215.81663 | L143: =+Calculations!P238 -> 30725.32571 | M143: 177587.4091 | N143: =+Calculations!Q238 -> 9933.284994 | O143: 187520.6941 | P143: 160266.1887 | Q143: 15 | R143: 254975.2122 | S143: 55232.98743 | T143: 0 | U143: 310208.1996 | V143: 0.7813808555
A144: =Calculations!A239 -> 44 | B144: =AnnMiles*Calculations!A239 -> 1557365.384 | C144: =+Calculations!C239 -> 30699.15462 | D144: =+Calculations!D239 -> 335829.5039 | E144: =+Calculations!E239 -> 59705.82708 | F144: 426234.4856 | G144: =+Calculations!F239 -> 64568.48264 | H144: 490802.9683 | I144: =+Calculations!M239 -> 29281.80343 | J144: =+Calculations!N239 -> 23281.99285 | K144: =+Calculations!O239 -> 95123.72627 | L144: =+Calculations!P239 -> 30834.22548 | M144: 178521.748 | N144: =+Calculations!Q239 -> 10138.5872 | O144: 188660.3352 | P144: 160266.1887 | Q144: 15 | R144: 270933.6608 | S144: 59603.11879 | T144: 0 | U144: 330536.7796 | V144: 0.8325863465
A145: =Calculations!A240 -> 45 | B145: =AnnMiles*Calculations!A240 -> 1592760.051 | C145: =+Calculations!C240 -> 30699.15462 | D145: =+Calculations!D240 -> 351145.576 | E145: =+Calculations!E240 -> 61045.65814 | F145: 442890.3887 | G145: =+Calculations!F240 -> 69255.86601 | H145: 512146.2548 | I145: =+Calculations!M240 -> 29179.32968 | J145: =+Calculations!N240 -> 23307.94973 | K145: =+Calculations!O240 -> 96019.69291 | L145: =+Calculations!P240 -> 30939.95254 | M145: 179446.9249 | N145: =+Calculations!Q240 -> 10345.47231 | O145: 189792.3972 | P145: 160266.1887 | Q145: 15 | R145: 287589.5639 | S145: 64290.50216 | T145: 0 | U145: 351880.066 | V145: 0.8863477734
A146: =Calculations!A241 -> 46 | B146: =AnnMiles*Calculations!A241 -> 1628154.719 | C146: =+Calculations!C241 -> 30699.15462 | D146: =+Calculations!D241 -> 367160.1634 | E146: =+Calculations!E241 -> 62415.55574 | F146: 460274.8737 | G146: =+Calculations!F241 -> 74283.53246 | H146: 534558.4062 | I146: =+Calculations!M241 -> 29084.20609 | J146: =+Calculations!N241 -> 23332.0448 | K146: =+Calculations!O241 -> 96903.60134 | L146: =+Calculations!P241 -> 31042.5619 | M146: 180362.4141 | N146: =+Calculations!Q241 -> 10553.90815 | O146: 190916.3223 | P146: 160266.1887 | Q146: 15 | R146: 304974.0489 | S146: 69318.16861 | T146: 0 | U146: 374292.2175 | V146: 0.9428015554
A147: =Calculations!A242 -> 47 | B147: =AnnMiles*Calculations!A242 -> 1663549.387 | C147: =+Calculations!C242 -> 30699.15462 | D147: =+Calculations!D242 -> 383905.1231 | E147: =+Calculations!E242 -> 63816.19459 | F147: 478420.4723 | G147: =+Calculations!F242 -> 79676.18504 | H147: 558096.6573 | I147: =+Calculations!M242 -> 28995.8645 | J147: =+Calculations!N242 -> 23354.42197 | K147: =+Calculations!O242 -> 97775.35184 | L147: =+Calculations!P242 -> 31142.10991 | M147: 181267.7482 | N147: =+Calculations!Q242 -> 10763.86306 | O147: 192031.6113 | P147: 160266.1887 | Q147: 15 | R147: 323119.6474 | S147: 74710.82119 | T147: 0 | U147: 397830.4686 | V147: 1.002091861
A148: =Calculations!A243 -> 48 | B148: =AnnMiles*Calculations!A243 -> 1698944.055 | C148: =+Calculations!C243 -> 30699.15462 | D148: =+Calculations!D243 -> 401413.765 | E148: =+Calculations!E243 -> 65248.26452 | F148: 497361.1841 | G148: =+Calculations!F243 -> 85460.32011 | H148: 582821.5042 | I148: =+Calculations!M243 -> 28913.78604 | J148: =+Calculations!N243 -> 23375.21267 | K148: =+Calculations!O243 -> 98634.85968 | L148: =+Calculations!P243 -> 31238.65404 | M148: 182162.5124 | N148: =+Calculations!Q243 -> 10975.30597 | O148: 193137.8184 | P148: 160266.1887 | Q148: 15 | R148: 342060.3593 | S148: 80494.95626 | T148: 0 | U148: 422555.3155 | V148: 1.064371072
A149: =Calculations!A244 -> 49 | B149: =AnnMiles*Calculations!A244 -> 1734338.723 | C149: =+Calculations!C244 -> 30699.15462 | D149: =+Calculations!D244 -> 419720.9181 | E149: =+Calculations!E244 -> 66712.47088 | F149: 517132.5436 | G149: =+Calculations!F244 -> 91664.35754 | H149: 608796.9011 | I149: =+Calculations!M244 -> 28837.49617 | J149: =+Calculations!N244 -> 23394.53711 | K149: =+Calculations!O244 -> 99482.05468 | L149: =+Calculations!P244 -> 31332.25275 | M149: 183046.3407 | N149: =+Calculations!Q244 -> 11188.20641 | O149: 194234.5471 | P149: 160266.1887 | Q149: 15 | R149: 361831.7187 | S149: 86698.99369 | T149: 0 | U149: 448530.7124 | V149: 1.129800283
A150: =Calculations!A245 -> 50 | B150: =AnnMiles*Calculations!A245 -> 1769733.39 | C150: =+Calculations!C245 -> 30699.15462 | D150: =+Calculations!D245 -> 438862.9998 | E150: =+Calculations!E245 -> 68209.53483 | F150: 537771.6893 | G150: =+Calculations!F245 -> 98318.78037 | H150: 636090.4696 | I150: =+Calculations!M245 -> 28766.56027 | J150: =+Calculations!N245 -> 23412.50537 | K150: =+Calculations!O245 -> 100316.8807 | L150: =+Calculations!P245 -> 31422.96532 | M150: 183918.9117 | N150: =+Calculations!Q245 -> 11402.53451 | O150: 195321.4462 | P150: 160266.1887 | Q150: 15 | R150: 382470.8644 | S150: 93353.41652 | T150: 0 | U150: 475824.2809 | V150: 1.198549826
A151: =Calculations!A246 -> 51 | B151: =AnnMiles*Calculations!A246 -> 1805128.058 | C151: =+Calculations!C246 -> 30699.15462 | D151: =+Calculations!D246 -> 458878.0886 | E151: =+Calculations!E246 -> 69740.1937 | F151: 559317.4369 | G151: =+Calculations!F246 -> 105456.2846 | H151: 664773.7214 | I151: =+Calculations!M246 -> 28700.57979 | J151: =+Calculations!N246 -> 23429.2184 | K151: =+Calculations!O246 -> 101139.2953 | L151: =+Calculations!P246 -> 31510.8517 | M151: 184779.9452 | N151: =+Calculations!Q246 -> 11618.26107 | O151: 196398.2063 | P151: 160266.1887 | Q151: 15 | R151: 404016.612 | S151: 100490.9207 | T151: 0 | U151: 504507.5327 | V151: 1.270799831
A152: =Calculations!A247 -> 52 | B152: =AnnMiles*Calculations!A247 -> 1840522.726 | C152: =+Calculations!C247 -> 30699.15462 | D152: =+Calculations!D247 -> 479805.9992 | E152: =+Calculations!E247 -> 71305.20138 | F152: 581810.3552 | G152: =+Calculations!F247 -> 113111.9397 | H152: 694922.2949 | I152: =+Calculations!M247 -> 28639.18883 | J152: =+Calculations!N247 -> 23444.7689 | K152: =+Calculations!O247 -> 101949.269 | L152: =+Calculations!P247 -> 31595.9724 | M152: 185629.1991 | N152: =+Calculations!Q247 -> 11835.35754 | O152: 197464.5566 | P152: 160266.1887 | Q152: 15 | R152: 426509.5304 | S152: 108146.5758 | T152: 0 | U152: 534656.1062 | V152: 1.346740822
A153: =Calculations!A248 -> 53 | B153: =AnnMiles*Calculations!A248 -> 1875917.394 | C153: =+Calculations!C248 -> 30699.15462 | D153: =+Calculations!D248 -> 501688.3626 | E153: =+Calculations!E248 -> 72905.32868 | F153: 605292.8459 | G153: =+Calculations!F248 -> 121323.3611 | H153: 726616.2071 | I153: =+Calculations!M248 -> 28582.05105 | J153: =+Calculations!N248 -> 23459.24206 | K153: =+Calculations!O248 -> 102746.7848 | L153: =+Calculations!P248 -> 31678.38832 | M153: 186466.4662 | N153: =+Calculations!Q248 -> 12053.79605 | O153: 198520.2622 | P153: 160266.1887 | Q153: 15 | R153: 449992.0211 | S153: 116357.9973 | T153: 0 | U153: 566350.0184 | V153: 1.426574354
A154: =Calculations!A249 -> 54 | B154: =AnnMiles*Calculations!A249 -> 1911312.062 | C154: =+Calculations!C249 -> 30699.15462 | D154: =+Calculations!D249 -> 524568.7082 | E154: =+Calculations!E249 -> 74541.3637 | F154: 629809.2265 | G154: =+Calculations!F249 -> 130130.8951 | H154: 759940.1217 | I154: =+Calculations!M249 -> 28528.85697 | J154: =+Calculations!N249 -> 23472.71627 | K154: =+Calculations!O249 -> 103531.8378 | L154: =+Calculations!P249 -> 31758.16063 | M154: 187291.5717 | N154: =+Calculations!Q249 -> 12273.54942 | O154: 199565.1211 | P154: 160266.1887 | Q154: 15 | R154: 474508.4017 | S154: 125165.5313 | T154: 0 | U154: 599673.933 | V154: 1.510513685
A155: =Calculations!A250 -> 55 | B155: =AnnMiles*Calculations!A250 -> 1946706.729 | C155: =+Calculations!C250 -> 30699.15462 | D155: =+Calculations!D250 -> 548492.5506 | E155: =+Calculations!E250 -> 76214.11224 | F155: 655405.8175 | G155: =+Calculations!F250 -> 139577.8167 | H155: 794983.6342 | I155: =+Calculations!M250 -> 28479.32157 | J155: =+Calculations!N250 -> 23485.26372 | K155: =+Calculations!O250 -> 104304.4348 | L155: =+Calculations!P250 -> 31835.35067 | M155: 188104.3708 | N155: =+Calculations!Q250 -> 12494.59117 | O155: 200598.962 | P155: 160266.1887 | Q155: 15 | R155: 500104.9926 | S155: 134612.4529 | T155: 0 | U155: 634717.4455 | V155: 1.598784497
A156: =Calculations!A251 -> 56 | B156: =AnnMiles*Calculations!A251 -> 1982101.397 | C156: =+Calculations!C251 -> 30699.15462 | D156: =+Calculations!D251 -> 573507.4803 | E156: =+Calculations!E251 -> 77924.39815 | F156: 682131.0331 | G156: =+Calculations!F251 -> 149710.5426 | H156: 831841.5757 | I156: =+Calculations!M251 -> 28433.18205 | J156: =+Calculations!N251 -> 23496.95099 | K156: =+Calculations!O251 -> 105064.5935 | L156: =+Calculations!P251 -> 31910.01981 | M156: 188904.7463 | N156: =+Calculations!Q251 -> 12716.89555 | O156: 201621.6419 | P156: 160266.1887 | Q156: 15 | R156: 526830.2082 | S156: 144745.1788 | T156: 0 | U156: 671575.387 | V156: 1.69162566
A157: =Calculations!A252 -> 57 | B157: =AnnMiles*Calculations!A252 -> 2017496.065 | C157: =+Calculations!C252 -> 30699.15462 | D157: =+Calculations!D252 -> 599663.2581 | E157: =+Calculations!E252 -> 79673.06381 | F157: 710035.4765 | G157: =+Calculations!F252 -> 160578.8592 | H157: 870614.3357 | I157: =+Calculations!M252 -> 28390.19595 | J157: =+Calculations!N252 -> 23507.83949 | K157: =+Calculations!O252 -> 105812.3419 | L157: =+Calculations!P252 -> 31982.22934 | M157: 189692.6067 | N157: =+Calculations!Q252 -> 12940.43749 | O157: 202633.0442 | P157: 160266.1887 | Q157: 15 | R157: 554734.6517 | S157: 155613.4953 | T157: 0 | U157: 710348.147 | V157: 1.789290043
A158: =Calculations!A253 -> 58 | B158: =AnnMiles*Calculations!A253 -> 2052890.733 | C158: =+Calculations!C253 -> 30699.15462 | D158: =+Calculations!D253 -> 627011.9143 | E158: =+Calculations!E253 -> 81460.97048 | F158: 739172.0394 | G158: =+Calculations!F253 -> 172236.1669 | H158: 911408.2063 | I158: =+Calculations!M253 -> 28350.13936 | J158: =+Calculations!N253 -> 23517.98593 | K158: =+Calculations!O253 -> 106547.7182 | L158: =+Calculations!P253 -> 32052.0404 | M158: 190467.8839 | N158: =+Calculations!Q253 -> 13165.19268 | O158: 203633.0766 | P158: 160266.1887 | Q158: 15 | R158: 583871.2146 | S158: 167270.8031 | T158: 0 | U158: 751142.0176 | V158: 1.892045384
A159: =Calculations!A254 -> 59 | B159: =AnnMiles*Calculations!A254 -> 2088285.401 | C159: =+Calculations!C254 -> 30699.15462 | D159: =+Calculations!D254 -> 655607.8523 | E159: =+Calculations!E254 -> 83288.99873 | F159: 769596.0056 | G159: =+Calculations!F254 -> 184739.7431 | H159: 954335.7488 | I159: =+Calculations!M254 -> 28312.80535 | J159: =+Calculations!N254 -> 23527.44274 | K159: =+Calculations!O254 -> 107270.77 | L159: =+Calculations!P254 -> 32119.51384 | M159: 191230.5319 | N159: =+Calculations!Q254 -> 13391.13749 | O159: 204621.6694 | P159: 160266.1887 | Q159: 15 | R159: 614295.1808 | S159: 179774.3793 | T159: 0 | U159: 794069.56 | V159: 2.000175214
A160: =Calculations!A255 -> 60 | B160: =AnnMiles*Calculations!A255 -> 2123680.068 | C160: =+Calculations!C255 -> 30699.15462 | D160: =+Calculations!D255 -> 685507.9563 | E160: =+Calculations!E255 -> 85158.04893 | F160: 801365.1598 | G160: =+Calculations!F255 -> 198151.0231 | H160: 999516.1829 | I160: =+Calculations!M255 -> 28278.00252 | J160: =+Calculations!N255 -> 23536.25839 | K160: =+Calculations!O255 -> 107981.5539 | L160: =+Calculations!P255 -> 32184.71016 | M160: 191980.525 | N160: =+Calculations!Q255 -> 13618.24906 | O160: 205598.774 | P160: 160266.1887 | Q160: 15 | R160: 646064.335 | S160: 193185.6593 | T160: 0 | U160: 839249.9942 | V160: 2.113979834
A162: Fitting Model Coefficients for Use in Prioritization Tool: Priority Index = C2*Age^2 + C1*Age + C0
B163: C2 | C163: C1 | D163: C0
B164: =+Calculations!B260 -> 0.0003586269756 | C164: =+Calculations!C260 -> 0.004084105252 | D164: =+Calculations!D260 -> -0.1497648823
A167: Output Table and Chart Data
B169: Prioritization | C169: Replacement
A170: Age | B170: Index | C170: Benefits
A171: =+A172-1 -> 5 | B171: =INDEX($V$101:$V$160,A171) -> -0.1233776894 | C171: =INDEX($U$101:$U$160,A171) -> -48980.9427
A172: 6 | B172: =INDEX($V$101:$V$160,A172) -> -0.1131121271 | C172: =INDEX($U$101:$U$160,A172) -> -44905.51447
A173: 7 | B173: -0.1031295611 | C173: -40942.43577
A174: 8 | B174: -0.09296044656 | C174: -36905.29728
A175: 9 | B175: -0.08242226272 | C175: -32721.6383
A176: 10 | B176: -0.07144826264 | C176: -28364.96027
A177: 11 | B177: -0.05999775209 | C177: -23819.10758
A178: 12 | B178: -0.0480207384 | C178: -19064.23315
A179: 13 | B179: -0.0354531058 | C179: -14074.883
A180: =+A181-1 -> 14 | B180: -0.02222356383 | C180: -8822.754839
A181: =MAX(11,MIN(50,F39)) -> 15 | B181: -0.008261701915 | C181: -3279.89566
A182: =1+A181 -> 16 | B182: 0.006496264177 | C182: 2579.016878
A183: =1+A182 -> 17 | B183: 0.02210358134 | C183: 8775.121791
A184: 18 | B184: 0.03859954723 | C184: 15324.02025
A185: 19 | B185: 0.05600582641 | C185: 22234.31309
A186: 20 | B186: 0.07432250418 | C186: 29506.03416
A187: 21 | B187: 0.093524461 | C187: 37129.21102
A188: 22 | B188: 0.1135590439 | C188: 45082.94044
A189: 23 | B189: 0.1343462993 | C189: 53335.48083
A190: 24 | B190: 0.1557831274 | C190: 61845.90156
A191: 25 | B191: 0.1777524129 | C191: 70567.70792

Sheet Cost_by_Year
A1: Transit Asset Rehabilitation/Replacement Vehicle Model
A2: Predicted Costs by Year
A4: Year-by-Year Data
A5: Year | B5: Lifetime Mileage at Which Vehicles are Replaced | C5: Annual Costs in Thousands of Dollars
C6: Agency Costs | H6: Passenger Delay Cost | I6: Total Cost
C7: New Buses | D7: Rehab. | E7: Maint. | F7: Energy | G7: Subtotal
A8: =+BaseYear+1 -> 2010 | B8: =Inputs_Results!F38 -> 530920.0171 | C8: =+Calculations!BC39/1000 -> 0 | D8: =+Calculations!BC69/1000 -> 19667.17952 | E8: =Calculations!BC132/1000 -> 61249.64556 | F8: =+Calculations!BC102/1000 -> 23471.82838 | G8: =SUM(C8:F8) -> 104388.6535 | H8: =+Calculations!BC162/1000 -> 4955.469887 | I8: =SUM(G8:H8) -> 109344.1233
A9: =1+A8 -> 2011 | B9: =B8 -> 530920.0171 | C9: =+Calculations!BC40/1000 -> 0 | D9: =+Calculations!BC70/1000 -> 20238.93608 | E9: =Calculations!BC133/1000 -> 64043.03915 | F9: =+Calculations!BC103/1000 -> 23998.5489 | G9: 108280.5241 | H9: =+Calculations!BC163/1000 -> 5315.214862 | I9: 113595.739
A10: 2012 | B10: =B9 -> 530920.0171 | C10: =+Calculations!BC41/1000 -> 46449 | D10: =+Calculations!BC71/1000 -> 18347.58722 | E10: =Calculations!BC134/1000 -> 64116.82223 | F10: =+Calculations!BC104/1000 -> 23990.21031 | G10: 152903.6198 | H10: =+Calculations!BC164/1000 -> 5340.473206 | I10: 158244.093
A11: 2013 | B11: 530920.0171 | C11: =+Calculations!BC42/1000 -> 63123 | D11: =+Calculations!BC72/1000 -> 16447.07089 | E11: =Calculations!BC135/1000 -> 60284.68166 | F11: =+Calculations!BC105/1000 -> 23236.29708 | G11: 163091.0496 | H11: =+Calculations!BC165/1000 -> 4868.251599 | I11: 167959.3012
A12: 2014 | B12: 530920.0171 | C12: =+Calculations!BC43/1000 -> 0 | D12: =+Calculations!BC73/1000 -> 18385.65939 | E12: =Calculations!BC136/1000 -> 59102.2719 | F12: =+Calculations!BC106/1000 -> 23010.19778 | G12: 100498.1291 | H12: =+Calculations!BC166/1000 -> 4717.863225 | I12: 105215.9923
A13: 2015 | B13: 530920.0171 | C13: =+Calculations!BC44/1000 -> 0 | D13: =+Calculations!BC74/1000 -> 19639.64119 | E13: =Calculations!BC137/1000 -> 61797.73089 | F13: =+Calculations!BC107/1000 -> 23526.55906 | G13: 104963.9311 | H13: =+Calculations!BC167/1000 -> 5060.359017 | I13: 110024.2902
A14: 2016 | B14: 530920.0171 | C14: =+Calculations!BC45/1000 -> 75430 | D14: =+Calculations!BC75/1000 -> 16736.13045 | E14: =Calculations!BC138/1000 -> 60304.57352 | F14: =+Calculations!BC108/1000 -> 23217.78342 | G14: 175688.4874 | H14: =+Calculations!BC168/1000 -> 4888.569033 | I14: 180577.0564
A15: 2017 | B15: 530920.0171 | C15: =+Calculations!BC46/1000 -> 3970 | D15: =+Calculations!BC76/1000 -> 18317.70741 | E15: =Calculations!BC139/1000 -> 58407.09508 | F15: =+Calculations!BC109/1000 -> 22846.7098 | G15: 103541.5123 | H15: =+Calculations!BC169/1000 -> 4654.910233 | I15: 108196.4225
A16: 2018 | B16: 530920.0171 | C16: =+Calculations!BC47/1000 -> 63520 | D16: =+Calculations!BC77/1000 -> 16534.54992 | E16: =Calculations!BC140/1000 -> 57032.51519 | F16: =+Calculations!BC110/1000 -> 22581.39995 | G16: 159668.4651 | H16: =+Calculations!BC170/1000 -> 4483.227024 | I16: 164151.6921
A17: 2019 | B17: 530920.0171 | C17: =+Calculations!BC48/1000 -> 15483 | D17: =+Calculations!BC78/1000 -> 17666.54986 | E17: =Calculations!BC141/1000 -> 54843.88055 | F17: =+Calculations!BC111/1000 -> 22172.59705 | G17: 110166.0275 | H17: =+Calculations!BC171/1000 -> 4198.869439 | I17: 114364.8969
A18: 2020 | B18: 530920.0171 | C18: =+Calculations!BC49/1000 -> 38112 | D18: =+Calculations!BC79/1000 -> 17318.85962 | E18: =Calculations!BC142/1000 -> 54217.69281 | F18: =+Calculations!BC112/1000 -> 22066.48086 | G18: 131715.0333 | H18: =+Calculations!BC172/1000 -> 4110.105249 | I18: 135825.1385
A19: 2021 | B19: 530920.0171 | C19: =+Calculations!BC50/1000 -> 9925 | D19: =+Calculations!BC80/1000 -> 18356.74611 | E19: =Calculations!BC143/1000 -> 53870.8328 | F19: =+Calculations!BC113/1000 -> 22020.02709 | G19: 104172.606 | H19: =+Calculations!BC173/1000 -> 4051.738033 | I19: 108224.344
A20: 2022 | B20: 530920.0171 | C20: =+Calculations!BC51/1000 -> 0 | D20: =+Calculations!BC81/1000 -> 19433.75225 | E20: =Calculations!BC144/1000 -> 55741.46557 | F20: =+Calculations!BC114/1000 -> 22401.83655 | G20: 97577.05437 | H20: =+Calculations!BC174/1000 -> 4271.488518 | I20: 101848.5429
A21: 2023 | B21: 530920.0171 | C21: =+Calculations!BC52/1000 -> 0 | D21: =+Calculations!BC82/1000 -> 20024.72309 | E21: =Calculations!BC145/1000 -> 58283.64931 | F21: =+Calculations!BC115/1000 -> 22904.54588 | G21: 101212.9183 | H21: =+Calculations!BC175/1000 -> 4581.579501 | I21: 105794.4978
A22: 2024 | B22: 530920.0171 | C22: =+Calculations!BC53/1000 -> 31760 | D22: =+Calculations!BC83/1000 -> 18837.17446 | E22: =Calculations!BC146/1000 -> 59046.25454 | F22: =+Calculations!BC116/1000 -> 23052.98536 | G22: 132696.4144 | H22: =+Calculations!BC176/1000 -> 4675.280897 | I22: 137371.6953
A23: 2025 | B23: 530920.0171 | C23: =+Calculations!BC54/1000 -> 0 | D23: =+Calculations!BC84/1000 -> 19624.90376 | E23: =Calculations!BC147/1000 -> 59800.89741 | F23: =+Calculations!BC117/1000 -> 23200.67709 | G23: 102626.4783 | H23: =+Calculations!BC177/1000 -> 4767.264944 | I23: 107393.7432
A24: 2026 | B24: 530920.0171 | C24: =+Calculations!BC55/1000 -> 0 | D24: =+Calculations!BC85/1000 -> 20188.87133 | E24: =Calculations!BC148/1000 -> 62528.21839 | F24: =+Calculations!BC118/1000 -> 23721.31283 | G24: 106438.4026 | H24: =+Calculations!BC178/1000 -> 5113.34708 | I24: 111551.7496
A25: 2027 | B25: 530920.0171 | C25: =+Calculations!BC56/1000 -> 46449 | D25: =+Calculations!BC86/1000 -> 18335.88863 | E25: =Calculations!BC149/1000 -> 62751.88476 | F25: =+Calculations!BC119/1000 -> 23742.86822 | G25: 151279.6416 | H25: =+Calculations!BC179/1000 -> 5156.527208 | I25: 156436.1688
A26: 2028 | B26: 530920.0171 | C26: =+Calculations!BC57/1000 -> 63123 | D26: =+Calculations!BC87/1000 -> 16434.39217 | E26: =Calculations!BC150/1000 -> 59355.05468 | F26: =+Calculations!BC120/1000 -> 23065.09344 | G26: 161977.5403 | H26: =+Calculations!BC180/1000 -> 4745.36504 | I26: 166722.9053
A27: 2029 | B27: 530920.0171 | C27: =+Calculations!BC58/1000 -> 0 | D27: =+Calculations!BC88/1000 -> 18370.46695 | E27: =Calculations!BC151/1000 -> 58410.07232 | F27: =+Calculations!BC121/1000 -> 22880.82689 | G27: 99661.36615 | H27: =+Calculations!BC181/1000 -> 4628.181068 | I27: 104289.5472
A28: 2030 | B28: 530920.0171 | C28: =+Calculations!BC59/1000 -> 0 | D28: =+Calculations!BC89/1000 -> 19620.17361 | E28: =Calculations!BC152/1000 -> 61073.96237 | F28: =+Calculations!BC122/1000 -> 23394.28502 | G28: 104088.421 | H28: =+Calculations!BC182/1000 -> 4964.166336 | I28: 109052.5873
A29: 2031 | B29: 530920.0171 | C29: =+Calculations!BC60/1000 -> 75430 | D29: =+Calculations!BC90/1000 -> 16710.7102 | E29: =Calculations!BC153/1000 -> 59591.58849 | F29: =+Calculations!BC123/1000 -> 23089.8201 | G29: 174822.1188 | H29: =+Calculations!BC183/1000 -> 4791.850799 | I29: 179613.9696
A30: 2032 | B30: 530920.0171 | C30: =+Calculations!BC61/1000 -> 3970 | D30: =+Calculations!BC91/1000 -> 18284.96409 | E30: =Calculations!BC154/1000 -> 57720.75566 | F30: =+Calculations!BC124/1000 -> 22725.61284 | G30: 102701.3326 | H30: =+Calculations!BC184/1000 -> 4559.992719 | I30: 107261.3253
A31: 2033 | B31: 530920.0171 | C31: =+Calculations!BC62/1000 -> 63520 | D31: =+Calculations!BC92/1000 -> 16534.54992 | E31: =Calculations!BC155/1000 -> 56529.62556 | F31: =+Calculations!BC125/1000 -> 22492.96548 | G31: 159077.141 | H31: =+Calculations!BC185/1000 -> 4413.408976 | I31: 163490.5499
A32: 2034 | B32: 530920.0171 | C32: =+Calculations!BC63/1000 -> 15483 | D32: =+Calculations!BC93/1000 -> 17666.54986 | E32: =Calculations!BC156/1000 -> 54556.80346 | F32: =+Calculations!BC126/1000 -> 22121.19129 | G32: 109827.5446 | H32: =+Calculations!BC186/1000 -> 4159.880845 | I32: 113987.4255
A33: 2035 | B33: 530920.0171 | C33: =+Calculations!BC64/1000 -> 38112 | D33: =+Calculations!BC94/1000 -> 17318.85962 | E33: =Calculations!BC157/1000 -> 53992.85303 | F33: =+Calculations!BC127/1000 -> 22026.36035 | G33: 131450.073 | H33: =+Calculations!BC187/1000 -> 4079.4787 | I33: 135529.5517
A34: 2036 | B34: 530920.0171 | C34: =+Calculations!BC65/1000 -> 9925 | D34: =+Calculations!BC95/1000 -> 18356.74611 | E34: =Calculations!BC158/1000 -> 53688.77862 | F34: =+Calculations!BC128/1000 -> 21987.74189 | G34: 103958.2666 | H34: =+Calculations!BC188/1000 -> 4026.791659 | I34: 107985.0583
A35: 2037 | B35: 530920.0171 | C35: =+Calculations!BC66/1000 -> 0 | D35: =+Calculations!BC96/1000 -> 19433.75225 | E35: =Calculations!BC159/1000 -> 55563.13699 | F35: =+Calculations!BC129/1000 -> 22370.80341 | G35: 97367.69265 | H35: =+Calculations!BC189/1000 -> 4246.528134 | I35: 101614.2208
A36: 2038 | B36: 530920.0171 | C36: =+Calculations!BC67/1000 -> 0 | D36: =+Calculations!BC97/1000 -> 20024.72309 | E36: =Calculations!BC160/1000 -> 58097.18774 | F36: =+Calculations!BC130/1000 -> 22872.81634 | G36: 100994.7272 | H36: =+Calculations!BC190/1000 -> 4554.807104 | I36: 105549.5343
A37: 2039 | B37: 530920.0171 | C37: =+Calculations!BC68/1000 -> 31760 | D37: =+Calculations!BC98/1000 -> 18837.17446 | E37: =Calculations!BC161/1000 -> 58949.85864 | F37: =+Calculations!BC131/1000 -> 23036.85458 | G37: 132583.8877 | H37: =+Calculations!BC191/1000 -> 4661.174452 | I37: 137245.0621

Sheet Calculations
A1: Transit Asset Rehabilitation/Replacement Vehicle Model
A2: Inputs and Summary Results
A4: Calculations by Fleet Group and Year
A5: Index | D5: 1 | E5: =1+D5 -> 2 | F5: =1+E5 -> 3 | G5: 4 | H5: 5 | I5: 6 | J5: 7 | K5: 8 | L5: 9 | M5: 10 | N5: 11 | O5: 12 | P5: 13 | Q5: 14 | R5: 15 | S5: 16 | T5: 17 | U5: 18 | V5: 19 | W5: 20 | X5: 21 | Y5: 22 | Z5: 23 | AA5: 24 | AB5: 25 | AC5: 26 | AD5: 27 | AE5: 28 | AF5: 29 | AG5: 30 | AH5: 31 | AI5: 32 | AJ5: 33 | AK5: 34 | AL5: 35 | AM5: 36 | AN5: 37 | AO5: 38 | AP5: 39 | AQ5: 40 | AR5: 41 | AS5: =1+AR5 -> 42 | AT5: 43 | AU5: 44 | AV5: 45 | AW5: 46 | AX5: 47 | AY5: 48 | AZ5: 49 | BA5: 50
A6: Vehicles | D6: =INDEX(TotalFleet,D5) -> 90 | E6: 25 | F6: 117 | G6: 25 | H6: 159 | I6: 40 | J6: 60 | K6: 165 | L6: 10 | M6: 39 | N6: 6 | O6: 60 | P6: 26 | Q6: 54 | R6: 0 | S6: 0 | T6: 0 | U6: 0 | V6: 0 | W6: 0 | X6: 0 | Y6: 0 | Z6: 0 | AA6: 0 | AB6: 0 | AC6: 0 | AD6: 0 | AE6: 0 | AF6: 0 | AG6: 0 | AH6: 0 | AI6: 0 | AJ6: =INDEX(TotalFleet,AJ5) -> 0 | AK6: 0 | AL6: 0 | AM6: 0 | AN6: 0 | AO6: 0 | AP6: 0 | AQ6: 0 | AR6: 0 | AS6: 0 | AT6: 0 | AU6: 0 | AV6: 0 | AW6: 0 | AX6: 0 | AY6: 0 | AZ6: 0 | BA6: 0 | BC6: =SUM(D6:BB6) -> 876
A7: LTDMiles | C7: 0 | D7: =INDEX(AvgLifetimeMileage,D5) -> 147882 | E7: 114252 | F7: 456352 | G7: 296374 | H7: 418462 | I7: 246390 | J7: 245590 | K7: 285708 | L7: 272171 | M7: 191941 | N7: 162325 | O7: 212726 | P7: 25063 | Q7: 18970 | R7: 0 | S7: 0 | T7: 0 | U7: 0 | V7: 0 | W7: 0 | X7: 0 | Y7: 0 | Z7: 0 | AA7: 0 | AB7: 0 | AC7: 0 | AD7: 0 | AE7: 0 | AF7: 0 | AG7: 0 | AH7: 0 | AI7: 0 | AJ7: =INDEX(AvgLifetimeMileage,AJ5) -> 0 | AK7: 0 | AL7: 0 | AM7: 0 | AN7: 0 | AO7: 0 | AP7: 0 | AQ7: 0 | AR7: 0 | AS7: 0 | AT7: 0 | AU7: 0 | AV7: 0 | AW7: 0 | AX7: 0 | AY7: 0 | AZ7: 0 | BA7: 0
A8: Miles by Fleet Group and Year
A9: =IF(Cost_by_Year!B8="",PolicyLTDMiles,Cost_by_Year!B8) -> 530920.0171 | C9: =1+C7 -> 1 | D9: =IF(D7+AnnMiles>=$A9,0,D7+AnnMiles) -> 183276.6678 | E9: 149646.6678 | F9: 491746.6678 | G9: 331768.6678 | H9: 453856.6678 | I9: 281784.6678 | J9: 280984.6678 | K9: 321102.6678 | L9: 307565.6678 | M9: 227335.6678 | N9: 197719.6678 | O9: 248120.6678 | P9: 60457.66781 | Q9: 54364.66781 | R9: 35394.66781 | S9: 35394.66781 | T9: 35394.66781 | U9: 35394.66781 | V9: 35394.66781 | W9: 35394.66781 | X9: 35394.66781 | Y9: 35394.66781 | Z9: 35394.66781 | AA9: 35394.66781 | AB9: 35394.66781 | AC9: 35394.66781 | AD9: 35394.66781 | AE9: 35394.66781 | AF9: 35394.66781 | AG9: 35394.66781 | AH9: 35394.66781 | AI9: 35394.66781 | AJ9: =IF(AJ7+AnnMiles>=$A9,0,AJ7+AnnMiles) -> 35394.66781 | AK9: 35394.66781 | AL9: 35394.66781 | AM9: 35394.66781 | AN9: 35394.66781 | AO9: 35394.66781 | AP9: 35394.66781 | AQ9: 35394.66781 | AR9: 35394.66781 | AS9: 35394.66781 | AT9: 35394.66781 | AU9: 35394.66781 | AV9: 35394.66781 | AW9: 35394.66781 | AX9: 35394.66781 | AY9: 35394.66781 | AZ9: 35394.66781 | BA9: 35394.66781
A10: =IF(Cost_by_Year!B9="",PolicyLTDMiles,Cost_by_Year!B9) -> 530920.0171 | C10: =1+C9 -> 2 | D10: =IF(D9+AnnMiles>=$A10,0,D9+AnnMiles) -> 218671.3356 | E10: =IF(E9+AnnMiles>=$A10,0,E9+AnnMiles) -> 185041.3356 | F10: =IF(F9+AnnMiles>=$A10,0,F9+AnnMiles) -> 527141.3356 | G10: =IF(G9+AnnMiles>=$A10,0,G9+AnnMiles) -> 367163.3356 | H10: =IF(H9+AnnMiles>=$A10,0,H9+AnnMiles) -> 489251.3356 | I10: =IF(I9+AnnMiles>=$A10,0,I9+AnnMiles) -> 317179.3356 | J10: =IF(J9+AnnMiles>=$A10,0,J9+AnnMiles) -> 316379.3356 | K10: =IF(K9+AnnMiles>=$A10,0,K9+AnnMiles) -> 356497.3356 | L10: =IF(L9+AnnMiles>=$A10,0,L9+AnnMiles) -> 342960.3356 | M10: =IF(M9+AnnMiles>=$A10,0,M9+AnnMiles) -> 262730.3356 | N10: =IF(N9+AnnMiles>=$A10,0,N9+AnnMiles) -> 233114.3356 | O10: =IF(O9+AnnMiles>=$A10,0,O9+AnnMiles) -> 283515.3356 | P10: =IF(P9+AnnMiles>=$A10,0,P9+AnnMiles) -> 95852.33562 | Q10: =IF(Q9+AnnMiles>=$A10,0,Q9+AnnMiles) -> 89759.33562 | R10: =IF(R9+AnnMiles>=$A10,0,R9+AnnMiles) -> 70789.33562 | S10: =IF(S9+AnnMiles>=$A10,0,S9+AnnMiles) -> 70789.33562 | T10: =IF(T9+AnnMiles>=$A10,0,T9+AnnMiles) -> 70789.33562 | U10: =IF(U9+AnnMiles>=$A10,0,U9+AnnMiles) -> 70789.33562 | V10: =IF(V9+AnnMiles>=$A10,0,V9+AnnMiles) -> 70789.33562 | W10: =IF(W9+AnnMiles>=$A10,0,W9+AnnMiles) -> 70789.33562 | X10: =IF(X9+AnnMiles>=$A10,0,X9+AnnMiles) -> 70789.33562 | Y10: =IF(Y9+AnnMiles>=$A10,0,Y9+AnnMiles) -> 70789.33562 | Z10: =IF(Z9+AnnMiles>=$A10,0,Z9+AnnMiles) -> 70789.33562 | AA10: =IF(AA9+AnnMiles>=$A10,0,AA9+AnnMiles) -> 70789.33562 | AB10: =IF(AB9+AnnMiles>=$A10,0,AB9+AnnMiles) -> 70789.33562 | AC10: =IF(AC9+AnnMiles>=$A10,0,AC9+AnnMiles) -> 70789.33562 | AD10: =IF(AD9+AnnMiles>=$A10,0,AD9+AnnMiles) -> 70789.33562 | AE10: =IF(AE9+AnnMiles>=$A10,0,AE9+AnnMiles) -> 70789.33562 | AF10: =IF(AF9+AnnMiles>=$A10,0,AF9+AnnMiles) -> 70789.33562 | AG10: =IF(AG9+AnnMiles>=$A10,0,AG9+AnnMiles) -> 70789.33562 | AH10: =IF(AH9+AnnMiles>=$A10,0,AH9+AnnMiles) -> 70789.33562 | AI10: =IF(AI9+AnnMiles>=$A10,0,AI9+AnnMiles) -> 70789.33562 | AJ10: =IF(AJ9+AnnMiles>=$A10,0,AJ9+AnnMiles) -> 70789.33562 | AK10: =IF(AK9+AnnMiles>=$A10,0,AK9+AnnMiles) -> 70789.33562 | AL10: =IF(AL9+AnnMiles>=$A10,0,AL9+AnnMiles) -> 70789.33562 | AM10: =IF(AM9+AnnMiles>=$A10,0,AM9+AnnMiles) -> 70789.33562 | AN10: =IF(AN9+AnnMiles>=$A10,0,AN9+AnnMiles) -> 70789.33562 | AO10: =IF(AO9+AnnMiles>=$A10,0,AO9+AnnMiles) -> 70789.33562 | AP10: =IF(AP9+AnnMiles>=$A10,0,AP9+AnnMiles) -> 70789.33562 | AQ10: =IF(AQ9+AnnMiles>=$A10,0,AQ9+AnnMiles) -> 70789.33562 | AR10: =IF(AR9+AnnMiles>=$A10,0,AR9+AnnMiles) -> 70789.33562 | AS10: =IF(AS9+AnnMiles>=$A10,0,AS9+AnnMiles) -> 70789.33562 | AT10: =IF(AT9+AnnMiles>=$A10,0,AT9+AnnMiles) -> 70789.33562 | AU10: =IF(AU9+AnnMiles>=$A10,0,AU9+AnnMiles) -> 70789.33562 | AV10: =IF(AV9+AnnMiles>=$A10,0,AV9+AnnMiles) -> 70789.33562 | AW10: =IF(AW9+AnnMiles>=$A10,0,AW9+AnnMiles) -> 70789.33562 | AX10: =IF(AX9+AnnMiles>=$A10,0,AX9+AnnMiles) -> 70789.33562 | AY10: =IF(AY9+AnnMiles>=$A10,0,AY9+AnnMiles) -> 70789.33562 | AZ10: =IF(AZ9+AnnMiles>=$A10,0,AZ9+AnnMiles) -> 70789.33562 | BA10: =IF(BA9+AnnMiles>=$A10,0,BA9+AnnMiles) -> 70789.33562
A11: =IF(Cost_by_Year!B10="",PolicyLTDMiles,Cost_by_Year!B10) -> 530920.0171 | C11: 3 | D11: 254066.0034 | E11: 220436.0034 | F11: 0 | G11: 402558.0034 | H11: 524646.0034 | I11: 352574.0034 | J11: 351774.0034 | K11: 391892.0034 | L11: 378355.0034 | M11: 298125.0034 | N11: 268509.0034 | O11: 318910.0034 | P11: 131247.0034 | Q11: 125154.0034 | R11: 106184.0034 | S11: 106184.0034 | T11: 106184.0034 | U11: 106184.0034 | V11: 106184.0034 | W11: 106184.0034 | X11: 106184.0034 | Y11: 106184.0034 | Z11: 106184.0034 | AA11: 106184.0034 | AB11: 106184.0034 | AC11: 106184.0034 | AD11: 106184.0034 | AE11: 106184.0034 | AF11: 106184.0034 | AG11: 106184.0034 | AH11: 106184.0034 | AI11: 106184.0034 | AJ11: 106184.0034 | AK11: 106184.0034 | AL11: 106184.0034 | AM11: 106184.0034 | AN11: 106184.0034 | AO11: 106184.0034 | AP11: 106184.0034 | AQ11: 106184.0034 | AR11: 106184.0034 | AS11: 106184.0034 | AT11: 106184.0034 | AU11: 106184.0034 | AV11: 106184.0034 | AW11: 106184.0034 | AX11: 106184.0034 | AY11: 106184.0034 | AZ11: 106184.0034 | BA11: 106184.0034
A12: =IF(Cost_by_Year!B11="",PolicyLTDMiles,Cost_by_Year!B11) -> 530920.0171 | C12: 4 | D12: 289460.6712 | E12: 255830.6712 | F12: 35394.66781 | G12: 437952.6712 | H12: 0 | I12: 387968.6712 | J12: 387168.6712 | K12: 427286.6712 | L12: 413749.6712 | M12: 333519.6712 | N12: 303903.6712 | O12: 354304.6712 | P12: 166641.6712 | Q12: 160548.6712 | R12: 141578.6712 | S12: 141578.6712 | T12: 141578.6712 | U12: 141578.6712 | V12: 141578.6712 | W12: 141578.6712 | X12: 141578.6712 | Y12: 141578.6712 | Z12: 141578.6712 | AA12: 141578.6712 | AB12: 141578.6712 | AC12: 141578.6712 | AD12: 141578.6712 | AE12: 141578.6712 | AF12: 141578.6712 | AG12: 141578.6712 | AH12: 141578.6712 | AI12: 141578.6712 | AJ12: 141578.6712 | AK12: 141578.6712 | AL12: 141578.6712 | AM12: 141578.6712 | AN12: 141578.6712 | AO12: 141578.6712 | AP12: 141578.6712 | AQ12: 141578.6712 | AR12: 141578.6712 | AS12: 141578.6712 | AT12: 141578.6712 | AU12: 141578.6712 | AV12: 141578.6712 | AW12: 141578.6712 | AX12: 141578.6712 | AY12: 141578.6712 | AZ12: 141578.6712 | BA12: 141578.6712
A13: =IF(Cost_by_Year!B12="",PolicyLTDMiles,Cost_by_Year!B12) -> 530920.0171 | C13: 5 | D13: 324855.339 | E13: 291225.339 | F13: 70789.33562 | G13: 473347.339 | H13: 35394.66781 | I13: 423363.339 | J13: 422563.339 | K13: 462681.339 | L13: 449144.339 | M13: 368914.339 | N13: 339298.339 | O13: 389699.339 | P13: 202036.339 | Q13: 195943.339 | R13: 176973.339 | S13: 176973.339 | T13: 176973.339 | U13: 176973.339 | V13: 176973.339 | W13: 176973.339 | X13: 176973.339 | Y13: 176973.339 | Z13: 176973.339 | AA13: 176973.339 | AB13: 176973.339 | AC13: 176973.339 | AD13: 176973.339 | AE13: 176973.339 | AF13: 176973.339 | AG13: 176973.339 | AH13: 176973.339 | AI13: 176973.339 | AJ13: 176973.339 | AK13: 176973.339 | AL13: 176973.339 | AM13: 176973.339 | AN13: 176973.339 | AO13: 176973.339 | AP13: 176973.339 | AQ13: 176973.339 | AR13: 176973.339 | AS13: 176973.339 | AT13: 176973.339 | AU13: 176973.339 | AV13: 176973.339 | AW13: 176973.339 | AX13: 176973.339 | AY13: 176973.339 | AZ13: 176973.339 | BA13: 176973.339
A14: =IF(Cost_by_Year!B13="",PolicyLTDMiles,Cost_by_Year!B13) -> 530920.0171 | C14: 6 | D14: 360250.0068 | E14: 326620.0068 | F14: 106184.0034 | G14: 508742.0068 | H14: 70789.33562 | I14: 458758.0068 | J14: 457958.0068 | K14: 498076.0068 | L14: 484539.0068 | M14: 404309.0068 | N14: 374693.0068 | O14: 425094.0068 | P14: 237431.0068 | Q14: 231338.0068 | R14: 212368.0068 | S14: 212368.0068 | T14: 212368.0068 | U14: 212368.0068 | V14: 212368.0068 | W14: 212368.0068 | X14: 212368.0068 | Y14: 212368.0068 | Z14: 212368.0068 | AA14: 212368.0068 | AB14: 212368.0068 | AC14: 212368.0068 | AD14: 212368.0068 | AE14: 212368.0068 | AF14: 212368.0068 | AG14: 212368.0068 | AH14: 212368.0068 | AI14: 212368.0068 | AJ14: 212368.0068 | AK14: 212368.0068 | AL14: 212368.0068 | AM14: 212368.0068 | AN14: 212368.0068 | AO14: 212368.0068 | AP14: 212368.0068 | AQ14: 212368.0068 | AR14: 212368.0068 | AS14: 212368.0068 | AT14: 212368.0068 | AU14: 212368.0068 | AV14: 212368.0068 | AW14: 212368.0068 | AX14: 212368.0068 | AY14: 212368.0068 | AZ14: 212368.0068 | BA14: 212368.0068
A15: =IF(Cost_by_Year!B14="",PolicyLTDMiles,Cost_by_Year!B14) -> 530920.0171 | C15: 7 | D15: 395644.6747 | E15: 362014.6747 | F15: 141578.6712 | G15: 0 | H15: 106184.0034 | I15: 494152.6747 | J15: 493352.6747 | K15: 0 | L15: 519933.6747 | M15: 439703.6747 | N15: 410087.6747 | O15: 460488.6747 | P15: 272825.6747 | Q15: 266732.6747 | R15: 247762.6747 | S15: 247762.6747 | T15: 247762.6747 | U15: 247762.6747 | V15: 247762.6747 | W15: 247762.6747 | X15: 247762.6747 | Y15: 247762.6747 | Z15: 247762.6747 | AA15: 247762.6747 | AB15: 247762.6747 | AC15: 247762.6747 | AD15: 247762.6747 | AE15: 247762.6747 | AF15: 247762.6747 | AG15: 247762.6747 | AH15: 247762.6747 | AI15: 247762.6747 | AJ15: 247762.6747 | AK15: 247762.6747 | AL15: 247762.6747 | AM15: 247762.6747 | AN15: 247762.6747 | AO15: 247762.6747 | AP15: 247762.6747 | AQ15: 247762.6747 | AR15: 247762.6747 | AS15: 247762.6747 | AT15: 247762.6747 | AU15: 247762.6747 | AV15: 247762.6747 | AW15: 247762.6747 | AX15: 247762.6747 | AY15: 247762.6747 | AZ15: 247762.6747 | BA15: 247762.6747
A16: =IF(Cost_by_Year!B15="",PolicyLTDMiles,Cost_by_Year!B15) -> 530920.0171 | C16: 8 | D16: 431039.3425 | E16: 397409.3425 | F16: 176973.339 | G16: 35394.66781 | H16: 141578.6712 | I16: 529547.3425 | J16: 528747.3425 | K16: 35394.66781 | L16: 0 | M16: 475098.3425 | N16: 445482.3425 | O16: 495883.3425 | P16: 308220.3425 | Q16: 302127.3425 | R16: 283157.3425 | S16: 283157.3425 | T16: 283157.3425 | U16: 283157.3425 | V16: 283157.3425 | W16: 283157.3425 | X16: 283157.3425 | Y16: 283157.3425 | Z16: 283157.3425 | AA16: 283157.3425 | AB16: 283157.3425 | AC16: 283157.3425 | AD16: 283157.3425 | AE16: 283157.3425 | AF16: 283157.3425 | AG16: 283157.3425 | AH16: 283157.3425 | AI16: 283157.3425 | AJ16: 283157.3425 | AK16: 283157.3425 | AL16: 283157.3425 | AM16: 283157.3425 | AN16: 283157.3425 | AO16: 283157.3425 | AP16: 283157.3425 | AQ16: 283157.3425 | AR16: 283157.3425 | AS16: 283157.3425 | AT16: 283157.3425 | AU16: 283157.3425 | AV16: 283157.3425 | AW16: 283157.3425 | AX16: 283157.3425 | AY16: 283157.3425 | AZ16: 283157.3425 | BA16: 283157.3425
A17: =IF(Cost_by_Year!B16="",PolicyLTDMiles,Cost_by_Year!B16) -> 530920.0171 | C17: 9 | D17: 466434.0103 | E17: 432804.0103 | F17: 212368.0068 | G17: 70789.33562 | H17: 176973.339 | I17: 0 | J17: 0 | K17: 70789.33562 | L17: 35394.66781 | M17: 510493.0103 | N17: 480877.0103 | O17: 0 | P17: 343615.0103 | Q17: 337522.0103 | R17: 318552.0103 | S17: 318552.0103 | T17: 318552.0103 | U17: 318552.0103 | V17: 318552.0103 | W17: 318552.0103 | X17: 318552.0103 | Y17: 318552.0103 | Z17: 318552.0103 | AA17: 318552.0103 | AB17: 318552.0103 | AC17: 318552.0103 | AD17: 318552.0103 | AE17: 318552.0103 | AF17: 318552.0103 | AG17: 318552.0103 | AH17: 318552.0103 | AI17: 318552.0103 | AJ17: 318552.0103 | AK17: 318552.0103 | AL17: 318552.0103 | AM17: 318552.0103 | AN17: 318552.0103 | AO17: 318552.0103 | AP17: 318552.0103 | AQ17: 318552.0103 | AR17: 318552.0103 | AS17: 318552.0103 | AT17: 318552.0103 | AU17: 318552.0103 | AV17: 318552.0103 | AW17: 318552.0103 | AX17: 318552.0103 | AY17: 318552.0103 | AZ17: 318552.0103 | BA17: 318552.0103
A18: =IF(Cost_by_Year!B17="",PolicyLTDMiles,Cost_by_Year!B17) -> 530920.0171 | C18: 10 | D18: 501828.6781 | E18: 468198.6781 | F18: 247762.6747 | G18: 106184.0034 | H18: 212368.0068 | I18: 35394.66781 | J18: 35394.66781 | K18: 106184.0034 | L18: 70789.33562 | M18: 0 | N18: 516271.6781 | O18: 35394.66781 | P18: 379009.6781 | Q18: 372916.6781 | R18: 353946.6781 | S18: 353946.6781 | T18: 353946.6781 | U18: 353946.6781 | V18: 353946.6781 | W18: 353946.6781 | X18: 353946.6781 | Y18: 353946.6781 | Z18: 353946.6781 | AA18: 353946.6781 | AB18: 353946.6781 | AC18: 353946.6781 | AD18: 353946.6781 | AE18: 353946.6781 | AF18: 353946.6781 | AG18: 353946.6781 | AH18: 353946.6781 | AI18: 353946.6781 | AJ18: 353946.6781 | AK18: 353946.6781 | AL18: 353946.6781 | AM18: 353946.6781 | AN18: 353946.6781 | AO18: 353946.6781 | AP18: 353946.6781 | AQ18: 353946.6781 | AR18: 353946.6781 | AS18: 353946.6781 | AT18: 353946.6781 | AU18: 353946.6781 | AV18: 353946.6781 | AW18: 353946.6781 | AX18: 353946.6781 | AY18: 353946.6781 | AZ18: 353946.6781 | BA18: 353946.6781
A19: =IF(Cost_by_Year!B18="",PolicyLTDMiles,Cost_by_Year!B18) -> 530920.0171 | C19: 11 | D19: 0 | E19: 503593.3459 | F19: 283157.3425 | G19: 141578.6712 | H19: 247762.6747 | I19: 70789.33562 | J19: 70789.33562 | K19: 141578.6712 | L19: 106184.0034 | M19: 35394.66781 | N19: 0 | O19: 70789.33562 | P19: 414404.3459 | Q19: 408311.3459 | R19: 389341.3459 | S19: 389341.3459 | T19: 389341.3459 | U19: 389341.3459 | V19: 389341.3459 | W19: 389341.3459 | X19: 389341.3459 | Y19: 389341.3459 | Z19: 389341.3459 | AA19: 389341.3459 | AB19: 389341.3459 | AC19: 389341.3459 | AD19: 389341.3459 | AE19: 389341.3459 | AF19: 389341.3459 | AG19: 389341.3459 | AH19: 389341.3459 | AI19: 389341.3459 | AJ19: 389341.3459 | AK19: 389341.3459 | AL19: 389341.3459 | AM19: 389341.3459 | AN19: 389341.3459 | AO19: 389341.3459 | AP19: 389341.3459 | AQ19: 389341.3459 | AR19: 389341.3459 | AS19: 389341.3459 | AT19: 389341.3459 | AU19: 389341.3459 | AV19: 389341.3459 | AW19: 389341.3459 | AX19: 389341.3459 | AY19: 389341.3459 | AZ19: 389341.3459 | BA19: 389341.3459
A20: =IF(Cost_by_Year!B19="",PolicyLTDMiles,Cost_by_Year!B19) -> 530920.0171 | C20: 12 | D20: 35394.66781 | E20: 0 | F20: 318552.0103 | G20: 176973.339 | H20: 283157.3425 | I20: 106184.0034 | J20: 106184.0034 | K20: 176973.339 | L20: 141578.6712 | M20: 70789.33562 | N20: 35394.66781 | O20: 106184.0034 | P20: 449799.0137 | Q20: 443706.0137 | R20: 424736.0137 | S20: 424736.0137 | T20: 424736.0137 | U20: 424736.0137 | V20: 424736.0137 | W20: 424736.0137 | X20: 424736.0137 | Y20: 424736.0137 | Z20: 424736.0137 | AA20: 424736.0137 | AB20: 424736.0137 | AC20: 424736.0137 | AD20: 424736.0137 | AE20: 424736.0137 | AF20: 424736.0137 | AG20: 424736.0137 | AH20: 424736.0137 | AI20: 424736.0137 | AJ20: 424736.0137 | AK20: 424736.0137 | AL20: 424736.0137 | AM20: 424736.0137 | AN20: 424736.0137 | AO20: 424736.0137 | AP20: 424736.0137 | AQ20: 424736.0137 | AR20: 424736.0137 | AS20: 424736.0137 | AT20: 424736.0137 | AU20: 424736.0137 | AV20: 424736.0137 | AW20: 424736.0137 | AX20: 424736.0137 | AY20: 424736.0137 | AZ20: 424736.0137 | BA20: 424736.0137
A21: =IF(Cost_by_Year!B20="",PolicyLTDMiles,Cost_by_Year!B20) -> 530920.0171 | C21: 13 | D21: 70789.33562 | E21: 35394.66781 | F21: 353946.6781 | G21: 212368.0068 | H21: 318552.0103 | I21: 141578.6712 | J21: 141578.6712 | K21: 212368.0068 | L21: 176973.339 | M21: 106184.0034 | N21: 70789.33562 | O21: 141578.6712 | P21: 485193.6815 | Q21: 479100.6815 | R21: 460130.6815 | S21: 460130.6815 | T21: 460130.6815 | U21: 460130.6815 | V21: 460130.6815 | W21: 460130.6815 | X21: 460130.6815 | Y21: 460130.6815 | Z21: 460130.6815 | AA21: 460130.6815 | AB21: 460130.6815 | AC21: 460130.6815 | AD21: 460130.6815 | AE21: 460130.6815 | AF21: 460130.6815 | AG21: 460130.6815 | AH21: 460130.6815 | AI21: 460130.6815 | AJ21: 460130.6815 | AK21: 460130.6815 | AL21: 460130.6815 | AM21: 460130.6815 | AN21: 460130.6815 | AO21: 460130.6815 | AP21: 460130.6815 | AQ21: 460130.6815 | AR21: 460130.6815 | AS21: 460130.6815 | AT21: 460130.6815 | AU21: 460130.6815 | AV21: 460130.6815 | AW21: 460130.6815 | AX21: 460130.6815 | AY21: 460130.6815 | AZ21: 460130.6815 | BA21: 460130.6815
A22: =IF(Cost_by_Year!B21="",PolicyLTDMiles,Cost_by_Year!B21) -> 530920.0171 | C22: 14 | D22: 106184.0034 | E22: 70789.33562 | F22: 389341.3459 | G22: 247762.6747 | H22: 353946.6781 | I22: 176973.339 | J22: 176973.339 | K22: 247762.6747 | L22: 212368.0068 | M22: 141578.6712 | N22: 106184.0034 | O22: 176973.339 | P22: 520588.3493 | Q22: 514495.3493 | R22: 495525.3493 | S22: 495525.3493 | T22: 495525.3493 | U22: 495525.3493 | V22: 495525.3493 | W22: 495525.3493 | X22: 495525.3493 | Y22: 495525.3493 | Z22: 495525.3493 | AA22: 495525.3493 | AB22: 495525.3493 | AC22: 495525.3493 | AD22: 495525.3493 | AE22: 495525.3493 | AF22: 495525.3493 | AG22: 495525.3493 | AH22: 495525.3493 | AI22: 495525.3493 | AJ22: 495525.3493 | AK22: 495525.3493 | AL22: 495525.3493 | AM22: 495525.3493 | AN22: 495525.3493 | AO22: 495525.3493 | AP22: 495525.3493 | AQ22: 495525.3493 | AR22: 495525.3493 | AS22: 495525.3493 | AT22: 495525.3493 | AU22: 495525.3493 | AV22: 495525.3493 | AW22: 495525.3493 | AX22: 495525.3493 | AY22: 495525.3493 | AZ22: 495525.3493 | BA22: 495525.3493
A23: =IF(Cost_by_Year!B22="",PolicyLTDMiles,Cost_by_Year!B22) -> 530920.0171 | C23: 15 | D23: 141578.6712 | E23: 106184.0034 | F23: 424736.0137 | G23: 283157.3425 | H23: 389341.3459 | I23: 212368.0068 | J23: 212368.0068 | K23: 283157.3425 | L23: 247762.6747 | M23: 176973.339 | N23: 141578.6712 | O23: 212368.0068 | P23: 0 | Q23: 0 | R23: 0 | S23: 0 | T23: 0 | U23: 0 | V23: 0 | W23: 0 | X23: 0 | Y23: 0 | Z23: 0 | AA23: 0 | AB23: 0 | AC23: 0 | AD23: 0 | AE23: 0 | AF23: 0 | AG23: 0 | AH23: 0 | AI23: 0 | AJ23: 0 | AK23: 0 | AL23: 0 | AM23: 0 | AN23: 0 | AO23: 0 | AP23: 0 | AQ23: 0 | AR23: 0 | AS23: 0 | AT23: 0 | AU23: 0 | AV23: 0 | AW23: 0 | AX23: 0 | AY23: 0 | AZ23: 0 | BA23: 0
A24: =IF(Cost_by_Year!B23="",PolicyLTDMiles,Cost_by_Year!B23) -> 530920.0171 | C24: 16 | D24: 176973.339 | E24: 141578.6712 | F24: 460130.6815 | G24: 318552.0103 | H24: 424736.0137 | I24: 247762.6747 | J24: 247762.6747 | K24: 318552.0103 | L24: 283157.3425 | M24: 212368.0068 | N24: 176973.339 | O24: 247762.6747 | P24: 35394.66781 | Q24: 35394.66781 | R24: 35394.66781 | S24: 35394.66781 | T24: 35394.66781 | U24: 35394.66781 | V24: 35394.66781 | W24: 35394.66781 | X24: 35394.66781 | Y24: 35394.66781 | Z24: 35394.66781 | AA24: 35394.66781 | AB24: 35394.66781 | AC24: 35394.66781 | AD24: 35394.66781 | AE24: 35394.66781 | AF24: 35394.66781 | AG24: 35394.66781 | AH24: 35394.66781 | AI24: 35394.66781 | AJ24: 35394.66781 | AK24: 35394.66781 | AL24: 35394.66781 | AM24: 35394.66781 | AN24: 35394.66781 | AO24: 35394.66781 | AP24: 35394.66781 | AQ24: 35394.66781 | AR24: 35394.66781 | AS24: 35394.66781 | AT24: 35394.66781 | AU24: 35394.66781 | AV24: 35394.66781 | AW24: 35394.66781 | AX24: 35394.66781 | AY24: 35394.66781 | AZ24: 35394.66781 | BA24: 35394.66781
A25: =IF(Cost_by_Year!B24="",PolicyLTDMiles,Cost_by_Year!B24) -> 530920.0171 | C25: 17 | D25: 212368.0068 | E25: 176973.339 | F25: 495525.3493 | G25: 353946.6781 | H25: 460130.6815 | I25: 283157.3425 | J25: 283157.3425 | K25: 353946.6781 | L25: 318552.0103 | M25: 247762.6747 | N25: 212368.0068 | O25: 283157.3425 | P25: 70789.33562 | Q25: 70789.33562 | R25: 70789.33562 | S25: 70789.33562 | T25: 70789.33562 | U25: 70789.33562 | V25: 70789.33562 | W25: 70789.33562 | X25: 70789.33562 | Y25: 70789.33562 | Z25: 70789.33562 | AA25: 70789.33562 | AB25: 70789.33562 | AC25: 70789.33562 | AD25: 70789.33562 | AE25: 70789.33562 | AF25: 70789.33562 | AG25: 70789.33562 | AH25: 70789.33562 | AI25: 70789.33562 | AJ25: 70789.33562 | AK25: 70789.33562 | AL25: 70789.33562 | AM25: 70789.33562 | AN25: 70789.33562 | AO25: 70789.33562 | AP25: 70789.33562 | AQ25: 70789.33562 | AR25: 70789.33562 | AS25: 70789.33562 | AT25: 70789.33562 | AU25: 70789.33562 | AV25: 70789.33562 | AW25: 70789.33562 | AX25: 70789.33562 | AY25: 70789.33562 | AZ25: 70789.33562 | BA25: 70789.33562
A26: =IF(Cost_by_Year!B25="",PolicyLTDMiles,Cost_by_Year!B25) -> 530920.0171 | C26: 18 | D26: 247762.6747 | E26: 212368.0068 | F26: 0 | G26: 389341.3459 | H26: 495525.3493 | I26: 318552.0103 | J26: 318552.0103 | K26: 389341.3459 | L26: 353946.6781 | M26: 283157.3425 | N26: 247762.6747 | O26: 318552.0103 | P26: 106184.0034 | Q26: 106184.0034 | R26: 106184.0034 | S26: 106184.0034 | T26: 106184.0034 | U26: 106184.0034 | V26: 106184.0034 | W26: 106184.0034 | X26: 106184.0034 | Y26: 106184.0034 | Z26: 106184.0034 | AA26: 106184.0034 | AB26: 106184.0034 | AC26: 106184.0034 | AD26: 106184.0034 | AE26: 106184.0034 | AF26: 106184.0034 | AG26: 106184.0034 | AH26: 106184.0034 | AI26: 106184.0034 | AJ26: 106184.0034 | AK26: 106184.0034 | AL26: 106184.0034 | AM26: 106184.0034 | AN26: 106184.0034 | AO26: 106184.0034 | AP26: 106184.0034 | AQ26: 106184.0034 | AR26: 106184.0034 | AS26: 106184.0034 | AT26: 106184.0034 | AU26: 106184.0034 | AV26: 106184.0034 | AW26: 106184.0034 | AX26: 106184.0034 | AY26: 106184.0034 | AZ26: 106184.0034 | BA26: 106184.0034
A27: =IF(Cost_by_Year!B26="",PolicyLTDMiles,Cost_by_Year!B26) -> 530920.0171 | C27: 19 | D27: 283157.3425 | E27: 247762.6747 | F27: 35394.66781 | G27: 424736.0137 | H27: 0 | I27: 353946.6781 | J27: 353946.6781 | K27: 424736.0137 | L27: 389341.3459 | M27: 318552.0103 | N27: 283157.3425 | O27: 353946.6781 | P27: 141578.6712 | Q27: 141578.6712 | R27: 141578.6712 | S27: 141578.6712 | T27: 141578.6712 | U27: 141578.6712 | V27: 141578.6712 | W27: 141578.6712 | X27: 141578.6712 | Y27: 141578.6712 | Z27: 141578.6712 | AA27: 141578.6712 | AB27: 141578.6712 | AC27: 141578.6712 | AD27: 141578.6712 | AE27: 141578.6712 | AF27: 141578.6712 | AG27: 141578.6712 | AH27: 141578.6712 | AI27: 141578.6712 | AJ27: 141578.6712 | AK27: 141578.6712 | AL27: 141578.6712 | AM27: 141578.6712 | AN27: 141578.6712 | AO27: 141578.6712 | AP27: 141578.6712 | AQ27: 141578.6712 | AR27: 141578.6712 | AS27: 141578.6712 | AT27: 141578.6712 | AU27: 141578.6712 | AV27: 141578.6712 | AW27: 141578.6712 | AX27: 141578.6712 | AY27: 141578.6712 | AZ27: 141578.6712 | BA27: 141578.6712
A28: =IF(Cost_by_Year!B27="",PolicyLTDMiles,Cost_by_Year!B27) -> 530920.0171 | C28: 20 | D28: 318552.0103 | E28: 283157.3425 | F28: 70789.33562 | G28: 460130.6815 | H28: 35394.66781 | I28: 389341.3459 | J28: 389341.3459 | K28: 460130.6815 | L28: 424736.0137 | M28: 353946.6781 | N28: 318552.0103 | O28: 389341.3459 | P28: 176973.339 | Q28: 176973.339 | R28: 176973.339 | S28: 176973.339 | T28: 176973.339 | U28: 176973.339 | V28: 176973.339 | W28: 176973.339 | X28: 176973.339 | Y28: 176973.339 | Z28: 176973.339 | AA28: 176973.339 | AB28: 176973.339 | AC28: 176973.339 | AD28: 176973.339 | AE28: 176973.339 | AF28: 176973.339 | AG28: 176973.339 | AH28: 176973.339 | AI28: 176973.339 | AJ28: 176973.339 | AK28: 176973.339 | AL28: 176973.339 | AM28: 176973.339 | AN28: 176973.339 | AO28: 176973.339 | AP28: 176973.339 | AQ28: 176973.339 | AR28: 176973.339 | AS28: 176973.339 | AT28: 176973.339 | AU28: 176973.339 | AV28: 176973.339 | AW28: 176973.339 | AX28: 176973.339 | AY28: 176973.339 | AZ28: 176973.339 | BA28: 176973.339
A29: =IF(Cost_by_Year!B28="",PolicyLTDMiles,Cost_by_Year!B28) -> 530920.0171 | C29: 21 | D29: 353946.6781 | E29: 318552.0103 | F29: 106184.0034 | G29: 495525.3493 | H29: 70789.33562 | I29: 424736.0137 | J29: 424736.0137 | K29: 495525.3493 | L29: 460130.6815 | M29: 389341.3459 | N29: 353946.6781 | O29: 424736.0137 | P29: 212368.0068 | Q29: 212368.0068 | R29: 212368.0068 | S29: 212368.0068 | T29: 212368.0068 | U29: 212368.0068 | V29: 212368.0068 | W29: 212368.0068 | X29: 212368.0068 | Y29: 212368.0068 | Z29: 212368.0068 | AA29: 212368.0068 | AB29: 212368.0068 | AC29: 212368.0068 | AD29: 212368.0068 | AE29: 212368.0068 | AF29: 212368.0068 | AG29: 212368.0068 | AH29: 212368.0068 | AI29: 212368.0068 | AJ29: 212368.0068 | AK29: 212368.0068 | AL29: 212368.0068 | AM29: 212368.0068 | AN29: 212368.0068 | AO29: 212368.0068 | AP29: 212368.0068 | AQ29: 212368.0068 | AR29: 212368.0068 | AS29: 212368.0068 | AT29: 212368.0068 | AU29: 212368.0068 | AV29: 212368.0068 | AW29: 212368.0068 | AX29: 212368.0068 | AY29: 212368.0068 | AZ29: 212368.0068 | BA29: 212368.0068
A30: =IF(Cost_by_Year!B29="",PolicyLTDMiles,Cost_by_Year!B29) -> 530920.0171 | C30: 22 | D30: 389341.3459 | E30: 353946.6781 | F30: 141578.6712 | G30: 0 | H30: 106184.0034 | I30: 460130.6815 | J30: 460130.6815 | K30: 0 | L30: 495525.3493 | M30: 424736.0137 | N30: 389341.3459 | O30: 460130.6815 | P30: 247762.6747 | Q30: 247762.6747 | R30: 247762.6747 | S30: 247762.6747 | T30: 247762.6747 | U30: 247762.6747 | V30: 247762.6747 | W30: 247762.6747 | X30: 247762.6747 | Y30: 247762.6747 | Z30: 247762.6747 | AA30: 247762.6747 | AB30: 247762.6747 | AC30: 247762.6747 | AD30: 247762.6747 | AE30: 247762.6747 | AF30: 247762.6747 | AG30: 247762.6747 | AH30: 247762.6747 | AI30: 247762.6747 | AJ30: 247762.6747 | AK30: 247762.6747 | AL30: 247762.6747 | AM30: 247762.6747 | AN30: 247762.6747 | AO30: 247762.6747 | AP30: 247762.6747 | AQ30: 247762.6747 | AR30: 247762.6747 | AS30: 247762.6747 | AT30: 247762.6747 | AU30: 247762.6747 | AV30: 247762.6747 | AW30: 247762.6747 | AX30: 247762.6747 | AY30: 247762.6747 | AZ30: 247762.6747 | BA30: 247762.6747
A31: =IF(Cost_by_Year!B30="",PolicyLTDMiles,Cost_by_Year!B30) -> 530920.0171 | C31: 23 | D31: 424736.0137 | E31: 389341.3459 | F31: 176973.339 | G31: 35394.66781 | H31: 141578.6712 | I31: 495525.3493 | J31: 495525.3493 | K31: 35394.66781 | L31: 0 | M31: 460130.6815 | N31: 424736.0137 | O31: 495525.3493 | P31: 283157.3425 | Q31: 283157.3425 | R31: 283157.3425 | S31: 283157.3425 | T31: 283157.3425 | U31: 283157.3425 | V31: 283157.3425 | W31: 283157.3425 | X31: 283157.3425 | Y31: 283157.3425 | Z31: 283157.3425 | AA31: 283157.3425 | AB31: 283157.3425 | AC31: 283157.3425 | AD31: 283157.3425 | AE31: 283157.3425 | AF31: 283157.3425 | AG31: 283157.3425 | AH31: 283157.3425 | AI31: 283157.3425 | AJ31: 283157.3425 | AK31: 283157.3425 | AL31: 283157.3425 | AM31: 283157.3425 | AN31: 283157.3425 | AO31: 283157.3425 | AP31: 283157.3425 | AQ31: 283157.3425 | AR31: 283157.3425 | AS31: 283157.3425 | AT31: 283157.3425 | AU31: 283157.3425 | AV31: 283157.3425 | AW31: 283157.3425 | AX31: 283157.3425 | AY31: 283157.3425 | AZ31: 283157.3425 | BA31: 283157.3425
A32: =IF(Cost_by_Year!B31="",PolicyLTDMiles,Cost_by_Year!B31) -> 530920.0171 | C32: 24 | D32: 460130.6815 | E32: 424736.0137 | F32: 212368.0068 | G32: 70789.33562 | H32: 176973.339 | I32: 0 | J32: 0 | K32: 70789.33562 | L32: 35394.66781 | M32: 495525.3493 | N32: 460130.6815 | O32: 0 | P32: 318552.0103 | Q32: 318552.0103 | R32: 318552.0103 | S32: 318552.0103 | T32: 318552.0103 | U32: 318552.0103 | V32: 318552.0103 | W32: 318552.0103 | X32: 318552.0103 | Y32: 318552.0103 | Z32: 318552.0103 | AA32: 318552.0103 | AB32: 318552.0103 | AC32: 318552.0103 | AD32: 318552.0103 | AE32: 318552.0103 | AF32: 318552.0103 | AG32: 318552.0103 | AH32: 318552.0103 | AI32: 318552.0103 | AJ32: 318552.0103 | AK32: 318552.0103 | AL32: 318552.0103 | AM32: 318552.0103 | AN32: 318552.0103 | AO32: 318552.0103 | AP32: 318552.0103 | AQ32: 318552.0103 | AR32: 318552.0103 | AS32: 318552.0103 | AT32: 318552.0103 | AU32: 318552.0103 | AV32: 318552.0103 | AW32: 318552.0103 | AX32: 318552.0103 | AY32: 318552.0103 | AZ32: 318552.0103 | BA32: 318552.0103
A33: =IF(Cost_by_Year!B32="",PolicyLTDMiles,Cost_by_Year!B32) -> 530920.0171 | C33: 25 | D33: 495525.3493 | E33: 460130.6815 | F33: 247762.6747 | G33: 106184.0034 | H33: 212368.0068 | I33: 35394.66781 | J33: 35394.66781 | K33: 106184.0034 | L33: 70789.33562 | M33: 0 | N33: 495525.3493 | O33: 35394.66781 | P33: 353946.6781 | Q33: 353946.6781 | R33: 353946.6781 | S33: 353946.6781 | T33: 353946.6781 | U33: 353946.6781 | V33: 353946.6781 | W33: 353946.6781 | X33: 353946.6781 | Y33: 353946.6781 | Z33: 353946.6781 | AA33: 353946.6781 | AB33: 353946.6781 | AC33: 353946.6781 | AD33: 353946.6781 | AE33: 353946.6781 | AF33: 353946.6781 | AG33: 353946.6781 | AH33: 353946.6781 | AI33: 353946.6781 | AJ33: 353946.6781 | AK33: 353946.6781 | AL33: 353946.6781 | AM33: 353946.6781 | AN33: 353946.6781 | AO33: 353946.6781 | AP33: 353946.6781 | AQ33: 353946.6781 | AR33: 353946.6781 | AS33: 353946.6781 | AT33: 353946.6781 | AU33: 353946.6781 | AV33: 353946.6781 | AW33: 353946.6781 | AX33: 353946.6781 | AY33: 353946.6781 | AZ33: 353946.6781 | BA33: 353946.6781
A34: =IF(Cost_by_Year!B33="",PolicyLTDMiles,Cost_by_Year!B33) -> 530920.0171 | C34: 26 | D34: 0 | E34: 495525.3493 | F34: 283157.3425 | G34: 141578.6712 | H34: 247762.6747 | I34: 70789.33562 | J34: 70789.33562 | K34: 141578.6712 | L34: 106184.0034 | M34: 35394.66781 | N34: 0 | O34: 70789.33562 | P34: 389341.3459 | Q34: 389341.3459 | R34: 389341.3459 | S34: 389341.3459 | T34: 389341.3459 | U34: 389341.3459 | V34: 389341.3459 | W34: 389341.3459 | X34: 389341.3459 | Y34: 389341.3459 | Z34: 389341.3459 | AA34: 389341.3459 | AB34: 389341.3459 | AC34: 389341.3459 | AD34: 389341.3459 | AE34: 389341.3459 | AF34: 389341.3459 | AG34: 389341.3459 | AH34: 389341.3459 | AI34: 389341.3459 | AJ34: 389341.3459 | AK34: 389341.3459 | AL34: 389341.3459 | AM34: 389341.3459 | AN34: 389341.3459 | AO34: 389341.3459 | AP34: 389341.3459 | AQ34: 389341.3459 | AR34: 389341.3459 | AS34: 389341.3459 | AT34: 389341.3459 | AU34: 389341.3459 | AV34: 389341.3459 | AW34: 389341.3459 | AX34: 389341.3459 | AY34: 389341.3459 | AZ34: 389341.3459 | BA34: 389341.3459
A35: =IF(Cost_by_Year!B34="",PolicyLTDMiles,Cost_by_Year!B34) -> 530920.0171 | C35: =1+C34 -> 27 | D35: 35394.66781 | E35: 0 | F35: 318552.0103 | G35: 176973.339 | H35: 283157.3425 | I35: 106184.0034 | J35: 106184.0034 | K35: 176973.339 | L35: 141578.6712 | M35: 70789.33562 | N35: 35394.66781 | O35: 106184.0034 | P35: 424736.0137 | Q35: 424736.0137 | R35: 424736.0137 | S35: 424736.0137 | T35: 424736.0137 | U35: 424736.0137 | V35: 424736.0137 | W35: 424736.0137 | X35: 424736.0137 | Y35: 424736.0137 | Z35: 424736.0137 | AA35: 424736.0137 | AB35: 424736.0137 | AC35: 424736.0137 | AD35: 424736.0137 | AE35: 424736.0137 | AF35: 424736.0137 | AG35: 424736.0137 | AH35: 424736.0137 | AI35: 424736.0137 | AJ35: 424736.0137 | AK35: 424736.0137 | AL35: 424736.0137 | AM35: 424736.0137 | AN35: 424736.0137 | AO35: 424736.0137 | AP35: 424736.0137 | AQ35: 424736.0137 | AR35: 424736.0137 | AS35: 424736.0137 | AT35: 424736.0137 | AU35: 424736.0137 | AV35: 424736.0137 | AW35: 424736.0137 | AX35: 424736.0137 | AY35: 424736.0137 | AZ35: 424736.0137 | BA35: 424736.0137
A36: =IF(Cost_by_Year!B35="",PolicyLTDMiles,Cost_by_Year!B35) -> 530920.0171 | C36: =1+C35 -> 28 | D36: 70789.33562 | E36: 35394.66781 | F36: 353946.6781 | G36: 212368.0068 | H36: 318552.0103 | I36: 141578.6712 | J36: 141578.6712 | K36: 212368.0068 | L36: 176973.339 | M36: 106184.0034 | N36: 70789.33562 | O36: 141578.6712 | P36: 460130.6815 | Q36: 460130.6815 | R36: 460130.6815 | S36: 460130.6815 | T36: 460130.6815 | U36: 460130.6815 | V36: 460130.6815 | W36: 460130.6815 | X36: 460130.6815 | Y36: 460130.6815 | Z36: 460130.6815 | AA36: 460130.6815 | AB36: 460130.6815 | AC36: 460130.6815 | AD36: 460130.6815 | AE36: 460130.6815 | AF36: 460130.6815 | AG36: 460130.6815 | AH36: 460130.6815 | AI36: 460130.6815 | AJ36: 460130.6815 | AK36: 460130.6815 | AL36: 460130.6815 | AM36: 460130.6815 | AN36: 460130.6815 | AO36: 460130.6815 | AP36: 460130.6815 | AQ36: 460130.6815 | AR36: 460130.6815 | AS36: 460130.6815 | AT36: 460130.6815 | AU36: 460130.6815 | AV36: 460130.6815 | AW36: 460130.6815 | AX36: 460130.6815 | AY36: 460130.6815 | AZ36: 460130.6815 | BA36: 460130.6815
A37: =IF(Cost_by_Year!B36="",PolicyLTDMiles,Cost_by_Year!B36) -> 530920.0171 | C37: =1+C36 -> 29 | D37: 106184.0034 | E37: 70789.33562 | F37: 389341.3459 | G37: 247762.6747 | H37: 353946.6781 | I37: 176973.339 | J37: 176973.339 | K37: 247762.6747 | L37: 212368.0068 | M37: 141578.6712 | N37: 106184.0034 | O37: 176973.339 | P37: 495525.3493 | Q37: 495525.3493 | R37: 495525.3493 | S37: 495525.3493 | T37: 495525.3493 | U37: 495525.3493 | V37: 495525.3493 | W37: 495525.3493 | X37: 495525.3493 | Y37: 495525.3493 | Z37: 495525.3493 | AA37: 495525.3493 | AB37: 495525.3493 | AC37: 495525.3493 | AD37: 495525.3493 | AE37: 495525.3493 | AF37: 495525.3493 | AG37: 495525.3493 | AH37: 495525.3493 | AI37: 495525.3493 | AJ37: 495525.3493 | AK37: 495525.3493 | AL37: 495525.3493 | AM37: 495525.3493 | AN37: 495525.3493 | AO37: 495525.3493 | AP37: 495525.3493 | AQ37: 495525.3493 | AR37: 495525.3493 | AS37: 495525.3493 | AT37: 495525.3493 | AU37: 495525.3493 | AV37: 495525.3493 | AW37: 495525.3493 | AX37: 495525.3493 | AY37: 495525.3493 | AZ37: 495525.3493 | BA37: 495525.3493
A38: =IF(Cost_by_Year!B37="",PolicyLTDMiles,Cost_by_Year!B37) -> 530920.0171 | C38: =1+C37 -> 30 | D38: 141578.6712 | E38: 106184.0034 | F38: 424736.0137 | G38: 283157.3425 | H38: 389341.3459 | I38: 212368.0068 | J38: 212368.0068 | K38: 283157.3425 | L38: 247762.6747 | M38: 176973.339 | N38: 141578.6712 | O38: 212368.0068 | P38: 0 | Q38: 0 | R38: 0 | S38: 0 | T38: 0 | U38: 0 | V38: 0 | W38: 0 | X38: 0 | Y38: 0 | Z38: 0 | AA38: 0 | AB38: 0 | AC38: 0 | AD38: 0 | AE38: 0 | AF38: 0 | AG38: 0 | AH38: 0 | AI38: 0 | AJ38: 0 | AK38: 0 | AL38: 0 | AM38: 0 | AN38: 0 | AO38: 0 | AP38: 0 | AQ38: 0 | AR38: 0 | AS38: 0 | AT38: 0 | AU38: 0 | AV38: 0 | AW38: 0 | AX38: 0 | AY38: 0 | AZ38: 0 | BA38: 0
A39: New Bus Cost | C39: =+C9 -> 1 | D39: =D$6*IF(D9=0,NewBusCost,0) -> 0 | E39: 0 | F39: 0 | G39: 0 | H39: 0 | I39: 0 | J39: 0 | K39: 0 | L39: 0 | M39: 0 | N39: 0 | O39: 0 | P39: 0 | Q39: 0 | R39: 0 | S39: 0 | T39: 0 | U39: 0 | V39: 0 | W39: 0 | X39: 0 | Y39: 0 | Z39: 0 | AA39: 0 | AB39: 0 | AC39: 0 | AD39: 0 | AE39: 0 | AF39: 0 | AG39: 0 | AH39: 0 | AI39: 0 | AJ39: =AJ$6*IF(AJ9=0,NewBusCost,0) -> 0 | AK39: 0 | AL39: 0 | AM39: 0 | AN39: 0 | AO39: 0 | AP39: 0 | AQ39: 0 | AR39: 0 | AS39: 0 | AT39: 0 | AU39: 0 | AV39: 0 | AW39: 0 | AX39: 0 | AY39: 0 | AZ39: 0 | BA39: 0 | BC39: =SUM(D39:BB39) -> 0
C40: 2 | D40: =D$6*IF(D10=0,NewBusCost,0) -> 0 | E40: 0 | F40: 0 | G40: 0 | H40: 0 | I40: 0 | J40: 0 | K40: 0 | L40: 0 | M40: 0 | N40: 0 | O40: 0 | P40: 0 | Q40: 0 | R40: 0 | S40: 0 | T40: 0 | U40: 0 | V40: 0 | W40: 0 | X40: 0 | Y40: 0 | Z40: 0 | AA40: 0 | AB40: 0 | AC40: 0 | AD40: 0 | AE40: 0 | AF40: 0 | AG40: 0 | AH40: 0 | AI40: 0 | AJ40: =AJ$6*IF(AJ10=0,NewBusCost,0) -> 0 | AK40: 0 | AL40: 0 | AM40: 0 | AN40: 0 | AO40: 0 | AP40: 0 | AQ40: 0 | AR40: 0 | AS40: 0 | AT40: 0 | AU40: 0 | AV40: 0 | AW40: 0 | AX40: 0 | AY40: 0 | AZ40: 0 | BA40: 0 | BC40: 0
C41: 3 | D41: =D$6*IF(D11=0,NewBusCost,0) -> 0 | E41: 0 | F41: 46449000 | G41: 0 | H41: 0 | I41: 0 | J41: 0 | K41: 0 | L41: 0 | M41: 0 | N41: 0 | O41: 0 | P41: 0 | Q41: 0 | R41: 0 | S41: 0 | T41: 0 | U41: 0 | V41: 0 | W41: 0 | X41: 0 | Y41: 0 | Z41: 0 | AA41: 0 | AB41: 0 | AC41: 0 | AD41: 0 | AE41: 0 | AF41: 0 | AG41: 0 | AH41: 0 | AI41: 0 | AJ41: =AJ$6*IF(AJ11=0,NewBusCost,0) -> 0 | AK41: 0 | AL41: 0 | AM41: 0 | AN41: 0 | AO41: 0 | AP41: 0 | AQ41: 0 | AR41: 0 | AS41: 0 | AT41: 0 | AU41: 0 | AV41: 0 | AW41: 0 | AX41: 0 | AY41: 0 | AZ41: 0 | BA41: 0 | BC41: 46449000
C42: 4 | D42: =D$6*IF(D12=0,NewBusCost,0) -> 0 | E42: 0 | F42: 0 | G42: 0 | H42: 63123000 | I42: 0 | J42: 0 | K42: 0 | L42: 0 | M42: 0 | N42: 0 | O42: 0 | P42: 0 | Q42: 0 | R42: 0 | S42: 0 | T42: 0 | U42: 0 | V42: 0 | W42: 0 | X42: 0 | Y42: 0 | Z42: 0 | AA42: 0 | AB42: 0 | AC42: 0 | AD42: 0 | AE42: 0 | AF42: 0 | AG42: 0 | AH42: 0 | AI42: 0 | AJ42: =AJ$6*IF(AJ12=0,NewBusCost,0) -> 0 | AK42: 0 | AL42: 0 | AM42: 0 | AN42: 0 | AO42: 0 | AP42: 0 | AQ42: 0 | AR42: 0 | AS42: 0 | AT42: 0 | AU42: 0 | AV42: 0 | AW42: 0 | AX42: 0 | AY42: 0 | AZ42: 0 | BA42: 0 | BC42: 63123000
C43: 5 | D43: =D$6*IF(D13=0,NewBusCost,0) -> 0 | E43: 0 | F43: 0 | G43: 0 | H43: 0 | I43: 0 | J43: 0 | K43: 0 | L43: 0 | M43: 0 | N43: 0 | O43: 0 | P43: 0 | Q43: 0 | R43: 0 | S43: 0 | T43: 0 | U43: 0 | V43: 0 | W43: 0 | X43: 0 | Y43: 0 | Z43: 0 | AA43: 0 | AB43: 0 | AC43: 0 | AD43: 0 | AE43: 0 | AF43: 0 | AG43: 0 | AH43: 0 | AI43: 0 | AJ43: =AJ$6*IF(AJ13=0,NewBusCost,0) -> 0 | AK43: 0 | AL43: 0 | AM43: 0 | AN43: 0 | AO43: 0 | AP43: 0 | AQ43: 0 | AR43: 0 | AS43: 0 | AT43: 0 | AU43: 0 | AV43: 0 | AW43: 0 | AX43: 0 | AY43: 0 | AZ43: 0 | BA43: 0 | BC43: 0
C44: 6 | D44: =D$6*IF(D14=0,NewBusCost,0) -> 0 | E44: 0 | F44: 0 | G44: 0 | H44: 0 | I44: 0 | J44: 0 | K44: 0 | L44: 0 | M44: 0 | N44: 0 | O44: 0 | P44: 0 | Q44: 0 | R44: 0 | S44: 0 | T44: 0 | U44: 0 | V44: 0 | W44: 0 | X44: 0 | Y44: 0 | Z44: 0 | AA44: 0 | AB44: 0 | AC44: 0 | AD44: 0 | AE44: 0 | AF44: 0 | AG44: 0 | AH44: 0 | AI44: 0 | AJ44: =AJ$6*IF(AJ14=0,NewBusCost,0) -> 0 | AK44: 0 | AL44: 0 | AM44: 0 | AN44: 0 | AO44: 0 | AP44: 0 | AQ44: 0 | AR44: 0 | AS44: 0 | AT44: 0 | AU44: 0 | AV44: 0 | AW44: 0 | AX44: 0 | AY44: 0 | AZ44: 0 | BA44: 0 | BC44: 0
C45: 7 | D45: =D$6*IF(D15=0,NewBusCost,0) -> 0 | E45: 0 | F45: 0 | G45: 9925000 | H45: 0 | I45: 0 | J45: 0 | K45: 65505000 | L45: 0 | M45: 0 | N45: 0 | O45: 0 | P45: 0 | Q45: 0 | R45: 0 | S45: 0 | T45: 0 | U45: 0 | V45: 0 | W45: 0 | X45: 0 | Y45: 0 | Z45: 0 | AA45: 0 | AB45: 0 | AC45: 0 | AD45: 0 | AE45: 0 | AF45: 0 | AG45: 0 | AH45: 0 | AI45: 0 | AJ45: =AJ$6*IF(AJ15=0,NewBusCost,0) -> 0 | AK45: 0 | AL45: 0 | AM45: 0 | AN45: 0 | AO45: 0 | AP45: 0 | AQ45: 0 | AR45: 0 | AS45: 0 | AT45: 0 | AU45: 0 | AV45: 0 | AW45: 0 | AX45: 0 | AY45: 0 | AZ45: 0 | BA45: 0 | BC45: 75430000
C46: 8 | D46: =D$6*IF(D16=0,NewBusCost,0) -> 0 | E46: 0 | F46: 0 | G46: 0 | H46: 0 | I46: 0 | J46: 0 | K46: 0 | L46: 3970000 | M46: 0 | N46: 0 | O46: 0 | P46: 0 | Q46: 0 | R46: 0 | S46: 0 | T46: 0 | U46: 0 | V46: 0 | W46: 0 | X46: 0 | Y46: 0 | Z46: 0 | AA46: 0 | AB46: 0 | AC46: 0 | AD46: 0 | AE46: 0 | AF46: 0 | AG46: 0 | AH46: 0 | AI46: 0 | AJ46: =AJ$6*IF(AJ16=0,NewBusCost,0) -> 0 | AK46: 0 | AL46: 0 | AM46: 0 | AN46: 0 | AO46: 0 | AP46: 0 | AQ46: 0 | AR46: 0 | AS46: 0 | AT46: 0 | AU46: 0 | AV46: 0 | AW46: 0 | AX46: 0 | AY46: 0 | AZ46: 0 | BA46: 0 | BC46: 3970000
C47: 9 | D47: =D$6*IF(D17=0,NewBusCost,0) -> 0 | E47: 0 | F47: 0 | G47: 0 | H47: 0 | I47: 15880000 | J47: 23820000 | K47: 0 | L47: 0 | M47: 0 | N47: 0 | O47: 23820000 | P47: 0 | Q47: 0 | R47: 0 | S47: 0 | T47: 0 | U47: 0 | V47: 0 | W47: 0 | X47: 0 | Y47: 0 | Z47: 0 | AA47: 0 | AB47: 0 | AC47: 0 | AD47: 0 | AE47: 0 | AF47: 0 | AG47: 0 | AH47: 0 | AI47: 0 | AJ47: =AJ$6*IF(AJ17=0,NewBusCost,0) -> 0 | AK47: 0 | AL47: 0 | AM47: 0 | AN47: 0 | AO47: 0 | AP47: 0 | AQ47: 0 | AR47: 0 | AS47: 0 | AT47: 0 | AU47: 0 | AV47: 0 | AW47: 0 | AX47: 0 | AY47: 0 | AZ47: 0 | BA47: 0 | BC47: 63520000
C48: 10 | D48: =D$6*IF(D18=0,NewBusCost,0) -> 0 | E48: 0 | F48: 0 | G48: 0 | H48: 0 | I48: 0 | J48: 0 | K48: 0 | L48: 0 | M48: 15483000 | N48: 0 | O48: 0 | P48: 0 | Q48: 0 | R48: 0 | S48: 0 | T48: 0 | U48: 0 | V48: 0 | W48: 0 | X48: 0 | Y48: 0 | Z48: 0 | AA48: 0 | AB48: 0 | AC48: 0 | AD48: 0 | AE48: 0 | AF48: 0 | AG48: 0 | AH48: 0 | AI48: 0 | AJ48: =AJ$6*IF(AJ18=0,NewBusCost,0) -> 0 | AK48: 0 | AL48: 0 | AM48: 0 | AN48: 0 | AO48: 0 | AP48: 0 | AQ48: 0 | AR48: 0 | AS48: 0 | AT48: 0 | AU48: 0 | AV48: 0 | AW48: 0 | AX48: 0 | AY48: 0 | AZ48: 0 | BA48: 0 | BC48: 15483000
C49: 11 | D49: =D$6*IF(D19=0,NewBusCost,0) -> 35730000 | E49: 0 | F49: 0 | G49: 0 | H49: 0 | I49: 0 | J49: 0 | K49: 0 | L49: 0 | M49: 0 | N49: 2382000 | O49: 0 | P49: 0 | Q49: 0 | R49: 0 | S49: 0 | T49: 0 | U49: 0 | V49: 0 | W49: 0 | X49: 0 | Y49: 0 | Z49: 0 | AA49: 0 | AB49: 0 | AC49: 0 | AD49: 0 | AE49: 0 | AF49: 0 | AG49: 0 | AH49: 0 | AI49: 0 | AJ49: =AJ$6*IF(AJ19=0,NewBusCost,0) -> 0 | AK49: 0 | AL49: 0 | AM49: 0 | AN49: 0 | AO49: 0 | AP49: 0 | AQ49: 0 | AR49: 0 | AS49: 0 | AT49: 0 | AU49: 0 | AV49: 0 | AW49: 0 | AX49: 0 | AY49: 0 | AZ49: 0 | BA49: 0 | BC49: 38112000
C50: 12 | D50: =D$6*IF(D20=0,NewBusCost,0) -> 0 | E50: 9925000 | F50: 0 | G50: 0 | H50: 0 | I50: 0 | J50: 0 | K50: 0 | L50: 0 | M50: 0 | N50: 0 | O50: 0 | P50: 0 | Q50: 0 | R50: 0 | S50: 0 | T50: 0 | U50: 0 | V50: 0 | W50: 0 | X50: 0 | Y50: 0 | Z50: 0 | AA50: 0 | AB50: 0 | AC50: 0 | AD50: 0 | AE50: 0 | AF50: 0 | AG50: 0 | AH50: 0 | AI50: 0 | AJ50: =AJ$6*IF(AJ20=0,NewBusCost,0) -> 0 | AK50: 0 | AL50: 0 | AM50: 0 | AN50: 0 | AO50: 0 | AP50: 0 | AQ50: 0 | AR50: 0 | AS50: 0 | AT50: 0 | AU50: 0 | AV50: 0 | AW50: 0 | AX50: 0 | AY50: 0 | AZ50: 0 | BA50: 0 | BC50: 9925000
C51: 13 | D51: =D$6*IF(D21=0,NewBusCost,0) -> 0 | E51: 0 | F51: 0 | G51: 0 | H51: 0 | I51: 0 | J51: 0 | K51: 0 | L51: 0 | M51: 0 | N51: 0 | O51: 0 | P51: 0 | Q51: 0 | R51: 0 | S51: 0 | T51: 0 | U51: 0 | V51: 0 | W51: 0 | X51: 0 | Y51: 0 | Z51: 0 | AA51: 0 | AB51: 0 | AC51: 0 | AD51: 0 | AE51: 0 | AF51: 0 | AG51: 0 | AH51: 0 | AI51: 0 | AJ51: =AJ$6*IF(AJ21=0,NewBusCost,0) -> 0 | AK51: 0 | AL51: 0 | AM51: 0 | AN51: 0 | AO51: 0 | AP51: 0 | AQ51: 0 | AR51: 0 | AS51: 0 | AT51: 0 | AU51: 0 | AV51: 0 | AW51: 0 | AX51: 0 | AY51: 0 | AZ51: 0 | BA51: 0 | BC51: 0
C52: 14 | D52: =D$6*IF(D22=0,NewBusCost,0) -> 0 | E52: 0 | F52: 0 | G52: 0 | H52: 0 | I52: 0 | J52: 0 | K52: 0 | L52: 0 | M52: 0 | N52: 0 | O52: 0 | P52: 0 | Q52: 0 | R52: 0 | S52: 0 | T52: 0 | U52: 0 | V52: 0 | W52: 0 | X52: 0 | Y52: 0 | Z52: 0 | AA52: 0 | AB52: 0 | AC52: 0 | AD52: 0 | AE52: 0 | AF52: 0 | AG52: 0 | AH52: 0 | AI52: 0 | AJ52: =AJ$6*IF(AJ22=0,NewBusCost,0) -> 0 | AK52: 0 | AL52: 0 | AM52: 0 | AN52: 0 | AO52: 0 | AP52: 0 | AQ52: 0 | AR52: 0 | AS52: 0 | AT52: 0 | AU52: 0 | AV52: 0 | AW52: 0 | AX52: 0 | AY52: 0 | AZ52: 0 | BA52: 0 | BC52: 0
C53: 15 | D53: =D$6*IF(D23=0,NewBusCost,0) -> 0 | E53: 0 | F53: 0 | G53: 0 | H53: 0 | I53: 0 | J53: 0 | K53: 0 | L53: 0 | M53: 0 | N53: 0 | O53: 0 | P53: 10322000 | Q53: 21438000 | R53: 0 | S53: 0 | T53: 0 | U53: 0 | V53: 0 | W53: 0 | X53: 0 | Y53: 0 | Z53: 0 | AA53: 0 | AB53: 0 | AC53: 0 | AD53: 0 | AE53: 0 | AF53: 0 | AG53: 0 | AH53: 0 | AI53: 0 | AJ53: =AJ$6*IF(AJ23=0,NewBusCost,0) -> 0 | AK53: 0 | AL53: 0 | AM53: 0 | AN53: 0 | AO53: 0 | AP53: 0 | AQ53: 0 | AR53: 0 | AS53: 0 | AT53: 0 | AU53: 0 | AV53: 0 | AW53: 0 | AX53: 0 | AY53: 0 | AZ53: 0 | BA53: 0 | BC53: 31760000
C54: 16 | D54: =D$6*IF(D24=0,NewBusCost,0) -> 0 | E54: 0 | F54: 0 | G54: 0 | H54: 0 | I54: 0 | J54: 0 | K54: 0 | L54: 0 | M54: 0 | N54: 0 | O54: 0 | P54: 0 | Q54: 0 | R54: 0 | S54: 0 | T54: 0 | U54: 0 | V54: 0 | W54: 0 | X54: 0 | Y54: 0 | Z54: 0 | AA54: 0 | AB54: 0 | AC54: 0 | AD54: 0 | AE54: 0 | AF54: 0 | AG54: 0 | AH54: 0 | AI54: 0 | AJ54: =AJ$6*IF(AJ24=0,NewBusCost,0) -> 0 | AK54: 0 | AL54: 0 | AM54: 0 | AN54: 0 | AO54: 0 | AP54: 0 | AQ54: 0 | AR54: 0 | AS54: 0 | AT54: 0 | AU54: 0 | AV54: 0 | AW54: 0 | AX54: 0 | AY54: 0 | AZ54: 0 | BA54: 0 | BC54: 0
C55: 17 | D55: =D$6*IF(D25=0,NewBusCost,0) -> 0 | E55: 0 | F55: 0 | G55: 0 | H55: 0 | I55: 0 | J55: 0 | K55: 0 | L55: 0 | M55: 0 | N55: 0 | O55: 0 | P55: 0 | Q55: 0 | R55: 0 | S55: 0 | T55: 0 | U55: 0 | V55: 0 | W55: 0 | X55: 0 | Y55: 0 | Z55: 0 | AA55: 0 | AB55: 0 | AC55: 0 | AD55: 0 | AE55: 0 | AF55: 0 | AG55: 0 | AH55: 0 | AI55: 0 | AJ55: =AJ$6*IF(AJ25=0,NewBusCost,0) -> 0 | AK55: 0 | AL55: 0 | AM55: 0 | AN55: 0 | AO55: 0 | AP55: 0 | AQ55: 0 | AR55: 0 | AS55: 0 | AT55: 0 | AU55: 0 | AV55: 0 | AW55: 0 | AX55: 0 | AY55: 0 | AZ55: 0 | BA55: 0 | BC55: 0
C56: 18 | D56: =D$6*IF(D26=0,NewBusCost,0) -> 0 | E56: 0 | F56: 46449000 | G56: 0 | H56: 0 | I56: 0 | J56: 0 | K56: 0 | L56: 0 | M56: 0 | N56: 0 | O56: 0 | P56: 0 | Q56: 0 | R56: 0 | S56: 0 | T56: 0 | U56: 0 | V56: 0 | W56: 0 | X56: 0 | Y56: 0 | Z56: 0 | AA56: 0 | AB56: 0 | AC56: 0 | AD56: 0 | AE56: 0 | AF56: 0 | AG56: 0 | AH56: 0 | AI56: 0 | AJ56: =AJ$6*IF(AJ26=0,NewBusCost,0) -> 0 | AK56: 0 | AL56: 0 | AM56: 0 | AN56: 0 | AO56: 0 | AP56: 0 | AQ56: 0 | AR56: 0 | AS56: 0 | AT56: 0 | AU56: 0 | AV56: 0 | AW56: 0 | AX56: 0 | AY56: 0 | AZ56: 0 | BA56: 0 | BC56: 46449000
C57: 19 | D57: =D$6*IF(D27=0,NewBusCost,0) -> 0 | E57: 0 | F57: 0 | G57: 0 | H57: 63123000 | I57: 0 | J57: 0 | K57: 0 | L57: 0 | M57: 0 | N57: 0 | O57: 0 | P57: 0 | Q57: 0 | R57: 0 | S57: 0 | T57: 0 | U57: 0 | V57: 0 | W57: 0 | X57: 0 | Y57: 0 | Z57: 0 | AA57: 0 | AB57: 0 | AC57: 0 | AD57: 0 | AE57: 0 | AF57: 0 | AG57: 0 | AH57: 0 | AI57: 0 | AJ57: =AJ$6*IF(AJ27=0,NewBusCost,0) -> 0 | AK57: 0 | AL57: 0 | AM57: 0 | AN57: 0 | AO57: 0 | AP57: 0 | AQ57: 0 | AR57: 0 | AS57: 0 | AT57: 0 | AU57: 0 | AV57: 0 | AW57: 0 | AX57: 0 | AY57: 0 | AZ57: 0 | BA57: 0 | BC57: 63123000
C58: 20 | D58: =D$6*IF(D28=0,NewBusCost,0) -> 0 | E58: 0 | F58: 0 | G58: 0 | H58: 0 | I58: 0 | J58: 0 | K58: 0 | L58: 0 | M58: 0 | N58: 0 | O58: 0 | P58: 0 | Q58: 0 | R58: 0 | S58: 0 | T58: 0 | U58: 0 | V58: 0 | W58: 0 | X58: 0 | Y58: 0 | Z58: 0 | AA58: 0 | AB58: 0 | AC58: 0 | AD58: 0 | AE58: 0 | AF58: 0 | AG58: 0 | AH58: 0 | AI58: 0 | AJ58: =AJ$6*IF(AJ28=0,NewBusCost,0) -> 0 | AK58: 0 | AL58: 0 | AM58: 0 | AN58: 0 | AO58: 0 | AP58: 0 | AQ58: 0 | AR58: 0 | AS58: 0 | AT58: 0 | AU58: 0 | AV58: 0 | AW58: 0 | AX58: 0 | AY58: 0 | AZ58: 0 | BA58: 0 | BC58: 0
C59: 21 | D59: =D$6*IF(D29=0,NewBusCost,0) -> 0 | E59: 0 | F59: 0 | G59: 0 | H59: 0 | I59: 0 | J59: 0 | K59: 0 | L59: 0 | M59: 0 | N59: 0 | O59: 0 | P59: 0 | Q59: 0 | R59: 0 | S59: 0 | T59: 0 | U59: 0 | V59: 0 | W59: 0 | X59: 0 | Y59: 0 | Z59: 0 | AA59: 0 | AB59: 0 | AC59: 0 | AD59: 0 | AE59: 0 | AF59: 0 | AG59: 0 | AH59: 0 | AI59: 0 | AJ59: =AJ$6*IF(AJ29=0,NewBusCost,0) -> 0 | AK59: 0 | AL59: 0 | AM59: 0 | AN59: 0 | AO59: 0 | AP59: 0 | AQ59: 0 | AR59: 0 | AS59: 0 | AT59: 0 | AU59: 0 | AV59: 0 | AW59: 0 | AX59: 0 | AY59: 0 | AZ59: 0 | BA59: 0 | BC59: 0
C60: 22 | D60: =D$6*IF(D30=0,NewBusCost,0) -> 0 | E60: 0 | F60: 0 | G60: 9925000 | H60: 0 | I60: 0 | J60: 0 | K60: 65505000 | L60: 0 | M60: 0 | N60: 0 | O60: 0 | P60: 0 | Q60: 0 | R60: 0 | S60: 0 | T60: 0 | U60: 0 | V60: 0 | W60: 0 | X60: 0 | Y60: 0 | Z60: 0 | AA60: 0 | AB60: 0 | AC60: 0 | AD60: 0 | AE60: 0 | AF60: 0 | AG60: 0 | AH60: 0 | AI60: 0 | AJ60: =AJ$6*IF(AJ30=0,NewBusCost,0) -> 0 | AK60: 0 | AL60: 0 | AM60: 0 | AN60: 0 | AO60: 0 | AP60: 0 | AQ60: 0 | AR60: 0 | AS60: 0 | AT60: 0 | AU60: 0 | AV60: 0 | AW60: 0 | AX60: 0 | AY60: 0 | AZ60: 0 | BA60: 0 | BC60: 75430000
C61: 23 | D61: =D$6*IF(D31=0,NewBusCost,0) -> 0 | E61: 0 | F61: 0 | G61: 0 | H61: 0 | I61: 0 | J61: 0 | K61: 0 | L61: 3970000 | M61: 0 | N61: 0 | O61: 0 | P61: 0 | Q61: 0 | R61: 0 | S61: 0 | T61: 0 | U61: 0 | V61: 0 | W61: 0 | X61: 0 | Y61: 0 | Z61: 0 | AA61: 0 | AB61: 0 | AC61: 0 | AD61: 0 | AE61: 0 | AF61: 0 | AG61: 0 | AH61: 0 | AI61: 0 | AJ61: =AJ$6*IF(AJ31=0,NewBusCost,0) -> 0 | AK61: 0 | AL61: 0 | AM61: 0 | AN61: 0 | AO61: 0 | AP61: 0 | AQ61: 0 | AR61: 0 | AS61: 0 | AT61: 0 | AU61: 0 | AV61: 0 | AW61: 0 | AX61: 0 | AY61: 0 | AZ61: 0 | BA61: 0 | BC61: 3970000
C62: 24 | D62: =D$6*IF(D32=0,NewBusCost,0) -> 0 | E62: 0 | F62: 0 | G62: 0 | H62: 0 | I62: 15880000 | J62: 23820000 | K62: 0 | L62: 0 | M62: 0 | N62: 0 | O62: 23820000 | P62: 0 | Q62: 0 | R62: 0 | S62: 0 | T62: 0 | U62: 0 | V62: 0 | W62: 0 | X62: 0 | Y62: 0 | Z62: 0 | AA62: 0 | AB62: 0 | AC62: 0 | AD62: 0 | AE62: 0 | AF62: 0 | AG62: 0 | AH62: 0 | AI62: 0 | AJ62: =AJ$6*IF(AJ32=0,NewBusCost,0) -> 0 | AK62: 0 | AL62: 0 | AM62: 0 | AN62: 0 | AO62: 0 | AP62: 0 | AQ62: 0 | AR62: 0 | AS62: 0 | AT62: 0 | AU62: 0 | AV62: 0 | AW62: 0 | AX62: 0 | AY62: 0 | AZ62: 0 | BA62: 0 | BC62: 63520000
C63: 25 | D63: =D$6*IF(D33=0,NewBusCost,0) -> 0 | E63: 0 | F63: 0 | G63: 0 | H63: 0 | I63: 0 | J63: 0 | K63: 0 | L63: 0 | M63: 15483000 | N63: 0 | O63: 0 | P63: 0 | Q63: 0 | R63: 0 | S63: 0 | T63: 0 | U63: 0 | V63: 0 | W63: 0 | X63: 0 | Y63: 0 | Z63: 0 | AA63: 0 | AB63: 0 | AC63: 0 | AD63: 0 | AE63: 0 | AF63: 0 | AG63: 0 | AH63: 0 | AI63: 0 | AJ63: =AJ$6*IF(AJ33=0,NewBusCost,0) -> 0 | AK63: 0 | AL63: 0 | AM63: 0 | AN63: 0 | AO63: 0 | AP63: 0 | AQ63: 0 | AR63: 0 | AS63: 0 | AT63: 0 | AU63: 0 | AV63: 0 | AW63: 0 | AX63: 0 | AY63: 0 | AZ63: 0 | BA63: 0 | BC63: 15483000
C64: 26 | D64: =D$6*IF(D34=0,NewBusCost,0) -> 35730000 | E64: 0 | F64: 0 | G64: 0 | H64: 0 | I64: 0 | J64: 0 | K64: 0 | L64: 0 | M64: 0 | N64: 2382000 | O64: 0 | P64: 0 | Q64: 0 | R64: 0 | S64: 0 | T64: 0 | U64: 0 | V64: 0 | W64: 0 | X64: 0 | Y64: 0 | Z64: 0 | AA64: 0 | AB64: 0 | AC64: 0 | AD64: 0 | AE64: 0 | AF64: 0 | AG64: 0 | AH64: 0 | AI64: 0 | AJ64: =AJ$6*IF(AJ34=0,NewBusCost,0) -> 0 | AK64: 0 | AL64: 0 | AM64: 0 | AN64: 0 | AO64: 0 | AP64: 0 | AQ64: 0 | AR64: 0 | AS64: 0 | AT64: 0 | AU64: 0 | AV64: 0 | AW64: 0 | AX64: 0 | AY64: 0 | AZ64: 0 | BA64: 0 | BC64: 38112000
C65: 27 | D65: =D$6*IF(D35=0,NewBusCost,0) -> 0 | E65: 9925000 | F65: 0 | G65: 0 | H65: 0 | I65: 0 | J65: 0 | K65: 0 | L65: 0 | M65: 0 | N65: 0 | O65: 0 | P65: 0 | Q65: 0 | R65: 0 | S65: 0 | T65: 0 | U65: 0 | V65: 0 | W65: 0 | X65: 0 | Y65: 0 | Z65: 0 | AA65: 0 | AB65: 0 | AC65: 0 | AD65: 0 | AE65: 0 | AF65: 0 | AG65: 0 | AH65: 0 | AI65: 0 | AJ65: =AJ$6*IF(AJ35=0,NewBusCost,0) -> 0 | AK65: 0 | AL65: 0 | AM65: 0 | AN65: 0 | AO65: 0 | AP65: 0 | AQ65: 0 | AR65: 0 | AS65: 0 | AT65: 0 | AU65: 0 | AV65: 0 | AW65: 0 | AX65: 0 | AY65: 0 | AZ65: 0 | BA65: 0 | BC65: 9925000
C66: 28 | D66: =D$6*IF(D36=0,NewBusCost,0) -> 0 | E66: 0 | F66: 0 | G66: 0 | H66: 0 | I66: 0 | J66: 0 | K66: 0 | L66: 0 | M66: 0 | N66: 0 | O66: 0 | P66: 0 | Q66: 0 | R66: 0 | S66: 0 | T66: 0 | U66: 0 | V66: 0 | W66: 0 | X66: 0 | Y66: 0 | Z66: 0 | AA66: 0 | AB66: 0 | AC66: 0 | AD66: 0 | AE66: 0 | AF66: 0 | AG66: 0 | AH66: 0 | AI66: 0 | AJ66: =AJ$6*IF(AJ36=0,NewBusCost,0) -> 0 | AK66: 0 | AL66: 0 | AM66: 0 | AN66: 0 | AO66: 0 | AP66: 0 | AQ66: 0 | AR66: 0 | AS66: 0 | AT66: 0 | AU66: 0 | AV66: 0 | AW66: 0 | AX66: 0 | AY66: 0 | AZ66: 0 | BA66: 0 | BC66: 0
C67: 29 | D67: =D$6*IF(D37=0,NewBusCost,0) -> 0 | E67: 0 | F67: 0 | G67: 0 | H67: 0 | I67: 0 | J67: 0 | K67: 0 | L67: 0 | M67: 0 | N67: 0 | O67: 0 | P67: 0 | Q67: 0 | R67: 0 | S67: 0 | T67: 0 | U67: 0 | V67: 0 | W67: 0 | X67: 0 | Y67: 0 | Z67: 0 | AA67: 0 | AB67: 0 | AC67: 0 | AD67: 0 | AE67: 0 | AF67: 0 | AG67: 0 | AH67: 0 | AI67: 0 | AJ67: =AJ$6*IF(AJ37=0,NewBusCost,0) -> 0 | AK67: 0 | AL67: 0 | AM67: 0 | AN67: 0 | AO67: 0 | AP67: 0 | AQ67: 0 | AR67: 0 | AS67: 0 | AT67: 0 | AU67: 0 | AV67: 0 | AW67: 0 | AX67: 0 | AY67: 0 | AZ67: 0 | BA67: 0 | BC67: 0
C68: 30 | D68: =D$6*IF(D38=0,NewBusCost,0) -> 0 | E68: 0 | F68: 0 | G68: 0 | H68: 0 | I68: 0 | J68: 0 | K68: 0 | L68: 0 | M68: 0 | N68: 0 | O68: 0 | P68: 10322000 | Q68: 21438000 | R68: 0 | S68: 0 | T68: 0 | U68: 0 | V68: 0 | W68: 0 | X68: 0 | Y68: 0 | Z68: 0 | AA68: 0 | AB68: 0 | AC68: 0 | AD68: 0 | AE68: 0 | AF68: 0 | AG68: 0 | AH68: 0 | AI68: 0 | AJ68: =AJ$6*IF(AJ38=0,NewBusCost,0) -> 0 | AK68: 0 | AL68: 0 | AM68: 0 | AN68: 0 | AO68: 0 | AP68: 0 | AQ68: 0 | AR68: 0 | AS68: 0 | AT68: 0 | AU68: 0 | AV68: 0 | AW68: 0 | AX68: 0 | AY68: 0 | AZ68: 0 | BA68: 0 | BC68: 31760000
A69: Rehab Cost | C69: 1 | D69: =D$6*VLOOKUP(D9,RehabArray,3)*AnnMiles -> 2043870.378 | E69: 555255.03 | F69: 2829823.751 | G69: 583548.8004 | H69: 3774286.27 | I69: 928976.0537 | J69: 1393464.081 | K69: 3851422.082 | L69: 232244.0134 | M69: 894983.6975 | N69: 136258.0252 | O69: 1385943.638 | P69: 343558.7041 | Q69: 713545.0008 | R69: 0 | S69: 0 | T69: 0 | U69: 0 | V69: 0 | W69: 0 | X69: 0 | Y69: 0 | Z69: 0 | AA69: 0 | AB69: 0 | AC69: 0 | AD69: 0 | AE69: 0 | AF69: 0 | AG69: 0 | AH69: 0 | AI69: 0 | AJ69: =AJ$6*VLOOKUP(AJ9,RehabArray,3)*AnnMiles -> 0 | AK69: 0 | AL69: 0 | AM69: 0 | AN69: 0 | AO69: 0 | AP69: 0 | AQ69: 0 | AR69: 0 | AS69: 0 | AT69: 0 | AU69: 0 | AV69: 0 | AW69: 0 | AX69: 0 | AY69: 0 | AZ69: 0 | BA69: 0 | BC69: 19667179.52
C70: =+C40 -> 2 | D70: =D$6*VLOOKUP(D10,RehabArray,3)*AnnMiles -> 2065346.994 | E70: 567741.7717 | F70: 2868133.435 | G70: 586473.4465 | H70: 3805239.716 | I70: 933678.0806 | J70: 1400517.121 | K70: 3870724.747 | L70: 233419.5201 | M70: 900863.3646 | N70: 137689.7996 | O70: 1393464.081 | P70: 479584.3017 | Q70: 996059.7035 | R70: 0 | S70: 0 | T70: 0 | U70: 0 | V70: 0 | W70: 0 | X70: 0 | Y70: 0 | Z70: 0 | AA70: 0 | AB70: 0 | AC70: 0 | AD70: 0 | AE70: 0 | AF70: 0 | AG70: 0 | AH70: 0 | AI70: 0 | AJ70: =AJ$6*VLOOKUP(AJ10,RehabArray,3)*AnnMiles -> 0 | AK70: 0 | AL70: 0 | AM70: 0 | AN70: 0 | AO70: 0 | AP70: 0 | AQ70: 0 | AR70: 0 | AS70: 0 | AT70: 0 | AU70: 0 | AV70: 0 | AW70: 0 | AX70: 0 | AY70: 0 | AZ70: 0 | BA70: 0 | BC70: 20238936.08
C71: 3 | D71: =D$6*VLOOKUP(D11,RehabArray,3)*AnnMiles -> 2078915.457 | E71: 573707.4984 | F71: 658412.7279 | G71: 589643.1272 | H71: 3845657.918 | I71: 938357.5143 | J71: 1407536.272 | K71: 3891644.639 | L71: 234589.3786 | M71: 905751.6524 | N71: 138594.3638 | O71: 1400517.121 | P71: 547384.3533 | Q71: 1136875.195 | R71: 0 | S71: 0 | T71: 0 | U71: 0 | V71: 0 | W71: 0 | X71: 0 | Y71: 0 | Z71: 0 | AA71: 0 | AB71: 0 | AC71: 0 | AD71: 0 | AE71: 0 | AF71: 0 | AG71: 0 | AH71: 0 | AI71: 0 | AJ71: =AJ$6*VLOOKUP(AJ11,RehabArray,3)*AnnMiles -> 0 | AK71: 0 | AL71: 0 | AM71: 0 | AN71: 0 | AO71: 0 | AP71: 0 | AQ71: 0 | AR71: 0 | AS71: 0 | AT71: 0 | AU71: 0 | AV71: 0 | AW71: 0 | AX71: 0 | AY71: 0 | AZ71: 0 | BA71: 0 | BC71: 18347587.22
C72: 4 | D72: =D$6*VLOOKUP(D12,RehabArray,3)*AnnMiles -> 2090196.121 | E72: 577476.5158 | F72: 1546014.168 | G72: 593441.2374 | H72: 894766.0149 | I72: 943429.0035 | J72: 1415143.505 | K72: 3916712.167 | L72: 235857.2509 | M72: 910336.1286 | N72: 139346.4081 | O72: 1407536.272 | P72: 577465.2312 | Q72: 1199350.865 | R72: 0 | S72: 0 | T72: 0 | U72: 0 | V72: 0 | W72: 0 | X72: 0 | Y72: 0 | Z72: 0 | AA72: 0 | AB72: 0 | AC72: 0 | AD72: 0 | AE72: 0 | AF72: 0 | AG72: 0 | AH72: 0 | AI72: 0 | AJ72: =AJ$6*VLOOKUP(AJ12,RehabArray,3)*AnnMiles -> 0 | AK72: 0 | AL72: 0 | AM72: 0 | AN72: 0 | AO72: 0 | AP72: 0 | AQ72: 0 | AR72: 0 | AS72: 0 | AT72: 0 | AU72: 0 | AV72: 0 | AW72: 0 | AX72: 0 | AY72: 0 | AZ72: 0 | BA72: 0 | BC72: 16447070.89
C73: 5 | D73: =D$6*VLOOKUP(D13,RehabArray,3)*AnnMiles -> 2100775.681 | E73: 580610.0336 | F73: 2158129.358 | G73: 598308.1314 | H73: 2100993.614 | I73: 949505.9798 | J73: 1424258.97 | K73: 3948833.667 | L73: 237376.495 | M73: 914898.5765 | N73: 140051.7121 | O73: 1415143.505 | P73: 590451.4425 | Q73: 1226322.227 | R73: 0 | S73: 0 | T73: 0 | U73: 0 | V73: 0 | W73: 0 | X73: 0 | Y73: 0 | Z73: 0 | AA73: 0 | AB73: 0 | AC73: 0 | AD73: 0 | AE73: 0 | AF73: 0 | AG73: 0 | AH73: 0 | AI73: 0 | AJ73: =AJ$6*VLOOKUP(AJ13,RehabArray,3)*AnnMiles -> 0 | AK73: 0 | AL73: 0 | AM73: 0 | AN73: 0 | AO73: 0 | AP73: 0 | AQ73: 0 | AR73: 0 | AS73: 0 | AT73: 0 | AU73: 0 | AV73: 0 | AW73: 0 | AX73: 0 | AY73: 0 | AZ73: 0 | BA73: 0 | BC73: 18385659.39
C74: 6 | D74: =D$6*VLOOKUP(D14,RehabArray,3)*AnnMiles -> 2111304.407 | E74: 583548.8004 | F74: 2463229.59 | G74: 604663.1947 | H74: 2932842.46 | I74: 957293.0103 | J74: 1435939.515 | K74: 3990777.085 | L74: 239323.2526 | M74: 919843.2784 | N74: 140753.6272 | O74: 1424258.97 | P74: 596655.7983 | Q74: 1239208.197 | R74: 0 | S74: 0 | T74: 0 | U74: 0 | V74: 0 | W74: 0 | X74: 0 | Y74: 0 | Z74: 0 | AA74: 0 | AB74: 0 | AC74: 0 | AD74: 0 | AE74: 0 | AF74: 0 | AG74: 0 | AH74: 0 | AI74: 0 | AJ74: =AJ$6*VLOOKUP(AJ14,RehabArray,3)*AnnMiles -> 0 | AK74: 0 | AL74: 0 | AM74: 0 | AN74: 0 | AO74: 0 | AP74: 0 | AQ74: 0 | AR74: 0 | AS74: 0 | AT74: 0 | AU74: 0 | AV74: 0 | AW74: 0 | AX74: 0 | AY74: 0 | AZ74: 0 | BA74: 0 | BC74: 19639641.19
C75: 7 | D75: =D$6*VLOOKUP(D15,RehabArray,3)*AnnMiles -> 2122715.258 | E75: 586473.4465 | F75: 2598593.541 | G75: 140686.4803 | H75: 3347465.853 | I75: 967461.1115 | J75: 1451191.667 | K75: 928530.7702 | L75: 241865.2779 | M75: 925768.3303 | N75: 141514.3505 | O75: 1435939.515 | P75: 600575.5764 | Q75: 1247349.274 | R75: 0 | S75: 0 | T75: 0 | U75: 0 | V75: 0 | W75: 0 | X75: 0 | Y75: 0 | Z75: 0 | AA75: 0 | AB75: 0 | AC75: 0 | AD75: 0 | AE75: 0 | AF75: 0 | AG75: 0 | AH75: 0 | AI75: 0 | AJ75: =AJ$6*VLOOKUP(AJ15,RehabArray,3)*AnnMiles -> 0 | AK75: 0 | AL75: 0 | AM75: 0 | AN75: 0 | AO75: 0 | AP75: 0 | AQ75: 0 | AR75: 0 | AS75: 0 | AT75: 0 | AU75: 0 | AV75: 0 | AW75: 0 | AX75: 0 | AY75: 0 | AZ75: 0 | BA75: 0 | BC75: 16736130.45
C76: 8 | D76: =D$6*VLOOKUP(D16,RehabArray,3)*AnnMiles -> 2136388.455 | E76: 589643.1272 | F76: 2657031.491 | G76: 330344.9078 | H76: 3531421.991 | I76: 980558.4395 | J76: 1470837.659 | K76: 2180276.391 | L76: 56274.59213 | M76: 933360.685 | N76: 142425.897 | O76: 1451191.667 | P76: 603834.4349 | Q76: 1254117.673 | R76: 0 | S76: 0 | T76: 0 | U76: 0 | V76: 0 | W76: 0 | X76: 0 | Y76: 0 | Z76: 0 | AA76: 0 | AB76: 0 | AC76: 0 | AD76: 0 | AE76: 0 | AF76: 0 | AG76: 0 | AH76: 0 | AI76: 0 | AJ76: =AJ$6*VLOOKUP(AJ16,RehabArray,3)*AnnMiles -> 0 | AK76: 0 | AL76: 0 | AM76: 0 | AN76: 0 | AO76: 0 | AP76: 0 | AQ76: 0 | AR76: 0 | AS76: 0 | AT76: 0 | AU76: 0 | AV76: 0 | AW76: 0 | AX76: 0 | AY76: 0 | AZ76: 0 | BA76: 0 | BC76: 18317707.41
C77: 9 | D77: =D$6*VLOOKUP(D17,RehabArray,3)*AnnMiles -> 2153909.273 | E77: 593441.2374 | F77: 2684951.093 | G77: 461138.7516 | H77: 3610837.668 | I77: 225098.3685 | J77: 337647.5528 | K77: 3043515.761 | L77: 132137.9631 | M77: 943274.5837 | N77: 143593.9515 | O77: 337647.5528 | P77: 606890.7524 | Q77: 1260465.409 | R77: 0 | S77: 0 | T77: 0 | U77: 0 | V77: 0 | W77: 0 | X77: 0 | Y77: 0 | Z77: 0 | AA77: 0 | AB77: 0 | AC77: 0 | AD77: 0 | AE77: 0 | AF77: 0 | AG77: 0 | AH77: 0 | AI77: 0 | AJ77: =AJ$6*VLOOKUP(AJ17,RehabArray,3)*AnnMiles -> 0 | AK77: 0 | AL77: 0 | AM77: 0 | AN77: 0 | AO77: 0 | AP77: 0 | AQ77: 0 | AR77: 0 | AS77: 0 | AT77: 0 | AU77: 0 | AV77: 0 | AW77: 0 | AX77: 0 | AY77: 0 | AZ77: 0 | BA77: 0 | BC77: 16534549.92
C78: 10 | D78: =D$6*VLOOKUP(D18,RehabArray,3)*AnnMiles -> 2176787.501 | E78: 598308.1314 | F78: 2702590.094 | G78: 526331.1089 | H78: 3648779.69 | I78: 528551.8525 | J78: 792827.7787 | K78: 3473785.319 | L78: 184455.5006 | M78: 219470.9093 | N78: 145119.1667 | O78: 792827.7787 | P78: 609932.3843 | Q78: 1266782.644 | R78: 0 | S78: 0 | T78: 0 | U78: 0 | V78: 0 | W78: 0 | X78: 0 | Y78: 0 | Z78: 0 | AA78: 0 | AB78: 0 | AC78: 0 | AD78: 0 | AE78: 0 | AF78: 0 | AG78: 0 | AH78: 0 | AI78: 0 | AJ78: =AJ$6*VLOOKUP(AJ18,RehabArray,3)*AnnMiles -> 0 | AK78: 0 | AL78: 0 | AM78: 0 | AN78: 0 | AO78: 0 | AP78: 0 | AQ78: 0 | AR78: 0 | AS78: 0 | AT78: 0 | AU78: 0 | AV78: 0 | AW78: 0 | AX78: 0 | AY78: 0 | AZ78: 0 | BA78: 0 | BC78: 17666549.86
C79: 11 | D79: =D$6*VLOOKUP(D19,RehabArray,3)*AnnMiles -> 506471.3292 | E79: 604663.1947 | F79: 2717254.957 | G79: 555255.03 | H79: 3672750.64 | I79: 737822.0026 | J79: 1106733.004 | K79: 3664683.198 | L79: 210532.4436 | M79: 515338.0561 | N79: 33764.75528 | O79: 1106733.004 | P79: 613228.8523 | Q79: 1273629.155 | R79: 0 | S79: 0 | T79: 0 | U79: 0 | V79: 0 | W79: 0 | X79: 0 | Y79: 0 | Z79: 0 | AA79: 0 | AB79: 0 | AC79: 0 | AD79: 0 | AE79: 0 | AF79: 0 | AG79: 0 | AH79: 0 | AI79: 0 | AJ79: =AJ$6*VLOOKUP(AJ19,RehabArray,3)*AnnMiles -> 0 | AK79: 0 | AL79: 0 | AM79: 0 | AN79: 0 | AO79: 0 | AP79: 0 | AQ79: 0 | AR79: 0 | AS79: 0 | AT79: 0 | AU79: 0 | AV79: 0 | AW79: 0 | AX79: 0 | AY79: 0 | AZ79: 0 | BA79: 0 | BC79: 17318859.62
C80: 12 | D80: =D$6*VLOOKUP(D20,RehabArray,3)*AnnMiles -> 1189241.668 | E80: 140686.4803 | F80: 2731008.386 | G80: 567741.7717 | H80: 3692679.814 | I80: 842129.7742 | J80: 1263194.661 | K80: 3747095.693 | L80: 222102.012 | M80: 719376.4525 | N80: 79282.77787 | O80: 1263194.661 | P80: 617178.8869 | Q80: 1281833.073 | R80: 0 | S80: 0 | T80: 0 | U80: 0 | V80: 0 | W80: 0 | X80: 0 | Y80: 0 | Z80: 0 | AA80: 0 | AB80: 0 | AC80: 0 | AD80: 0 | AE80: 0 | AF80: 0 | AG80: 0 | AH80: 0 | AI80: 0 | AJ80: =AJ$6*VLOOKUP(AJ20,RehabArray,3)*AnnMiles -> 0 | AK80: 0 | AL80: 0 | AM80: 0 | AN80: 0 | AO80: 0 | AP80: 0 | AQ80: 0 | AR80: 0 | AS80: 0 | AT80: 0 | AU80: 0 | AV80: 0 | AW80: 0 | AX80: 0 | AY80: 0 | AZ80: 0 | BA80: 0 | BC80: 18356746.11
C81: 13 | D81: =D$6*VLOOKUP(D21,RehabArray,3)*AnnMiles -> 1660099.506 | E81: 330344.9078 | F81: 2744695.729 | G81: 573707.4984 | H81: 3711370.37 | I81: 888408.048 | J81: 1332612.072 | K81: 3786469.49 | L81: 227096.7087 | M81: 821076.5299 | N81: 110673.3004 | O81: 1332612.072 | P81: 622240.4567 | Q81: 1292345.564 | R81: 0 | S81: 0 | T81: 0 | U81: 0 | V81: 0 | W81: 0 | X81: 0 | Y81: 0 | Z81: 0 | AA81: 0 | AB81: 0 | AC81: 0 | AD81: 0 | AE81: 0 | AF81: 0 | AG81: 0 | AH81: 0 | AI81: 0 | AJ81: =AJ$6*VLOOKUP(AJ21,RehabArray,3)*AnnMiles -> 0 | AK81: 0 | AL81: 0 | AM81: 0 | AN81: 0 | AO81: 0 | AP81: 0 | AQ81: 0 | AR81: 0 | AS81: 0 | AT81: 0 | AU81: 0 | AV81: 0 | AW81: 0 | AX81: 0 | AY81: 0 | AZ81: 0 | BA81: 0 | BC81: 19433752.25
C82: 14 | D82: =D$6*VLOOKUP(D22,RehabArray,3)*AnnMiles -> 1894791.992 | E82: 461138.7516 | F82: 2759529.835 | G82: 577476.5158 | H82: 3729971.119 | I82: 908386.8346 | J82: 1362580.252 | K82: 3811345.004 | L82: 229482.9994 | M82: 866197.8468 | N82: 126319.4661 | O82: 1362580.252 | P82: 628849.7225 | Q82: 1306072.501 | R82: 0 | S82: 0 | T82: 0 | U82: 0 | V82: 0 | W82: 0 | X82: 0 | Y82: 0 | Z82: 0 | AA82: 0 | AB82: 0 | AC82: 0 | AD82: 0 | AE82: 0 | AF82: 0 | AG82: 0 | AH82: 0 | AI82: 0 | AJ82: =AJ$6*VLOOKUP(AJ22,RehabArray,3)*AnnMiles -> 0 | AK82: 0 | AL82: 0 | AM82: 0 | AN82: 0 | AO82: 0 | AP82: 0 | AQ82: 0 | AR82: 0 | AS82: 0 | AT82: 0 | AU82: 0 | AV82: 0 | AW82: 0 | AX82: 0 | AY82: 0 | AZ82: 0 | BA82: 0 | BC82: 20024723.09
C83: 15 | D83: =D$6*VLOOKUP(D23,RehabArray,3)*AnnMiles -> 1998918.108 | E83: 526331.1089 | F83: 2777304.991 | G83: 580610.0336 | H83: 3750130.289 | I83: 917931.9975 | J83: 1376897.996 | K83: 3832026.222 | L83: 230990.6063 | M83: 885677.1638 | N83: 133261.2072 | O83: 1376897.996 | P83: 146313.9395 | Q83: 303882.7975 | R83: 0 | S83: 0 | T83: 0 | U83: 0 | V83: 0 | W83: 0 | X83: 0 | Y83: 0 | Z83: 0 | AA83: 0 | AB83: 0 | AC83: 0 | AD83: 0 | AE83: 0 | AF83: 0 | AG83: 0 | AH83: 0 | AI83: 0 | AJ83: =AJ$6*VLOOKUP(AJ23,RehabArray,3)*AnnMiles -> 0 | AK83: 0 | AL83: 0 | AM83: 0 | AN83: 0 | AO83: 0 | AP83: 0 | AQ83: 0 | AR83: 0 | AS83: 0 | AT83: 0 | AU83: 0 | AV83: 0 | AW83: 0 | AX83: 0 | AY83: 0 | AZ83: 0 | BA83: 0 | BC83: 18837174.46
C84: 16 | D84: =D$6*VLOOKUP(D24,RehabArray,3)*AnnMiles -> 2043870.378 | E84: 555255.03 | F84: 2800082.055 | G84: 583548.8004 | H84: 3774286.27 | I84: 923962.4253 | J84: 1385943.638 | K84: 3851422.082 | L84: 232244.0134 | M84: 894983.6975 | N84: 136258.0252 | O84: 1385943.638 | P84: 343558.7041 | Q84: 713545.0008 | R84: 0 | S84: 0 | T84: 0 | U84: 0 | V84: 0 | W84: 0 | X84: 0 | Y84: 0 | Z84: 0 | AA84: 0 | AB84: 0 | AC84: 0 | AD84: 0 | AE84: 0 | AF84: 0 | AG84: 0 | AH84: 0 | AI84: 0 | AJ84: =AJ$6*VLOOKUP(AJ24,RehabArray,3)*AnnMiles -> 0 | AK84: 0 | AL84: 0 | AM84: 0 | AN84: 0 | AO84: 0 | AP84: 0 | AQ84: 0 | AR84: 0 | AS84: 0 | AT84: 0 | AU84: 0 | AV84: 0 | AW84: 0 | AX84: 0 | AY84: 0 | AZ84: 0 | BA84: 0 | BC84: 19624903.76
C85: 17 | D85: =D$6*VLOOKUP(D25,RehabArray,3)*AnnMiles -> 2065346.994 | E85: 567741.7717 | F85: 2829823.751 | G85: 586473.4465 | H85: 3805239.716 | I85: 928976.0537 | J85: 1393464.081 | K85: 3870724.747 | L85: 233419.5201 | M85: 900863.3646 | N85: 137689.7996 | O85: 1393464.081 | P85: 479584.3017 | Q85: 996059.7035 | R85: 0 | S85: 0 | T85: 0 | U85: 0 | V85: 0 | W85: 0 | X85: 0 | Y85: 0 | Z85: 0 | AA85: 0 | AB85: 0 | AC85: 0 | AD85: 0 | AE85: 0 | AF85: 0 | AG85: 0 | AH85: 0 | AI85: 0 | AJ85: =AJ$6*VLOOKUP(AJ25,RehabArray,3)*AnnMiles -> 0 | AK85: 0 | AL85: 0 | AM85: 0 | AN85: 0 | AO85: 0 | AP85: 0 | AQ85: 0 | AR85: 0 | AS85: 0 | AT85: 0 | AU85: 0 | AV85: 0 | AW85: 0 | AX85: 0 | AY85: 0 | AZ85: 0 | BA85: 0 | BC85: 20188871.33
C86: 18 | D86: =D$6*VLOOKUP(D26,RehabArray,3)*AnnMiles -> 2078915.457 | E86: 573707.4984 | F86: 658412.7279 | G86: 589643.1272 | H86: 3845657.918 | I86: 933678.0806 | J86: 1400517.121 | K86: 3891644.639 | L86: 234589.3786 | M86: 905751.6524 | N86: 138594.3638 | O86: 1400517.121 | P86: 547384.3533 | Q86: 1136875.195 | R86: 0 | S86: 0 | T86: 0 | U86: 0 | V86: 0 | W86: 0 | X86: 0 | Y86: 0 | Z86: 0 | AA86: 0 | AB86: 0 | AC86: 0 | AD86: 0 | AE86: 0 | AF86: 0 | AG86: 0 | AH86: 0 | AI86: 0 | AJ86: =AJ$6*VLOOKUP(AJ26,RehabArray,3)*AnnMiles -> 0 | AK86: 0 | AL86: 0 | AM86: 0 | AN86: 0 | AO86: 0 | AP86: 0 | AQ86: 0 | AR86: 0 | AS86: 0 | AT86: 0 | AU86: 0 | AV86: 0 | AW86: 0 | AX86: 0 | AY86: 0 | AZ86: 0 | BA86: 0 | BC86: 18335888.63
C87: 19 | D87: =D$6*VLOOKUP(D27,RehabArray,3)*AnnMiles -> 2090196.121 | E87: 577476.5158 | F87: 1546014.168 | G87: 593441.2374 | H87: 894766.0149 | I87: 938357.5143 | J87: 1407536.272 | K87: 3916712.167 | L87: 235857.2509 | M87: 910336.1286 | N87: 139346.4081 | O87: 1407536.272 | P87: 577465.2312 | Q87: 1199350.865 | R87: 0 | S87: 0 | T87: 0 | U87: 0 | V87: 0 | W87: 0 | X87: 0 | Y87: 0 | Z87: 0 | AA87: 0 | AB87: 0 | AC87: 0 | AD87: 0 | AE87: 0 | AF87: 0 | AG87: 0 | AH87: 0 | AI87: 0 | AJ87: =AJ$6*VLOOKUP(AJ27,RehabArray,3)*AnnMiles -> 0 | AK87: 0 | AL87: 0 | AM87: 0 | AN87: 0 | AO87: 0 | AP87: 0 | AQ87: 0 | AR87: 0 | AS87: 0 | AT87: 0 | AU87: 0 | AV87: 0 | AW87: 0 | AX87: 0 | AY87: 0 | AZ87: 0 | BA87: 0 | BC87: 16434392.17
C88: 20 | D88: =D$6*VLOOKUP(D28,RehabArray,3)*AnnMiles -> 2100775.681 | E88: 580610.0336 | F88: 2158129.358 | G88: 598308.1314 | H88: 2100993.614 | I88: 943429.0035 | J88: 1415143.505 | K88: 3948833.667 | L88: 237376.495 | M88: 914898.5765 | N88: 140051.7121 | O88: 1415143.505 | P88: 590451.4425 | Q88: 1226322.227 | R88: 0 | S88: 0 | T88: 0 | U88: 0 | V88: 0 | W88: 0 | X88: 0 | Y88: 0 | Z88: 0 | AA88: 0 | AB88: 0 | AC88: 0 | AD88: 0 | AE88: 0 | AF88: 0 | AG88: 0 | AH88: 0 | AI88: 0 | AJ88: =AJ$6*VLOOKUP(AJ28,RehabArray,3)*AnnMiles -> 0 | AK88: 0 | AL88: 0 | AM88: 0 | AN88: 0 | AO88: 0 | AP88: 0 | AQ88: 0 | AR88: 0 | AS88: 0 | AT88: 0 | AU88: 0 | AV88: 0 | AW88: 0 | AX88: 0 | AY88: 0 | AZ88: 0 | BA88: 0 | BC88: 18370466.95
C89: 21 | D89: =D$6*VLOOKUP(D29,RehabArray,3)*AnnMiles -> 2111304.407 | E89: 583548.8004 | F89: 2463229.59 | G89: 604663.1947 | H89: 2932842.46 | I89: 949505.9798 | J89: 1424258.97 | K89: 3990777.085 | L89: 239323.2526 | M89: 919843.2784 | N89: 140753.6272 | O89: 1424258.97 | P89: 596655.7983 | Q89: 1239208.197 | R89: 0 | S89: 0 | T89: 0 | U89: 0 | V89: 0 | W89: 0 | X89: 0 | Y89: 0 | Z89: 0 | AA89: 0 | AB89: 0 | AC89: 0 | AD89: 0 | AE89: 0 | AF89: 0 | AG89: 0 | AH89: 0 | AI89: 0 | AJ89: =AJ$6*VLOOKUP(AJ29,RehabArray,3)*AnnMiles -> 0 | AK89: 0 | AL89: 0 | AM89: 0 | AN89: 0 | AO89: 0 | AP89: 0 | AQ89: 0 | AR89: 0 | AS89: 0 | AT89: 0 | AU89: 0 | AV89: 0 | AW89: 0 | AX89: 0 | AY89: 0 | AZ89: 0 | BA89: 0 | BC89: 19620173.61
C90: 22 | D90: =D$6*VLOOKUP(D30,RehabArray,3)*AnnMiles -> 2122715.258 | E90: 586473.4465 | F90: 2598593.541 | G90: 140686.4803 | H90: 3347465.853 | I90: 957293.0103 | J90: 1435939.515 | K90: 928530.7702 | L90: 241865.2779 | M90: 925768.3303 | N90: 141514.3505 | O90: 1435939.515 | P90: 600575.5764 | Q90: 1247349.274 | R90: 0 | S90: 0 | T90: 0 | U90: 0 | V90: 0 | W90: 0 | X90: 0 | Y90: 0 | Z90: 0 | AA90: 0 | AB90: 0 | AC90: 0 | AD90: 0 | AE90: 0 | AF90: 0 | AG90: 0 | AH90: 0 | AI90: 0 | AJ90: =AJ$6*VLOOKUP(AJ30,RehabArray,3)*AnnMiles -> 0 | AK90: 0 | AL90: 0 | AM90: 0 | AN90: 0 | AO90: 0 | AP90: 0 | AQ90: 0 | AR90: 0 | AS90: 0 | AT90: 0 | AU90: 0 | AV90: 0 | AW90: 0 | AX90: 0 | AY90: 0 | AZ90: 0 | BA90: 0 | BC90: 16710710.2
C91: 23 | D91: =D$6*VLOOKUP(D31,RehabArray,3)*AnnMiles -> 2136388.455 | E91: 589643.1272 | F91: 2657031.491 | G91: 330344.9078 | H91: 3531421.991 | I91: 967461.1115 | J91: 1451191.667 | K91: 2180276.391 | L91: 56274.59213 | M91: 933360.685 | N91: 142425.897 | O91: 1451191.667 | P91: 603834.4349 | Q91: 1254117.673 | R91: 0 | S91: 0 | T91: 0 | U91: 0 | V91: 0 | W91: 0 | X91: 0 | Y91: 0 | Z91: 0 | AA91: 0 | AB91: 0 | AC91: 0 | AD91: 0 | AE91: 0 | AF91: 0 | AG91: 0 | AH91: 0 | AI91: 0 | AJ91: =AJ$6*VLOOKUP(AJ31,RehabArray,3)*AnnMiles -> 0 | AK91: 0 | AL91: 0 | AM91: 0 | AN91: 0 | AO91: 0 | AP91: 0 | AQ91: 0 | AR91: 0 | AS91: 0 | AT91: 0 | AU91: 0 | AV91: 0 | AW91: 0 | AX91: 0 | AY91: 0 | AZ91: 0 | BA91: 0 | BC91: 18284964.09
C92: 24 | D92: =D$6*VLOOKUP(D32,RehabArray,3)*AnnMiles -> 2153909.273 | E92: 593441.2374 | F92: 2684951.093 | G92: 461138.7516 | H92: 3610837.668 | I92: 225098.3685 | J92: 337647.5528 | K92: 3043515.761 | L92: 132137.9631 | M92: 943274.5837 | N92: 143593.9515 | O92: 337647.5528 | P92: 606890.7524 | Q92: 1260465.409 | R92: 0 | S92: 0 | T92: 0 | U92: 0 | V92: 0 | W92: 0 | X92: 0 | Y92: 0 | Z92: 0 | AA92: 0 | AB92: 0 | AC92: 0 | AD92: 0 | AE92: 0 | AF92: 0 | AG92: 0 | AH92: 0 | AI92: 0 | AJ92: =AJ$6*VLOOKUP(AJ32,RehabArray,3)*AnnMiles -> 0 | AK92: 0 | AL92: 0 | AM92: 0 | AN92: 0 | AO92: 0 | AP92: 0 | AQ92: 0 | AR92: 0 | AS92: 0 | AT92: 0 | AU92: 0 | AV92: 0 | AW92: 0 | AX92: 0 | AY92: 0 | AZ92: 0 | BA92: 0 | BC92: 16534549.92
C93: 25 | D93: =D$6*VLOOKUP(D33,RehabArray,3)*AnnMiles -> 2176787.501 | E93: 598308.1314 | F93: 2702590.094 | G93: 526331.1089 | H93: 3648779.69 | I93: 528551.8525 | J93: 792827.7787 | K93: 3473785.319 | L93: 184455.5006 | M93: 219470.9093 | N93: 145119.1667 | O93: 792827.7787 | P93: 609932.3843 | Q93: 1266782.644 | R93: 0 | S93: 0 | T93: 0 | U93: 0 | V93: 0 | W93: 0 | X93: 0 | Y93: 0 | Z93: 0 | AA93: 0 | AB93: 0 | AC93: 0 | AD93: 0 | AE93: 0 | AF93: 0 | AG93: 0 | AH93: 0 | AI93: 0 | AJ93: =AJ$6*VLOOKUP(AJ33,RehabArray,3)*AnnMiles -> 0 | AK93: 0 | AL93: 0 | AM93: 0 | AN93: 0 | AO93: 0 | AP93: 0 | AQ93: 0 | AR93: 0 | AS93: 0 | AT93: 0 | AU93: 0 | AV93: 0 | AW93: 0 | AX93: 0 | AY93: 0 | AZ93: 0 | BA93: 0 | BC93: 17666549.86
C94: 26 | D94: =D$6*VLOOKUP(D34,RehabArray,3)*AnnMiles -> 506471.3292 | E94: 604663.1947 | F94: 2717254.957 | G94: 555255.03 | H94: 3672750.64 | I94: 737822.0026 | J94: 1106733.004 | K94: 3664683.198 | L94: 210532.4436 | M94: 515338.0561 | N94: 33764.75528 | O94: 1106733.004 | P94: 613228.8523 | Q94: 1273629.155 | R94: 0 | S94: 0 | T94: 0 | U94: 0 | V94: 0 | W94: 0 | X94: 0 | Y94: 0 | Z94: 0 | AA94: 0 | AB94: 0 | AC94: 0 | AD94: 0 | AE94: 0 | AF94: 0 | AG94: 0 | AH94: 0 | AI94: 0 | AJ94: =AJ$6*VLOOKUP(AJ34,RehabArray,3)*AnnMiles -> 0 | AK94: 0 | AL94: 0 | AM94: 0 | AN94: 0 | AO94: 0 | AP94: 0 | AQ94: 0 | AR94: 0 | AS94: 0 | AT94: 0 | AU94: 0 | AV94: 0 | AW94: 0 | AX94: 0 | AY94: 0 | AZ94: 0 | BA94: 0 | BC94: 17318859.62
C95: 27 | D95: =D$6*VLOOKUP(D35,RehabArray,3)*AnnMiles -> 1189241.668 | E95: 140686.4803 | F95: 2731008.386 | G95: 567741.7717 | H95: 3692679.814 | I95: 842129.7742 | J95: 1263194.661 | K95: 3747095.693 | L95: 222102.012 | M95: 719376.4525 | N95: 79282.77787 | O95: 1263194.661 | P95: 617178.8869 | Q95: 1281833.073 | R95: 0 | S95: 0 | T95: 0 | U95: 0 | V95: 0 | W95: 0 | X95: 0 | Y95: 0 | Z95: 0 | AA95: 0 | AB95: 0 | AC95: 0 | AD95: 0 | AE95: 0 | AF95: 0 | AG95: 0 | AH95: 0 | AI95: 0 | AJ95: =AJ$6*VLOOKUP(AJ35,RehabArray,3)*AnnMiles -> 0 | AK95: 0 | AL95: 0 | AM95: 0 | AN95: 0 | AO95: 0 | AP95: 0 | AQ95: 0 | AR95: 0 | AS95: 0 | AT95: 0 | AU95: 0 | AV95: 0 | AW95: 0 | AX95: 0 | AY95: 0 | AZ95: 0 | BA95: 0 | BC95: 18356746.11
C96: 28 | D96: =D$6*VLOOKUP(D36,RehabArray,3)*AnnMiles -> 1660099.506 | E96: 330344.9078 | F96: 2744695.729 | G96: 573707.4984 | H96: 3711370.37 | I96: 888408.048 | J96: 1332612.072 | K96: 3786469.49 | L96: 227096.7087 | M96: 821076.5299 | N96: 110673.3004 | O96: 1332612.072 | P96: 622240.4567 | Q96: 1292345.564 | R96: 0 | S96: 0 | T96: 0 | U96: 0 | V96: 0 | W96: 0 | X96: 0 | Y96: 0 | Z96: 0 | AA96: 0 | AB96: 0 | AC96: 0 | AD96: 0 | AE96: 0 | AF96: 0 | AG96: 0 | AH96: 0 | AI96: 0 | AJ96: =AJ$6*VLOOKUP(AJ36,RehabArray,3)*AnnMiles -> 0 | AK96: 0 | AL96: 0 | AM96: 0 | AN96: 0 | AO96: 0 | AP96: 0 | AQ96: 0 | AR96: 0 | AS96: 0 | AT96: 0 | AU96: 0 | AV96: 0 | AW96: 0 | AX96: 0 | AY96: 0 | AZ96: 0 | BA96: 0 | BC96: 19433752.25
C97: 29 | D97: =D$6*VLOOKUP(D37,RehabArray,3)*AnnMiles -> 1894791.992 | E97: 461138.7516 | F97: 2759529.835 | G97: 577476.5158 | H97: 3729971.119 | I97: 908386.8346 | J97: 1362580.252 | K97: 3811345.004 | L97: 229482.9994 | M97: 866197.8468 | N97: 126319.4661 | O97: 1362580.252 | P97: 628849.7225 | Q97: 1306072.501 | R97: 0 | S97: 0 | T97: 0 | U97: 0 | V97: 0 | W97: 0 | X97: 0 | Y97: 0 | Z97: 0 | AA97: 0 | AB97: 0 | AC97: 0 | AD97: 0 | AE97: 0 | AF97: 0 | AG97: 0 | AH97: 0 | AI97: 0 | AJ97: =AJ$6*VLOOKUP(AJ37,RehabArray,3)*AnnMiles -> 0 | AK97: 0 | AL97: 0 | AM97: 0 | AN97: 0 | AO97: 0 | AP97: 0 | AQ97: 0 | AR97: 0 | AS97: 0 | AT97: 0 | AU97: 0 | AV97: 0 | AW97: 0 | AX97: 0 | AY97: 0 | AZ97: 0 | BA97: 0 | BC97: 20024723.09
C98: 30 | D98: =D$6*VLOOKUP(D38,RehabArray,3)*AnnMiles -> 1998918.108 | E98: 526331.1089 | F98: 2777304.991 | G98: 580610.0336 | H98: 3750130.289 | I98: 917931.9975 | J98: 1376897.996 | K98: 3832026.222 | L98: 230990.6063 | M98: 885677.1638 | N98: 133261.2072 | O98: 1376897.996 | P98: 146313.9395 | Q98: 303882.7975 | R98: 0 | S98: 0 | T98: 0 | U98: 0 | V98: 0 | W98: 0 | X98: 0 | Y98: 0 | Z98: 0 | AA98: 0 | AB98: 0 | AC98: 0 | AD98: 0 | AE98: 0 | AF98: 0 | AG98: 0 | AH98: 0 | AI98: 0 | AJ98: =AJ$6*VLOOKUP(AJ38,RehabArray,3)*AnnMiles -> 0 | AK98: 0 | AL98: 0 | AM98: 0 | AN98: 0 | AO98: 0 | AP98: 0 | AQ98: 0 | AR98: 0 | AS98: 0 | AT98: 0 | AU98: 0 | AV98: 0 | AW98: 0 | AX98: 0 | AY98: 0 | AZ98: 0 | BA98: 0 | BC98: 18837174.46
A99: Calibration | B99: Fuel | D99: =D6*EXP(D7*FuelC1) -> 98.74410288 | E99: 26.85660613 | F99: 155.7584857 | G99: 30.10533272 | H99: 206.7023584 | I99: 46.68234231 | J99: 69.98839847 | K99: 197.3708389 | L99: 11.86076993 | M99: 43.98763858 | N99: 6.642824465 | O99: 68.56099344 | P99: 26.4118042 | Q99: 54.64612119 | R99: 0 | S99: 0 | T99: 0 | U99: 0 | V99: 0 | W99: 0 | X99: 0 | Y99: 0 | Z99: 0 | AA99: 0 | AB99: 0 | AC99: 0 | AD99: 0 | AE99: 0 | AF99: 0 | AG99: 0 | AH99: 0 | AI99: 0 | AJ99: =AJ6*EXP(AJ7*FuelC1) -> 0 | AK99: 0 | AL99: 0 | AM99: 0 | AN99: 0 | AO99: 0 | AP99: 0 | AQ99: 0 | AR99: 0 | AS99: 0 | AT99: 0 | AU99: 0 | AV99: 0 | AW99: 0 | AX99: 0 | AY99: 0 | AZ99: 0 | BA99: 0 | BC99: =SUM(D99:BB99) -> 1044.318617
B100: Maintenance | D100: =D6*EXP(D7*MaintC1) -> 108.4339238 | E100: 28.87087625 | F100: 207.9250035 | G100: 36.31776679 | H100: 269.3916644 | I100: 54.56162813 | J100: 81.75998657 | K100: 236.4974803 | L100: 14.09077817 | M100: 49.67030681 | N100: 7.361685902 | O100: 78.44355505 | P100: 26.83416578 | Q100: 55.30626795 | R100: 0 | S100: 0 | T100: 0 | U100: 0 | V100: 0 | W100: 0 | X100: 0 | Y100: 0 | Z100: 0 | AA100: 0 | AB100: 0 | AC100: 0 | AD100: 0 | AE100: 0 | AF100: 0 | AG100: 0 | AH100: 0 | AI100: 0 | AJ100: =AJ6*EXP(AJ7*MaintC1) -> 0 | AK100: 0 | AL100: 0 | AM100: 0 | AN100: 0 | AO100: 0 | AP100: 0 | AQ100: 0 | AR100: 0 | AS100: 0 | AT100: 0 | AU100: 0 | AV100: 0 | AW100: 0 | AX100: 0 | AY100: 0 | AZ100: 0 | BA100: 0 | BC100: =SUM(D100:BB100) -> 1255.46509
B101: Delay | D101: =D6*EXP(DelayC1*D7) -> 120.6164927 | E101: 31.34625446 | F101: 288.8047617 | G101: 44.95654447 | H101: 364.1110714 | I101: 65.15256374 | J101: 97.57416565 | K101: 290.5127061 | L101: 17.14117858 | M101: 57.03156156 | N101: 8.274371521 | O101: 91.42710995 | P101: 27.32279343 | Q101: 56.06684539 | R101: 0 | S101: 0 | T101: 0 | U101: 0 | V101: 0 | W101: 0 | X101: 0 | Y101: 0 | Z101: 0 | AA101: 0 | AB101: 0 | AC101: 0 | AD101: 0 | AE101: 0 | AF101: 0 | AG101: 0 | AH101: 0 | AI101: 0 | AJ101: =AJ6*EXP(DelayC1*AJ7) -> 0 | AK101: 0 | AL101: 0 | AM101: 0 | AN101: 0 | AO101: 0 | AP101: 0 | AQ101: 0 | AR101: 0 | AS101: 0 | AT101: 0 | AU101: 0 | AV101: 0 | AW101: 0 | AX101: 0 | AY101: 0 | AZ101: 0 | BA101: 0 | BC101: =SUM(D101:BB101) -> 1560.338421
A102: Fuel Cost | C102: 1 | D102: =D$6*AnnMiles*FuelC2*(EXP((D7+0.75*AnnMiles)*FuelC1)+EXP((D9+0.25*AnnMiles)*FuelC1))/2 -> 2219346.278 | E102: 603621.9592 | F102: 3500786.43 | G102: 676639.4768 | H102: 4645787.407 | I102: 1049219.949 | J102: 1573040.689 | K102: 4436054.648 | L102: 266579.5206 | M102: 988654.503 | N102: 149302.3616 | O102: 1540958.712 | P102: 593624.709 | Q102: 1228211.732 | R102: 0 | S102: 0 | T102: 0 | U102: 0 | V102: 0 | W102: 0 | X102: 0 | Y102: 0 | Z102: 0 | AA102: 0 | AB102: 0 | AC102: 0 | AD102: 0 | AE102: 0 | AF102: 0 | AG102: 0 | AH102: 0 | AI102: 0 | AJ102: =AJ$6*AnnMiles*FuelC2*(EXP((AJ7+0.75*AnnMiles)*FuelC1)+EXP((AJ9+0.25*AnnMiles)*FuelC1))/2 -> 0 | AK102: 0 | AL102: 0 | AM102: 0 | AN102: 0 | AO102: 0 | AP102: 0 | AQ102: 0 | AR102: 0 | AS102: 0 | AT102: 0 | AU102: 0 | AV102: 0 | AW102: 0 | AX102: 0 | AY102: 0 | AZ102: 0 | BA102: 0 | BC102: =SUM(D102:BB102) -> 23471828.38
C103: =1+C102 -> 2 | D103: =D$6*AnnMiles*FuelC2*(EXP((D9+0.75*AnnMiles)*FuelC1)+EXP((D10+0.25*AnnMiles)*FuelC1))/2 -> 2269149.609 | E103: 617167.5625 | F103: 3579345.972 | G103: 691823.6328 | H103: 4750041.39 | I103: 1072765.013 | J103: 1608340.573 | K103: 4535602.115 | L103: 272561.7092 | M103: 1010840.445 | N103: 152652.7873 | O103: 1575538.659 | P103: 606945.9687 | Q103: 1255773.468 | R103: 0 | S103: 0 | T103: 0 | U103: 0 | V103: 0 | W103: 0 | X103: 0 | Y103: 0 | Z103: 0 | AA103: 0 | AB103: 0 | AC103: 0 | AD103: 0 | AE103: 0 | AF103: 0 | AG103: 0 | AH103: 0 | AI103: 0 | AJ103: =AJ$6*AnnMiles*FuelC2*(EXP((AJ9+0.75*AnnMiles)*FuelC1)+EXP((AJ10+0.25*AnnMiles)*FuelC1))/2 -> 0 | AK103: 0 | AL103: 0 | AM103: 0 | AN103: 0 | AO103: 0 | AP103: 0 | AQ103: 0 | AR103: 0 | AS103: 0 | AT103: 0 | AU103: 0 | AV103: 0 | AW103: 0 | AX103: 0 | AY103: 0 | AZ103: 0 | BA103: 0 | BC103: 23998548.9
C104: =1+C103 -> 3 | D104: =D$6*AnnMiles*FuelC2*(EXP((D10+0.75*AnnMiles)*FuelC1)+EXP((D11+0.25*AnnMiles)*FuelC1))/2 -> 2320070.554 | E104: 631017.1366 | F104: 3112789.411 | G104: 707348.5295 | H104: 4856634.889 | I104: 1096838.44 | J104: 1644432.606 | K104: 4637383.48 | L104: 278678.1415 | M104: 1033524.252 | N104: 156078.3985 | O104: 1610894.599 | P104: 620566.1647 | Q104: 1283953.704 | R104: 0 | S104: 0 | T104: 0 | U104: 0 | V104: 0 | W104: 0 | X104: 0 | Y104: 0 | Z104: 0 | AA104: 0 | AB104: 0 | AC104: 0 | AD104: 0 | AE104: 0 | AF104: 0 | AG104: 0 | AH104: 0 | AI104: 0 | AJ104: =AJ$6*AnnMiles*FuelC2*(EXP((AJ10+0.75*AnnMiles)*FuelC1)+EXP((AJ11+0.25*AnnMiles)*FuelC1))/2 -> 0 | AK104: 0 | AL104: 0 | AM104: 0 | AN104: 0 | AO104: 0 | AP104: 0 | AQ104: 0 | AR104: 0 | AS104: 0 | AT104: 0 | AU104: 0 | AV104: 0 | AW104: 0 | AX104: 0 | AY104: 0 | AZ104: 0 | BA104: 0 | BC104: 23990210.31
C105: 4 | D105: =D$6*AnnMiles*FuelC2*(EXP((D11+0.75*AnnMiles)*FuelC1)+EXP((D12+0.25*AnnMiles)*FuelC1))/2 -> 2372134.193 | E105: 645177.5026 | F105: 2629660.982 | G105: 723221.8132 | H105: 4226334.984 | I105: 1121452.088 | J105: 1681334.563 | K105: 4741448.875 | L105: 284931.8298 | M105: 1056717.095 | N105: 159580.8822 | O105: 1647043.946 | P105: 634492.0052 | Q105: 1312766.32 | R105: 0 | S105: 0 | T105: 0 | U105: 0 | V105: 0 | W105: 0 | X105: 0 | Y105: 0 | Z105: 0 | AA105: 0 | AB105: 0 | AC105: 0 | AD105: 0 | AE105: 0 | AF105: 0 | AG105: 0 | AH105: 0 | AI105: 0 | AJ105: =AJ$6*AnnMiles*FuelC2*(EXP((AJ11+0.75*AnnMiles)*FuelC1)+EXP((AJ12+0.25*AnnMiles)*FuelC1))/2 -> 0 | AK105: 0 | AL105: 0 | AM105: 0 | AN105: 0 | AO105: 0 | AP105: 0 | AQ105: 0 | AR105: 0 | AS105: 0 | AT105: 0 | AU105: 0 | AV105: 0 | AW105: 0 | AX105: 0 | AY105: 0 | AZ105: 0 | BA105: 0 | BC105: 23236297.08
C106: 5 | D106: =D$6*AnnMiles*FuelC2*(EXP((D12+0.75*AnnMiles)*FuelC1)+EXP((D13+0.25*AnnMiles)*FuelC1))/2 -> 2425366.168 | E106: 659655.6348 | F106: 2688671.997 | G106: 739451.302 | H106: 3573641.847 | I106: 1146618.08 | J106: 1719064.621 | K106: 4847849.553 | L106: 291325.8542 | M106: 1080430.398 | N106: 163161.9635 | O106: 1684004.503 | P106: 648730.3491 | Q106: 1342225.507 | R106: 0 | S106: 0 | T106: 0 | U106: 0 | V106: 0 | W106: 0 | X106: 0 | Y106: 0 | Z106: 0 | AA106: 0 | AB106: 0 | AC106: 0 | AD106: 0 | AE106: 0 | AF106: 0 | AG106: 0 | AH106: 0 | AI106: 0 | AJ106: =AJ$6*AnnMiles*FuelC2*(EXP((AJ12+0.75*AnnMiles)*FuelC1)+EXP((AJ13+0.25*AnnMiles)*FuelC1))/2 -> 0 | AK106: 0 | AL106: 0 | AM106: 0 | AN106: 0 | AO106: 0 | AP106: 0 | AQ106: 0 | AR106: 0 | AS106: 0 | AT106: 0 | AU106: 0 | AV106: 0 | AW106: 0 | AX106: 0 | AY106: 0 | AZ106: 0 | BA106: 0 | BC106: 23010197.78
C107: 6 | D107: =D$6*AnnMiles*FuelC2*(EXP((D13+0.75*AnnMiles)*FuelC1)+EXP((D14+0.25*AnnMiles)*FuelC1))/2 -> 2479792.697 | E107: 674458.6642 | F107: 2749007.251 | G107: 756044.9894 | H107: 3653836.303 | I107: 1172348.81 | J107: 1757641.361 | K107: 4956637.92 | L107: 297863.364 | M107: 1104675.841 | N107: 166823.4063 | O107: 1721794.475 | P107: 663288.2091 | Q107: 1372345.773 | R107: 0 | S107: 0 | T107: 0 | U107: 0 | V107: 0 | W107: 0 | X107: 0 | Y107: 0 | Z107: 0 | AA107: 0 | AB107: 0 | AC107: 0 | AD107: 0 | AE107: 0 | AF107: 0 | AG107: 0 | AH107: 0 | AI107: 0 | AJ107: =AJ$6*AnnMiles*FuelC2*(EXP((AJ13+0.75*AnnMiles)*FuelC1)+EXP((AJ14+0.25*AnnMiles)*FuelC1))/2 -> 0 | AK107: 0 | AL107: 0 | AM107: 0 | AN107: 0 | AO107: 0 | AP107: 0 | AQ107: 0 | AR107: 0 | AS107: 0 | AT107: 0 | AU107: 0 | AV107: 0 | AW107: 0 | AX107: 0 | AY107: 0 | AZ107: 0 | BA107: 0 | BC107: 23526559.06
C108: 7 | D108: =D$6*AnnMiles*FuelC2*(EXP((D14+0.75*AnnMiles)*FuelC1)+EXP((D15+0.25*AnnMiles)*FuelC1))/2 -> 2535440.587 | E108: 689593.8816 | F108: 2810696.461 | G108: 660666.1307 | H108: 3735830.367 | I108: 1198656.952 | J108: 1797083.784 | K108: 4343488.115 | L108: 304547.5791 | M108: 1129465.365 | N108: 170567.0138 | O108: 1760432.475 | P108: 678172.7554 | Q108: 1403141.955 | R108: 0 | S108: 0 | T108: 0 | U108: 0 | V108: 0 | W108: 0 | X108: 0 | Y108: 0 | Z108: 0 | AA108: 0 | AB108: 0 | AC108: 0 | AD108: 0 | AE108: 0 | AF108: 0 | AG108: 0 | AH108: 0 | AI108: 0 | AJ108: =AJ$6*AnnMiles*FuelC2*(EXP((AJ14+0.75*AnnMiles)*FuelC1)+EXP((AJ15+0.25*AnnMiles)*FuelC1))/2 -> 0 | AK108: 0 | AL108: 0 | AM108: 0 | AN108: 0 | AO108: 0 | AP108: 0 | AQ108: 0 | AR108: 0 | AS108: 0 | AT108: 0 | AU108: 0 | AV108: 0 | AW108: 0 | AX108: 0 | AY108: 0 | AZ108: 0 | BA108: 0 | BC108: 23217783.42
C109: 8 | D109: =D$6*AnnMiles*FuelC2*(EXP((D15+0.75*AnnMiles)*FuelC1)+EXP((D16+0.25*AnnMiles)*FuelC1))/2 -> 2592337.245 | E109: 705068.7414 | F109: 2873770.011 | G109: 561893.3721 | H109: 3819664.422 | I109: 1225555.462 | J109: 1837411.317 | K109: 3708496.256 | L109: 265349.0984 | M109: 1154811.179 | N109: 174394.6299 | O109: 1799937.532 | P109: 693391.319 | Q109: 1434629.22 | R109: 0 | S109: 0 | T109: 0 | U109: 0 | V109: 0 | W109: 0 | X109: 0 | Y109: 0 | Z109: 0 | AA109: 0 | AB109: 0 | AC109: 0 | AD109: 0 | AE109: 0 | AF109: 0 | AG109: 0 | AH109: 0 | AI109: 0 | AJ109: =AJ$6*AnnMiles*FuelC2*(EXP((AJ15+0.75*AnnMiles)*FuelC1)+EXP((AJ16+0.25*AnnMiles)*FuelC1))/2 -> 0 | AK109: 0 | AL109: 0 | AM109: 0 | AN109: 0 | AO109: 0 | AP109: 0 | AQ109: 0 | AR109: 0 | AS109: 0 | AT109: 0 | AU109: 0 | AV109: 0 | AW109: 0 | AX109: 0 | AY109: 0 | AZ109: 0 | BA109: 0 | BC109: 22846709.8
C110: 9 | D110: =D$6*AnnMiles*FuelC2*(EXP((D16+0.75*AnnMiles)*FuelC1)+EXP((D17+0.25*AnnMiles)*FuelC1))/2 -> 2650510.696 | E110: 720890.8654 | F110: 2938258.965 | G110: 574502.5634 | H110: 3905379.758 | I110: 1065140.716 | J110: 1597242.406 | K110: 3791716.919 | L110: 224757.3488 | M110: 1180725.766 | N110: 178308.1397 | O110: 1578191.334 | P110: 708951.3954 | Q110: 1466823.076 | R110: 0 | S110: 0 | T110: 0 | U110: 0 | V110: 0 | W110: 0 | X110: 0 | Y110: 0 | Z110: 0 | AA110: 0 | AB110: 0 | AC110: 0 | AD110: 0 | AE110: 0 | AF110: 0 | AG110: 0 | AH110: 0 | AI110: 0 | AJ110: =AJ$6*AnnMiles*FuelC2*(EXP((AJ16+0.75*AnnMiles)*FuelC1)+EXP((AJ17+0.25*AnnMiles)*FuelC1))/2 -> 0 | AK110: 0 | AL110: 0 | AM110: 0 | AN110: 0 | AO110: 0 | AP110: 0 | AQ110: 0 | AR110: 0 | AS110: 0 | AT110: 0 | AU110: 0 | AV110: 0 | AW110: 0 | AX110: 0 | AY110: 0 | AZ110: 0 | BA110: 0 | BC110: 22581399.95
C111: 10 | D111: =D$6*AnnMiles*FuelC2*(EXP((D17+0.75*AnnMiles)*FuelC1)+EXP((D18+0.25*AnnMiles)*FuelC1))/2 -> 2709989.59 | E111: 737068.0465 | F111: 3004195.086 | G111: 587394.7118 | H111: 3993018.593 | I111: 899029.3954 | J111: 1348544.093 | K111: 3876805.098 | L111: 229801.0254 | M111: 1031297.818 | N111: 182309.4709 | O111: 1348544.093 | P111: 724860.6483 | Q111: 1499739.379 | R111: 0 | S111: 0 | T111: 0 | U111: 0 | V111: 0 | W111: 0 | X111: 0 | Y111: 0 | Z111: 0 | AA111: 0 | AB111: 0 | AC111: 0 | AD111: 0 | AE111: 0 | AF111: 0 | AG111: 0 | AH111: 0 | AI111: 0 | AJ111: =AJ$6*AnnMiles*FuelC2*(EXP((AJ17+0.75*AnnMiles)*FuelC1)+EXP((AJ18+0.25*AnnMiles)*FuelC1))/2 -> 0 | AK111: 0 | AL111: 0 | AM111: 0 | AN111: 0 | AO111: 0 | AP111: 0 | AQ111: 0 | AR111: 0 | AS111: 0 | AT111: 0 | AU111: 0 | AV111: 0 | AW111: 0 | AX111: 0 | AY111: 0 | AZ111: 0 | BA111: 0 | BC111: 22172597.05
C112: 11 | D112: =D$6*AnnMiles*FuelC2*(EXP((D18+0.75*AnnMiles)*FuelC1)+EXP((D19+0.25*AnnMiles)*FuelC1))/2 -> 2372413.185 | E112: 753608.2523 | F112: 3071610.849 | G112: 600576.167 | H112: 4082624.091 | I112: 919204.1015 | J112: 1378806.152 | K112: 3963802.702 | L112: 234957.8847 | M112: 876553.6605 | N112: 158996.4072 | O112: 1378806.152 | P112: 741126.9135 | Q112: 1533394.342 | R112: 0 | S112: 0 | T112: 0 | U112: 0 | V112: 0 | W112: 0 | X112: 0 | Y112: 0 | Z112: 0 | AA112: 0 | AB112: 0 | AC112: 0 | AD112: 0 | AE112: 0 | AF112: 0 | AG112: 0 | AH112: 0 | AI112: 0 | AJ112: =AJ$6*AnnMiles*FuelC2*(EXP((AJ18+0.75*AnnMiles)*FuelC1)+EXP((AJ19+0.25*AnnMiles)*FuelC1))/2 -> 0 | AK112: 0 | AL112: 0 | AM112: 0 | AN112: 0 | AO112: 0 | AP112: 0 | AQ112: 0 | AR112: 0 | AS112: 0 | AT112: 0 | AU112: 0 | AV112: 0 | AW112: 0 | AX112: 0 | AY112: 0 | AZ112: 0 | BA112: 0 | BC112: 22066480.86
C113: 12 | D113: =D$6*AnnMiles*FuelC2*(EXP((D19+0.75*AnnMiles)*FuelC1)+EXP((D20+0.25*AnnMiles)*FuelC1))/2 -> 2022816.14 | E113: 659427.3326 | F113: 3140539.459 | G113: 614053.4211 | H113: 4174240.385 | I113: 939831.5389 | J113: 1409747.308 | K113: 4052752.579 | L113: 240230.4668 | M113: 896223.9989 | N113: 134854.4093 | O113: 1409747.308 | P113: 757758.2024 | Q113: 1567804.541 | R113: 0 | S113: 0 | T113: 0 | U113: 0 | V113: 0 | W113: 0 | X113: 0 | Y113: 0 | Z113: 0 | AA113: 0 | AB113: 0 | AC113: 0 | AD113: 0 | AE113: 0 | AF113: 0 | AG113: 0 | AH113: 0 | AI113: 0 | AJ113: =AJ$6*AnnMiles*FuelC2*(EXP((AJ19+0.75*AnnMiles)*FuelC1)+EXP((AJ20+0.25*AnnMiles)*FuelC1))/2 -> 0 | AK113: 0 | AL113: 0 | AM113: 0 | AN113: 0 | AO113: 0 | AP113: 0 | AQ113: 0 | AR113: 0 | AS113: 0 | AT113: 0 | AU113: 0 | AV113: 0 | AW113: 0 | AX113: 0 | AY113: 0 | AZ113: 0 | BA113: 0 | BC113: 22020027.09
C114: 13 | D114: =D$6*AnnMiles*FuelC2*(EXP((D20+0.75*AnnMiles)*FuelC1)+EXP((D21+0.25*AnnMiles)*FuelC1))/2 -> 2068209.228 | E114: 561893.3721 | F114: 3211014.863 | G114: 627833.1121 | H114: 4267912.597 | I114: 960921.8671 | J114: 1441382.801 | K114: 4143698.54 | L114: 245621.3684 | M114: 916335.7504 | N114: 137880.6152 | O114: 1441382.801 | P114: 774762.7065 | Q114: 1602986.923 | R114: 0 | S114: 0 | T114: 0 | U114: 0 | V114: 0 | W114: 0 | X114: 0 | Y114: 0 | Z114: 0 | AA114: 0 | AB114: 0 | AC114: 0 | AD114: 0 | AE114: 0 | AF114: 0 | AG114: 0 | AH114: 0 | AI114: 0 | AJ114: =AJ$6*AnnMiles*FuelC2*(EXP((AJ20+0.75*AnnMiles)*FuelC1)+EXP((AJ21+0.25*AnnMiles)*FuelC1))/2 -> 0 | AK114: 0 | AL114: 0 | AM114: 0 | AN114: 0 | AO114: 0 | AP114: 0 | AQ114: 0 | AR114: 0 | AS114: 0 | AT114: 0 | AU114: 0 | AV114: 0 | AW114: 0 | AX114: 0 | AY114: 0 | AZ114: 0 | BA114: 0 | BC114: 22401836.55
C115: 14 | D115: =D$6*AnnMiles*FuelC2*(EXP((D21+0.75*AnnMiles)*FuelC1)+EXP((D22+0.25*AnnMiles)*FuelC1))/2 -> 2114620.962 | E115: 574502.5634 | F115: 3283071.774 | G115: 641922.0269 | H115: 4363686.865 | I115: 982485.4738 | J115: 1473728.211 | K115: 4236685.377 | L115: 251133.2449 | M115: 936898.8205 | N115: 140974.7308 | O115: 1473728.211 | P115: 792148.8008 | Q115: 1638958.817 | R115: 0 | S115: 0 | T115: 0 | U115: 0 | V115: 0 | W115: 0 | X115: 0 | Y115: 0 | Z115: 0 | AA115: 0 | AB115: 0 | AC115: 0 | AD115: 0 | AE115: 0 | AF115: 0 | AG115: 0 | AH115: 0 | AI115: 0 | AJ115: =AJ$6*AnnMiles*FuelC2*(EXP((AJ21+0.75*AnnMiles)*FuelC1)+EXP((AJ22+0.25*AnnMiles)*FuelC1))/2 -> 0 | AK115: 0 | AL115: 0 | AM115: 0 | AN115: 0 | AO115: 0 | AP115: 0 | AQ115: 0 | AR115: 0 | AS115: 0 | AT115: 0 | AU115: 0 | AV115: 0 | AW115: 0 | AX115: 0 | AY115: 0 | AZ115: 0 | BA115: 0 | BC115: 22904545.88
C116: 15 | D116: =D$6*AnnMiles*FuelC2*(EXP((D22+0.75*AnnMiles)*FuelC1)+EXP((D23+0.25*AnnMiles)*FuelC1))/2 -> 2162074.201 | E116: 587394.7118 | F116: 3356745.681 | G116: 656327.1045 | H116: 4461610.36 | I116: 1004532.979 | J116: 1506799.469 | K116: 4331758.89 | L116: 256768.8108 | M116: 957923.3369 | N116: 144138.2801 | O116: 1506799.469 | P116: 690072.929 | Q116: 1430039.142 | R116: 0 | S116: 0 | T116: 0 | U116: 0 | V116: 0 | W116: 0 | X116: 0 | Y116: 0 | Z116: 0 | AA116: 0 | AB116: 0 | AC116: 0 | AD116: 0 | AE116: 0 | AF116: 0 | AG116: 0 | AH116: 0 | AI116: 0 | AJ116: =AJ$6*AnnMiles*FuelC2*(EXP((AJ22+0.75*AnnMiles)*FuelC1)+EXP((AJ23+0.25*AnnMiles)*FuelC1))/2 -> 0 | AK116: 0 | AL116: 0 | AM116: 0 | AN116: 0 | AO116: 0 | AP116: 0 | AQ116: 0 | AR116: 0 | AS116: 0 | AT116: 0 | AU116: 0 | AV116: 0 | AW116: 0 | AX116: 0 | AY116: 0 | AZ116: 0 | BA116: 0 | BC116: 23052985.36
C117: 16 | D117: =D$6*AnnMiles*FuelC2*(EXP((D23+0.75*AnnMiles)*FuelC1)+EXP((D24+0.25*AnnMiles)*FuelC1))/2 -> 2210592.316 | E117: 600576.167 | F117: 3432072.871 | G117: 671055.4399 | H117: 4561731.31 | I117: 1027075.243 | J117: 1540612.865 | K117: 4428965.903 | L117: 262530.8418 | M117: 979419.6549 | N117: 147372.8211 | O117: 1540612.865 | P117: 584369.107 | Q117: 1213689.684 | R117: 0 | S117: 0 | T117: 0 | U117: 0 | V117: 0 | W117: 0 | X117: 0 | Y117: 0 | Z117: 0 | AA117: 0 | AB117: 0 | AC117: 0 | AD117: 0 | AE117: 0 | AF117: 0 | AG117: 0 | AH117: 0 | AI117: 0 | AJ117: =AJ$6*AnnMiles*FuelC2*(EXP((AJ23+0.75*AnnMiles)*FuelC1)+EXP((AJ24+0.25*AnnMiles)*FuelC1))/2 -> 0 | AK117: 0 | AL117: 0 | AM117: 0 | AN117: 0 | AO117: 0 | AP117: 0 | AQ117: 0 | AR117: 0 | AS117: 0 | AT117: 0 | AU117: 0 | AV117: 0 | AW117: 0 | AX117: 0 | AY117: 0 | AZ117: 0 | BA117: 0 | BC117: 23200677.09
C118: 17 | D118: =D$6*AnnMiles*FuelC2*(EXP((D24+0.75*AnnMiles)*FuelC1)+EXP((D25+0.25*AnnMiles)*FuelC1))/2 -> 2260199.204 | E118: 614053.4211 | F118: 3509090.443 | G118: 686114.287 | H118: 4664099.029 | I118: 1050123.367 | J118: 1575185.051 | K118: 4528354.294 | L118: 268422.1759 | M118: 1001398.362 | N118: 150679.9469 | O118: 1575185.051 | P118: 597482.666 | Q118: 1240925.537 | R118: 0 | S118: 0 | T118: 0 | U118: 0 | V118: 0 | W118: 0 | X118: 0 | Y118: 0 | Z118: 0 | AA118: 0 | AB118: 0 | AC118: 0 | AD118: 0 | AE118: 0 | AF118: 0 | AG118: 0 | AH118: 0 | AI118: 0 | AJ118: =AJ$6*AnnMiles*FuelC2*(EXP((AJ24+0.75*AnnMiles)*FuelC1)+EXP((AJ25+0.25*AnnMiles)*FuelC1))/2 -> 0 | AK118: 0 | AL118: 0 | AM118: 0 | AN118: 0 | AO118: 0 | AP118: 0 | AQ118: 0 | AR118: 0 | AS118: 0 | AT118: 0 | AU118: 0 | AV118: 0 | AW118: 0 | AX118: 0 | AY118: 0 | AZ118: 0 | BA118: 0 | BC118: 23721312.83
C119: 18 | D119: =D$6*AnnMiles*FuelC2*(EXP((D25+0.75*AnnMiles)*FuelC1)+EXP((D26+0.25*AnnMiles)*FuelC1))/2 -> 2310919.297 | E119: 627833.1121 | F119: 3077072.625 | G119: 701511.0629 | H119: 4768763.935 | I119: 1073688.704 | J119: 1610533.056 | K119: 4629973.015 | L119: 274445.7148 | M119: 1023870.283 | N119: 154061.2865 | O119: 1610533.056 | P119: 610890.5003 | Q119: 1268772.577 | R119: 0 | S119: 0 | T119: 0 | U119: 0 | V119: 0 | W119: 0 | X119: 0 | Y119: 0 | Z119: 0 | AA119: 0 | AB119: 0 | AC119: 0 | AD119: 0 | AE119: 0 | AF119: 0 | AG119: 0 | AH119: 0 | AI119: 0 | AJ119: =AJ$6*AnnMiles*FuelC2*(EXP((AJ25+0.75*AnnMiles)*FuelC1)+EXP((AJ26+0.25*AnnMiles)*FuelC1))/2 -> 0 | AK119: 0 | AL119: 0 | AM119: 0 | AN119: 0 | AO119: 0 | AP119: 0 | AQ119: 0 | AR119: 0 | AS119: 0 | AT119: 0 | AU119: 0 | AV119: 0 | AW119: 0 | AX119: 0 | AY119: 0 | AZ119: 0 | BA119: 0 | BC119: 23742868.22
C120: 19 | D120: =D$6*AnnMiles*FuelC2*(EXP((D26+0.75*AnnMiles)*FuelC1)+EXP((D27+0.25*AnnMiles)*FuelC1))/2 -> 2362777.576 | E120: 641922.0269 | F120: 2629660.982 | G120: 717253.3507 | H120: 4181662.798 | I120: 1097782.859 | J120: 1646674.289 | K120: 4733872.115 | L120: 280604.4251 | M120: 1046846.486 | N120: 157518.5051 | O120: 1646674.289 | P120: 624599.2136 | Q120: 1297244.521 | R120: 0 | S120: 0 | T120: 0 | U120: 0 | V120: 0 | W120: 0 | X120: 0 | Y120: 0 | Z120: 0 | AA120: 0 | AB120: 0 | AC120: 0 | AD120: 0 | AE120: 0 | AF120: 0 | AG120: 0 | AH120: 0 | AI120: 0 | AJ120: =AJ$6*AnnMiles*FuelC2*(EXP((AJ26+0.75*AnnMiles)*FuelC1)+EXP((AJ27+0.25*AnnMiles)*FuelC1))/2 -> 0 | AK120: 0 | AL120: 0 | AM120: 0 | AN120: 0 | AO120: 0 | AP120: 0 | AQ120: 0 | AR120: 0 | AS120: 0 | AT120: 0 | AU120: 0 | AV120: 0 | AW120: 0 | AX120: 0 | AY120: 0 | AZ120: 0 | BA120: 0 | BC120: 23065093.44
C121: 20 | D121: =D$6*AnnMiles*FuelC2*(EXP((D27+0.75*AnnMiles)*FuelC1)+EXP((D28+0.25*AnnMiles)*FuelC1))/2 -> 2415799.583 | E121: 656327.1045 | F121: 2688671.997 | G121: 733348.904 | H121: 3573641.847 | I121: 1122417.701 | J121: 1683626.551 | K121: 4840102.766 | L121: 286901.3403 | M121: 1070338.288 | N121: 161053.3056 | O121: 1683626.551 | P121: 638615.558 | Q121: 1326355.39 | R121: 0 | S121: 0 | T121: 0 | U121: 0 | V121: 0 | W121: 0 | X121: 0 | Y121: 0 | Z121: 0 | AA121: 0 | AB121: 0 | AC121: 0 | AD121: 0 | AE121: 0 | AF121: 0 | AG121: 0 | AH121: 0 | AI121: 0 | AJ121: =AJ$6*AnnMiles*FuelC2*(EXP((AJ27+0.75*AnnMiles)*FuelC1)+EXP((AJ28+0.25*AnnMiles)*FuelC1))/2 -> 0 | AK121: 0 | AL121: 0 | AM121: 0 | AN121: 0 | AO121: 0 | AP121: 0 | AQ121: 0 | AR121: 0 | AS121: 0 | AT121: 0 | AU121: 0 | AV121: 0 | AW121: 0 | AX121: 0 | AY121: 0 | AZ121: 0 | BA121: 0 | BC121: 22880826.89
C122: 21 | D122: =D$6*AnnMiles*FuelC2*(EXP((D28+0.75*AnnMiles)*FuelC1)+EXP((D29+0.25*AnnMiles)*FuelC1))/2 -> 2470011.433 | E122: 671055.4399 | F122: 2749007.251 | G122: 749805.6502 | H122: 3653836.303 | I122: 1147605.361 | J122: 1721408.042 | K122: 4948717.291 | L122: 293339.5616 | M122: 1094357.258 | N122: 164667.4289 | O122: 1721408.042 | P122: 652946.4366 | Q122: 1356119.522 | R122: 0 | S122: 0 | T122: 0 | U122: 0 | V122: 0 | W122: 0 | X122: 0 | Y122: 0 | Z122: 0 | AA122: 0 | AB122: 0 | AC122: 0 | AD122: 0 | AE122: 0 | AF122: 0 | AG122: 0 | AH122: 0 | AI122: 0 | AJ122: =AJ$6*AnnMiles*FuelC2*(EXP((AJ28+0.75*AnnMiles)*FuelC1)+EXP((AJ29+0.25*AnnMiles)*FuelC1))/2 -> 0 | AK122: 0 | AL122: 0 | AM122: 0 | AN122: 0 | AO122: 0 | AP122: 0 | AQ122: 0 | AR122: 0 | AS122: 0 | AT122: 0 | AU122: 0 | AV122: 0 | AW122: 0 | AX122: 0 | AY122: 0 | AZ122: 0 | BA122: 0 | BC122: 23394285.02
C123: 22 | D123: =D$6*AnnMiles*FuelC2*(EXP((D29+0.75*AnnMiles)*FuelC1)+EXP((D30+0.25*AnnMiles)*FuelC1))/2 -> 2525439.826 | E123: 686114.287 | F123: 2810696.461 | G123: 657494.1506 | H123: 3735830.367 | I123: 1173358.246 | J123: 1760037.37 | K123: 4339461.394 | L123: 299922.2601 | M123: 1118915.227 | N123: 168362.6551 | O123: 1760037.37 | P123: 667598.908 | Q123: 1386551.578 | R123: 0 | S123: 0 | T123: 0 | U123: 0 | V123: 0 | W123: 0 | X123: 0 | Y123: 0 | Z123: 0 | AA123: 0 | AB123: 0 | AC123: 0 | AD123: 0 | AE123: 0 | AF123: 0 | AG123: 0 | AH123: 0 | AI123: 0 | AJ123: =AJ$6*AnnMiles*FuelC2*(EXP((AJ29+0.75*AnnMiles)*FuelC1)+EXP((AJ30+0.25*AnnMiles)*FuelC1))/2 -> 0 | AK123: 0 | AL123: 0 | AM123: 0 | AN123: 0 | AO123: 0 | AP123: 0 | AQ123: 0 | AR123: 0 | AS123: 0 | AT123: 0 | AU123: 0 | AV123: 0 | AW123: 0 | AX123: 0 | AY123: 0 | AZ123: 0 | BA123: 0 | BC123: 23089820.1
C124: 23 | D124: =D$6*AnnMiles*FuelC2*(EXP((D30+0.75*AnnMiles)*FuelC1)+EXP((D31+0.25*AnnMiles)*FuelC1))/2 -> 2582112.063 | E124: 701511.0629 | F124: 2873770.011 | G124: 561893.3721 | H124: 3819664.422 | I124: 1199689.04 | J124: 1799533.56 | K124: 3708496.256 | L124: 262997.6602 | M124: 1144024.29 | N124: 172140.8042 | O124: 1799533.56 | P124: 682580.1887 | Q124: 1417666.546 | R124: 0 | S124: 0 | T124: 0 | U124: 0 | V124: 0 | W124: 0 | X124: 0 | Y124: 0 | Z124: 0 | AA124: 0 | AB124: 0 | AC124: 0 | AD124: 0 | AE124: 0 | AF124: 0 | AG124: 0 | AH124: 0 | AI124: 0 | AJ124: =AJ$6*AnnMiles*FuelC2*(EXP((AJ30+0.75*AnnMiles)*FuelC1)+EXP((AJ31+0.25*AnnMiles)*FuelC1))/2 -> 0 | AK124: 0 | AL124: 0 | AM124: 0 | AN124: 0 | AO124: 0 | AP124: 0 | AQ124: 0 | AR124: 0 | AS124: 0 | AT124: 0 | AU124: 0 | AV124: 0 | AW124: 0 | AX124: 0 | AY124: 0 | AZ124: 0 | BA124: 0 | BC124: 22725612.84
C125: 24 | D125: =D$6*AnnMiles*FuelC2*(EXP((D31+0.75*AnnMiles)*FuelC1)+EXP((D32+0.25*AnnMiles)*FuelC1))/2 -> 2640056.054 | E125: 717253.3507 | F125: 2938258.965 | G125: 574502.5634 | H125: 3905379.758 | I125: 1051990.641 | J125: 1577985.961 | K125: 3791716.919 | L125: 224757.3488 | M125: 1169696.814 | N125: 176003.737 | O125: 1577985.961 | P125: 697897.6574 | Q125: 1449479.75 | R125: 0 | S125: 0 | T125: 0 | U125: 0 | V125: 0 | W125: 0 | X125: 0 | Y125: 0 | Z125: 0 | AA125: 0 | AB125: 0 | AC125: 0 | AD125: 0 | AE125: 0 | AF125: 0 | AG125: 0 | AH125: 0 | AI125: 0 | AJ125: =AJ$6*AnnMiles*FuelC2*(EXP((AJ31+0.75*AnnMiles)*FuelC1)+EXP((AJ32+0.25*AnnMiles)*FuelC1))/2 -> 0 | AK125: 0 | AL125: 0 | AM125: 0 | AN125: 0 | AO125: 0 | AP125: 0 | AQ125: 0 | AR125: 0 | AS125: 0 | AT125: 0 | AU125: 0 | AV125: 0 | AW125: 0 | AX125: 0 | AY125: 0 | AZ125: 0 | BA125: 0 | BC125: 22492965.48
C126: 25 | D126: =D$6*AnnMiles*FuelC2*(EXP((D32+0.75*AnnMiles)*FuelC1)+EXP((D33+0.25*AnnMiles)*FuelC1))/2 -> 2699300.341 | E126: 733348.904 | F126: 3004195.086 | G126: 587394.7118 | H126: 3993018.593 | I126: 899029.3954 | J126: 1348544.093 | K126: 3876805.098 | L126: 229801.0254 | M126: 1025690.875 | N126: 179953.356 | O126: 1348544.093 | P126: 713558.8585 | Q126: 1482006.86 | R126: 0 | S126: 0 | T126: 0 | U126: 0 | V126: 0 | W126: 0 | X126: 0 | Y126: 0 | Z126: 0 | AA126: 0 | AB126: 0 | AC126: 0 | AD126: 0 | AE126: 0 | AF126: 0 | AG126: 0 | AH126: 0 | AI126: 0 | AJ126: =AJ$6*AnnMiles*FuelC2*(EXP((AJ32+0.75*AnnMiles)*FuelC1)+EXP((AJ33+0.25*AnnMiles)*FuelC1))/2 -> 0 | AK126: 0 | AL126: 0 | AM126: 0 | AN126: 0 | AO126: 0 | AP126: 0 | AQ126: 0 | AR126: 0 | AS126: 0 | AT126: 0 | AU126: 0 | AV126: 0 | AW126: 0 | AX126: 0 | AY126: 0 | AZ126: 0 | BA126: 0 | BC126: 22121191.29
C127: 26 | D127: =D$6*AnnMiles*FuelC2*(EXP((D33+0.75*AnnMiles)*FuelC1)+EXP((D34+0.25*AnnMiles)*FuelC1))/2 -> 2366978.942 | E127: 749805.6502 | F127: 3071610.849 | G127: 600576.167 | H127: 4082624.091 | I127: 919204.1015 | J127: 1378806.152 | K127: 3963802.702 | L127: 234957.8847 | M127: 876553.6605 | N127: 157798.5961 | O127: 1378806.152 | P127: 729571.5054 | Q127: 1515263.896 | R127: 0 | S127: 0 | T127: 0 | U127: 0 | V127: 0 | W127: 0 | X127: 0 | Y127: 0 | Z127: 0 | AA127: 0 | AB127: 0 | AC127: 0 | AD127: 0 | AE127: 0 | AF127: 0 | AG127: 0 | AH127: 0 | AI127: 0 | AJ127: =AJ$6*AnnMiles*FuelC2*(EXP((AJ33+0.75*AnnMiles)*FuelC1)+EXP((AJ34+0.25*AnnMiles)*FuelC1))/2 -> 0 | AK127: 0 | AL127: 0 | AM127: 0 | AN127: 0 | AO127: 0 | AP127: 0 | AQ127: 0 | AR127: 0 | AS127: 0 | AT127: 0 | AU127: 0 | AV127: 0 | AW127: 0 | AX127: 0 | AY127: 0 | AZ127: 0 | BA127: 0 | BC127: 22026360.35
C128: 27 | D128: =D$6*AnnMiles*FuelC2*(EXP((D34+0.75*AnnMiles)*FuelC1)+EXP((D35+0.25*AnnMiles)*FuelC1))/2 -> 2022816.14 | E128: 657494.1506 | F128: 3140539.459 | G128: 614053.4211 | H128: 4174240.385 | I128: 939831.5389 | J128: 1409747.308 | K128: 4052752.579 | L128: 240230.4668 | M128: 896223.9989 | N128: 134854.4093 | O128: 1409747.308 | P128: 745943.4847 | Q128: 1549267.238 | R128: 0 | S128: 0 | T128: 0 | U128: 0 | V128: 0 | W128: 0 | X128: 0 | Y128: 0 | Z128: 0 | AA128: 0 | AB128: 0 | AC128: 0 | AD128: 0 | AE128: 0 | AF128: 0 | AG128: 0 | AH128: 0 | AI128: 0 | AJ128: =AJ$6*AnnMiles*FuelC2*(EXP((AJ34+0.75*AnnMiles)*FuelC1)+EXP((AJ35+0.25*AnnMiles)*FuelC1))/2 -> 0 | AK128: 0 | AL128: 0 | AM128: 0 | AN128: 0 | AO128: 0 | AP128: 0 | AQ128: 0 | AR128: 0 | AS128: 0 | AT128: 0 | AU128: 0 | AV128: 0 | AW128: 0 | AX128: 0 | AY128: 0 | AZ128: 0 | BA128: 0 | BC128: 21987741.89
C129: 28 | D129: =D$6*AnnMiles*FuelC2*(EXP((D35+0.75*AnnMiles)*FuelC1)+EXP((D36+0.25*AnnMiles)*FuelC1))/2 -> 2068209.228 | E129: 561893.3721 | F129: 3211014.863 | G129: 627833.1121 | H129: 4267912.597 | I129: 960921.8671 | J129: 1441382.801 | K129: 4143698.54 | L129: 245621.3684 | M129: 916335.7504 | N129: 137880.6152 | O129: 1441382.801 | P129: 762682.8601 | Q129: 1584033.633 | R129: 0 | S129: 0 | T129: 0 | U129: 0 | V129: 0 | W129: 0 | X129: 0 | Y129: 0 | Z129: 0 | AA129: 0 | AB129: 0 | AC129: 0 | AD129: 0 | AE129: 0 | AF129: 0 | AG129: 0 | AH129: 0 | AI129: 0 | AJ129: =AJ$6*AnnMiles*FuelC2*(EXP((AJ35+0.75*AnnMiles)*FuelC1)+EXP((AJ36+0.25*AnnMiles)*FuelC1))/2 -> 0 | AK129: 0 | AL129: 0 | AM129: 0 | AN129: 0 | AO129: 0 | AP129: 0 | AQ129: 0 | AR129: 0 | AS129: 0 | AT129: 0 | AU129: 0 | AV129: 0 | AW129: 0 | AX129: 0 | AY129: 0 | AZ129: 0 | BA129: 0 | BC129: 22370803.41
C130: 29 | D130: =D$6*AnnMiles*FuelC2*(EXP((D36+0.75*AnnMiles)*FuelC1)+EXP((D37+0.25*AnnMiles)*FuelC1))/2 -> 2114620.962 | E130: 574502.5634 | F130: 3283071.774 | G130: 641922.0269 | H130: 4363686.865 | I130: 982485.4738 | J130: 1473728.211 | K130: 4236685.377 | L130: 251133.2449 | M130: 936898.8205 | N130: 140974.7308 | O130: 1473728.211 | P130: 779797.8762 | Q130: 1619580.204 | R130: 0 | S130: 0 | T130: 0 | U130: 0 | V130: 0 | W130: 0 | X130: 0 | Y130: 0 | Z130: 0 | AA130: 0 | AB130: 0 | AC130: 0 | AD130: 0 | AE130: 0 | AF130: 0 | AG130: 0 | AH130: 0 | AI130: 0 | AJ130: =AJ$6*AnnMiles*FuelC2*(EXP((AJ36+0.75*AnnMiles)*FuelC1)+EXP((AJ37+0.25*AnnMiles)*FuelC1))/2 -> 0 | AK130: 0 | AL130: 0 | AM130: 0 | AN130: 0 | AO130: 0 | AP130: 0 | AQ130: 0 | AR130: 0 | AS130: 0 | AT130: 0 | AU130: 0 | AV130: 0 | AW130: 0 | AX130: 0 | AY130: 0 | AZ130: 0 | BA130: 0 | BC130: 22872816.34
C131: 30 | D131: =D$6*AnnMiles*FuelC2*(EXP((D37+0.75*AnnMiles)*FuelC1)+EXP((D38+0.25*AnnMiles)*FuelC1))/2 -> 2162074.201 | E131: 587394.7118 | F131: 3356745.681 | G131: 656327.1045 | H131: 4461610.36 | I131: 1004532.979 | J131: 1506799.469 | K131: 4331758.89 | L131: 256768.8108 | M131: 957923.3369 | N131: 144138.2801 | O131: 1506799.469 | P131: 683793.9166 | Q131: 1420187.365 | R131: 0 | S131: 0 | T131: 0 | U131: 0 | V131: 0 | W131: 0 | X131: 0 | Y131: 0 | Z131: 0 | AA131: 0 | AB131: 0 | AC131: 0 | AD131: 0 | AE131: 0 | AF131: 0 | AG131: 0 | AH131: 0 | AI131: 0 | AJ131: =AJ$6*AnnMiles*FuelC2*(EXP((AJ37+0.75*AnnMiles)*FuelC1)+EXP((AJ38+0.25*AnnMiles)*FuelC1))/2 -> 0 | AK131: 0 | AL131: 0 | AM131: 0 | AN131: 0 | AO131: 0 | AP131: 0 | AQ131: 0 | AR131: 0 | AS131: 0 | AT131: 0 | AU131: 0 | AV131: 0 | AW131: 0 | AX131: 0 | AY131: 0 | AZ131: 0 | BA131: 0 | BC131: 23036854.58
A132: Maintenance Cost | C132: 1 | D132: =+D$6*AnnMiles*MaintC2*(EXP((D7+0.75*AnnMiles)*MaintC1)+EXP((D9+0.25*AnnMiles)*MaintC1))/2 -> 5290102.812 | E132: 1408506.658 | F132: 10143916.29 | G132: 1771813.778 | H132: 13142654.54 | I132: 2661866.436 | J132: 3988776.94 | K132: 11537865.1 | L132: 687438.6041 | M132: 2423236.387 | N132: 359150.291 | O132: 3826980.124 | P132: 1309142.848 | Q132: 2698194.747 | R132: 0 | S132: 0 | T132: 0 | U132: 0 | V132: 0 | W132: 0 | X132: 0 | Y132: 0 | Z132: 0 | AA132: 0 | AB132: 0 | AC132: 0 | AD132: 0 | AE132: 0 | AF132: 0 | AG132: 0 | AH132: 0 | AI132: 0 | AJ132: =+AJ$6*AnnMiles*MaintC2*(EXP((AJ7+0.75*AnnMiles)*MaintC1)+EXP((AJ9+0.25*AnnMiles)*MaintC1))/2 -> 0 | AK132: 0 | AL132: 0 | AM132: 0 | AN132: 0 | AO132: 0 | AP132: 0 | AQ132: 0 | AR132: 0 | AS132: 0 | AT132: 0 | AU132: 0 | AV132: 0 | AW132: 0 | AX132: 0 | AY132: 0 | AZ132: 0 | BA132: 0 | BC132: =SUM(D132:BB132) -> 61249645.56
C133: =1+C132 -> 2 | D133: =+D$6*AnnMiles*MaintC2*(EXP((D9+0.75*AnnMiles)*MaintC1)+EXP((D10+0.25*AnnMiles)*MaintC1))/2 -> 5531366.89 | E133: 1472743.984 | F133: 10606546.73 | G133: 1852620.34 | H133: 13742047.51 | I133: 2783265.354 | J133: 4170691.853 | K133: 12064068.94 | L133: 718790.4034 | M133: 2533752.177 | N133: 375529.9469 | O133: 4001516.019 | P133: 1368848.52 | Q133: 2821250.478 | R133: 0 | S133: 0 | T133: 0 | U133: 0 | V133: 0 | W133: 0 | X133: 0 | Y133: 0 | Z133: 0 | AA133: 0 | AB133: 0 | AC133: 0 | AD133: 0 | AE133: 0 | AF133: 0 | AG133: 0 | AH133: 0 | AI133: 0 | AJ133: =+AJ$6*AnnMiles*MaintC2*(EXP((AJ9+0.75*AnnMiles)*MaintC1)+EXP((AJ10+0.25*AnnMiles)*MaintC1))/2 -> 0 | AK133: 0 | AL133: 0 | AM133: 0 | AN133: 0 | AO133: 0 | AP133: 0 | AQ133: 0 | AR133: 0 | AS133: 0 | AT133: 0 | AU133: 0 | AV133: 0 | AW133: 0 | AX133: 0 | AY133: 0 | AZ133: 0 | BA133: 0 | BC133: =SUM(D133:BB133) -> 64043039.15
C134: =1+C133 -> 3 | D134: =+D$6*AnnMiles*MaintC2*(EXP((D10+0.75*AnnMiles)*MaintC1)+EXP((D11+0.25*AnnMiles)*MaintC1))/2 -> 5783634.225 | E134: 1539910.963 | F134: 8243268.269 | G134: 1937112.221 | H134: 14368776.81 | I134: 2910200.873 | J134: 4360903.303 | K134: 12614271.19 | L134: 751572.0544 | M134: 2649308.227 | N134: 392656.6247 | O134: 4184011.919 | P134: 1431277.17 | Q134: 2949918.373 | R134: 0 | S134: 0 | T134: 0 | U134: 0 | V134: 0 | W134: 0 | X134: 0 | Y134: 0 | Z134: 0 | AA134: 0 | AB134: 0 | AC134: 0 | AD134: 0 | AE134: 0 | AF134: 0 | AG134: 0 | AH134: 0 | AI134: 0 | AJ134: =+AJ$6*AnnMiles*MaintC2*(EXP((AJ10+0.75*AnnMiles)*MaintC1)+EXP((AJ11+0.25*AnnMiles)*MaintC1))/2 -> 0 | AK134: 0 | AL134: 0 | AM134: 0 | AN134: 0 | AO134: 0 | AP134: 0 | AQ134: 0 | AR134: 0 | AS134: 0 | AT134: 0 | AU134: 0 | AV134: 0 | AW134: 0 | AX134: 0 | AY134: 0 | AZ134: 0 | BA134: 0 | BC134: 64116822.23
C135: 4 | D135: =+D$6*AnnMiles*MaintC2*(EXP((D11+0.75*AnnMiles)*MaintC1)+EXP((D12+0.25*AnnMiles)*MaintC1))/2 -> 6047406.637 | E135: 1610141.204 | F135: 5708010.992 | G135: 2025457.497 | H135: 11178998.02 | I135: 3042925.502 | J135: 4559789.668 | K135: 13189566.35 | L135: 785848.768 | M135: 2770134.406 | N135: 410564.3937 | O135: 4374830.854 | P135: 1496552.984 | Q135: 3084454.386 | R135: 0 | S135: 0 | T135: 0 | U135: 0 | V135: 0 | W135: 0 | X135: 0 | Y135: 0 | Z135: 0 | AA135: 0 | AB135: 0 | AC135: 0 | AD135: 0 | AE135: 0 | AF135: 0 | AG135: 0 | AH135: 0 | AI135: 0 | AJ135: =+AJ$6*AnnMiles*MaintC2*(EXP((AJ11+0.75*AnnMiles)*MaintC1)+EXP((AJ12+0.25*AnnMiles)*MaintC1))/2 -> 0 | AK135: 0 | AL135: 0 | AM135: 0 | AN135: 0 | AO135: 0 | AP135: 0 | AQ135: 0 | AR135: 0 | AS135: 0 | AT135: 0 | AU135: 0 | AV135: 0 | AW135: 0 | AX135: 0 | AY135: 0 | AZ135: 0 | BA135: 0 | BC135: 60284681.66
C136: 5 | D136: =+D$6*AnnMiles*MaintC2*(EXP((D12+0.75*AnnMiles)*MaintC1)+EXP((D13+0.25*AnnMiles)*MaintC1))/2 -> 6323208.836 | E136: 1683574.415 | F136: 5968334.479 | G136: 2117831.909 | H136: 7757040.578 | I136: 3181703.262 | J136: 4767746.581 | K136: 13791098.81 | L136: 821688.729 | M136: 2896471.066 | N136: 429288.8766 | O136: 4574352.408 | P136: 1564805.812 | Q136: 3225126.14 | R136: 0 | S136: 0 | T136: 0 | U136: 0 | V136: 0 | W136: 0 | X136: 0 | Y136: 0 | Z136: 0 | AA136: 0 | AB136: 0 | AC136: 0 | AD136: 0 | AE136: 0 | AF136: 0 | AG136: 0 | AH136: 0 | AI136: 0 | AJ136: =+AJ$6*AnnMiles*MaintC2*(EXP((AJ12+0.75*AnnMiles)*MaintC1)+EXP((AJ13+0.25*AnnMiles)*MaintC1))/2 -> 0 | AK136: 0 | AL136: 0 | AM136: 0 | AN136: 0 | AO136: 0 | AP136: 0 | AQ136: 0 | AR136: 0 | AS136: 0 | AT136: 0 | AU136: 0 | AV136: 0 | AW136: 0 | AX136: 0 | AY136: 0 | AZ136: 0 | BA136: 0 | BC136: 59102271.9
C137: 6 | D137: =+D$6*AnnMiles*MaintC2*(EXP((D13+0.75*AnnMiles)*MaintC1)+EXP((D14+0.25*AnnMiles)*MaintC1))/2 -> 6611589.461 | E137: 1760356.671 | F137: 6240530.459 | G137: 2214419.212 | H137: 8110813.523 | I137: 3326810.216 | J137: 4985187.721 | K137: 14420065.17 | L137: 859163.2321 | M137: 3028569.524 | N137: 448867.3213 | O137: 4782973.479 | P137: 1636171.425 | Q137: 3372213.468 | R137: 0 | S137: 0 | T137: 0 | U137: 0 | V137: 0 | W137: 0 | X137: 0 | Y137: 0 | Z137: 0 | AA137: 0 | AB137: 0 | AC137: 0 | AD137: 0 | AE137: 0 | AF137: 0 | AG137: 0 | AH137: 0 | AI137: 0 | AJ137: =+AJ$6*AnnMiles*MaintC2*(EXP((AJ13+0.75*AnnMiles)*MaintC1)+EXP((AJ14+0.25*AnnMiles)*MaintC1))/2 -> 0 | AK137: 0 | AL137: 0 | AM137: 0 | AN137: 0 | AO137: 0 | AP137: 0 | AQ137: 0 | AR137: 0 | AS137: 0 | AT137: 0 | AU137: 0 | AV137: 0 | AW137: 0 | AX137: 0 | AY137: 0 | AZ137: 0 | BA137: 0 | BC137: 61797730.89
C138: 7 | D138: =+D$6*AnnMiles*MaintC2*(EXP((D14+0.75*AnnMiles)*MaintC1)+EXP((D15+0.25*AnnMiles)*MaintC1))/2 -> 6913122.171 | E138: 1840640.712 | F138: 6525140.396 | G138: 1734532.032 | H138: 8480720.88 | I138: 3478535.018 | J138: 5212545.631 | K138: 11347048.81 | L138: 898346.8232 | M138: 3166692.555 | N138: 469338.674 | O138: 5001109.067 | P138: 1710791.788 | Q138: 3526008.962 | R138: 0 | S138: 0 | T138: 0 | U138: 0 | V138: 0 | W138: 0 | X138: 0 | Y138: 0 | Z138: 0 | AA138: 0 | AB138: 0 | AC138: 0 | AD138: 0 | AE138: 0 | AF138: 0 | AG138: 0 | AH138: 0 | AI138: 0 | AJ138: =+AJ$6*AnnMiles*MaintC2*(EXP((AJ14+0.75*AnnMiles)*MaintC1)+EXP((AJ15+0.25*AnnMiles)*MaintC1))/2 -> 0 | AK138: 0 | AL138: 0 | AM138: 0 | AN138: 0 | AO138: 0 | AP138: 0 | AQ138: 0 | AR138: 0 | AS138: 0 | AT138: 0 | AU138: 0 | AV138: 0 | AW138: 0 | AX138: 0 | AY138: 0 | AZ138: 0 | BA138: 0 | BC138: 60304573.52
C139: 8 | D139: =+D$6*AnnMiles*MaintC2*(EXP((D15+0.75*AnnMiles)*MaintC1)+EXP((D16+0.25*AnnMiles)*MaintC1))/2 -> 7228406.79 | E139: 1924586.242 | F139: 6822730.45 | G139: 1219660.468 | H139: 8867498.487 | I139: 3637179.485 | J139: 5450272.584 | K139: 8049759.091 | L139: 700315.9089 | M139: 3311114.921 | N139: 490743.6574 | O139: 5229193.098 | P139: 1788815.338 | Q139: 3686818.559 | R139: 0 | S139: 0 | T139: 0 | U139: 0 | V139: 0 | W139: 0 | X139: 0 | Y139: 0 | Z139: 0 | AA139: 0 | AB139: 0 | AC139: 0 | AD139: 0 | AE139: 0 | AF139: 0 | AG139: 0 | AH139: 0 | AI139: 0 | AJ139: =+AJ$6*AnnMiles*MaintC2*(EXP((AJ15+0.75*AnnMiles)*MaintC1)+EXP((AJ16+0.25*AnnMiles)*MaintC1))/2 -> 0 | AK139: 0 | AL139: 0 | AM139: 0 | AN139: 0 | AO139: 0 | AP139: 0 | AQ139: 0 | AR139: 0 | AS139: 0 | AT139: 0 | AU139: 0 | AV139: 0 | AW139: 0 | AX139: 0 | AY139: 0 | AZ139: 0 | BA139: 0 | BC139: 58407095.08
C140: 9 | D140: =+D$6*AnnMiles*MaintC2*(EXP((D16+0.75*AnnMiles)*MaintC1)+EXP((D17+0.25*AnnMiles)*MaintC1))/2 -> 7558070.497 | E140: 2012360.25 | F140: 7133892.602 | G140: 1275285.145 | H140: 9271915.74 | I140: 2823903.091 | J140: 4233013.01 | K140: 8416881.957 | L140: 487864.1873 | M140: 3462123.912 | N140: 513124.8512 | O140: 4118720.513 | P140: 1870397.285 | Q140: 3854962.15 | R140: 0 | S140: 0 | T140: 0 | U140: 0 | V140: 0 | W140: 0 | X140: 0 | Y140: 0 | Z140: 0 | AA140: 0 | AB140: 0 | AC140: 0 | AD140: 0 | AE140: 0 | AF140: 0 | AG140: 0 | AH140: 0 | AI140: 0 | AJ140: =+AJ$6*AnnMiles*MaintC2*(EXP((AJ16+0.75*AnnMiles)*MaintC1)+EXP((AJ17+0.25*AnnMiles)*MaintC1))/2 -> 0 | AK140: 0 | AL140: 0 | AM140: 0 | AN140: 0 | AO140: 0 | AP140: 0 | AQ140: 0 | AR140: 0 | AS140: 0 | AT140: 0 | AU140: 0 | AV140: 0 | AW140: 0 | AX140: 0 | AY140: 0 | AZ140: 0 | BA140: 0 | BC140: 57032515.19
C141: 10 | D141: =+D$6*AnnMiles*MaintC2*(EXP((D17+0.75*AnnMiles)*MaintC1)+EXP((D18+0.25*AnnMiles)*MaintC1))/2 -> 7902769.074 | E141: 2104137.34 | F141: 7459245.83 | G141: 1333446.679 | H141: 9694777.126 | I141: 1951456.749 | J141: 2927185.124 | K141: 8800748.083 | L141: 510114.058 | M141: 2709814.457 | N141: 536526.7771 | O141: 2927185.124 | P141: 1955699.914 | Q141: 4030774.213 | R141: 0 | S141: 0 | T141: 0 | U141: 0 | V141: 0 | W141: 0 | X141: 0 | Y141: 0 | Z141: 0 | AA141: 0 | AB141: 0 | AC141: 0 | AD141: 0 | AE141: 0 | AF141: 0 | AG141: 0 | AH141: 0 | AI141: 0 | AJ141: =+AJ$6*AnnMiles*MaintC2*(EXP((AJ17+0.75*AnnMiles)*MaintC1)+EXP((AJ18+0.25*AnnMiles)*MaintC1))/2 -> 0 | AK141: 0 | AL141: 0 | AM141: 0 | AN141: 0 | AO141: 0 | AP141: 0 | AQ141: 0 | AR141: 0 | AS141: 0 | AT141: 0 | AU141: 0 | AV141: 0 | AW141: 0 | AX141: 0 | AY141: 0 | AZ141: 0 | BA141: 0 | BC141: 54843880.55
C142: 11 | D142: =+D$6*AnnMiles*MaintC2*(EXP((D18+0.75*AnnMiles)*MaintC1)+EXP((D19+0.25*AnnMiles)*MaintC1))/2 -> 6208571.64 | E142: 2200100.079 | F142: 7799437.341 | G142: 1394260.768 | H142: 10136923.82 | I142: 2040456.232 | J142: 3060684.348 | K142: 9202121.071 | L142: 533378.6717 | M142: 1902670.331 | N142: 418906.7674 | O142: 3060684.348 | P142: 2044892.913 | Q142: 4214604.483 | R142: 0 | S142: 0 | T142: 0 | U142: 0 | V142: 0 | W142: 0 | X142: 0 | Y142: 0 | Z142: 0 | AA142: 0 | AB142: 0 | AC142: 0 | AD142: 0 | AE142: 0 | AF142: 0 | AG142: 0 | AH142: 0 | AI142: 0 | AJ142: =+AJ$6*AnnMiles*MaintC2*(EXP((AJ18+0.75*AnnMiles)*MaintC1)+EXP((AJ19+0.25*AnnMiles)*MaintC1))/2 -> 0 | AK142: 0 | AL142: 0 | AM142: 0 | AN142: 0 | AO142: 0 | AP142: 0 | AQ142: 0 | AR142: 0 | AS142: 0 | AT142: 0 | AU142: 0 | AV142: 0 | AW142: 0 | AX142: 0 | AY142: 0 | AZ142: 0 | BA142: 0 | BC142: 54217692.81
C143: 12 | D143: =+D$6*AnnMiles*MaintC2*(EXP((D19+0.75*AnnMiles)*MaintC1)+EXP((D20+0.25*AnnMiles)*MaintC1))/2 -> 4390777.686 | E143: 1727129.403 | F143: 8155143.861 | G143: 1457848.387 | H143: 10599235.36 | I143: 2133514.687 | J143: 3200272.03 | K143: 9621799.353 | L143: 557704.3073 | M143: 1989444.826 | N143: 292718.5124 | O143: 3200272.03 | P143: 2138153.71 | Q143: 4406818.642 | R143: 0 | S143: 0 | T143: 0 | U143: 0 | V143: 0 | W143: 0 | X143: 0 | Y143: 0 | Z143: 0 | AA143: 0 | AB143: 0 | AC143: 0 | AD143: 0 | AE143: 0 | AF143: 0 | AG143: 0 | AH143: 0 | AI143: 0 | AJ143: =+AJ$6*AnnMiles*MaintC2*(EXP((AJ19+0.75*AnnMiles)*MaintC1)+EXP((AJ20+0.25*AnnMiles)*MaintC1))/2 -> 0 | AK143: 0 | AL143: 0 | AM143: 0 | AN143: 0 | AO143: 0 | AP143: 0 | AQ143: 0 | AR143: 0 | AS143: 0 | AT143: 0 | AU143: 0 | AV143: 0 | AW143: 0 | AX143: 0 | AY143: 0 | AZ143: 0 | BA143: 0 | BC143: 53870832.8
C144: 13 | D144: =+D$6*AnnMiles*MaintC2*(EXP((D20+0.75*AnnMiles)*MaintC1)+EXP((D21+0.25*AnnMiles)*MaintC1))/2 -> 4591026.522 | E144: 1219660.468 | F144: 8527072.978 | G144: 1524336.026 | H144: 11082631.4 | I144: 2230817.229 | J144: 3346225.844 | K144: 10060617.77 | L144: 583139.3547 | M144: 2080176.82 | N144: 306068.4348 | O144: 3346225.844 | P144: 2235667.823 | Q144: 4607799.054 | R144: 0 | S144: 0 | T144: 0 | U144: 0 | V144: 0 | W144: 0 | X144: 0 | Y144: 0 | Z144: 0 | AA144: 0 | AB144: 0 | AC144: 0 | AD144: 0 | AE144: 0 | AF144: 0 | AG144: 0 | AH144: 0 | AI144: 0 | AJ144: =+AJ$6*AnnMiles*MaintC2*(EXP((AJ20+0.75*AnnMiles)*MaintC1)+EXP((AJ21+0.25*AnnMiles)*MaintC1))/2 -> 0 | AK144: 0 | AL144: 0 | AM144: 0 | AN144: 0 | AO144: 0 | AP144: 0 | AQ144: 0 | AR144: 0 | AS144: 0 | AT144: 0 | AU144: 0 | AV144: 0 | AW144: 0 | AX144: 0 | AY144: 0 | AZ144: 0 | BA144: 0 | BC144: 55741465.57
C145: 14 | D145: =+D$6*AnnMiles*MaintC2*(EXP((D21+0.75*AnnMiles)*MaintC1)+EXP((D22+0.25*AnnMiles)*MaintC1))/2 -> 4800408.045 | E145: 1275285.145 | F145: 8915964.551 | G145: 1593855.947 | H145: 11588073.53 | I145: 2332557.419 | J145: 3498836.128 | K145: 10519449.25 | L145: 609734.4104 | M145: 2175046.799 | N145: 320027.203 | O145: 3498836.128 | P145: 2337629.232 | Q145: 4817945.516 | R145: 0 | S145: 0 | T145: 0 | U145: 0 | V145: 0 | W145: 0 | X145: 0 | Y145: 0 | Z145: 0 | AA145: 0 | AB145: 0 | AC145: 0 | AD145: 0 | AE145: 0 | AF145: 0 | AG145: 0 | AH145: 0 | AI145: 0 | AJ145: =+AJ$6*AnnMiles*MaintC2*(EXP((AJ21+0.75*AnnMiles)*MaintC1)+EXP((AJ22+0.25*AnnMiles)*MaintC1))/2 -> 0 | AK145: 0 | AL145: 0 | AM145: 0 | AN145: 0 | AO145: 0 | AP145: 0 | AQ145: 0 | AR145: 0 | AS145: 0 | AT145: 0 | AU145: 0 | AV145: 0 | AW145: 0 | AX145: 0 | AY145: 0 | AZ145: 0 | BA145: 0 | BC145: 58283649.31
C146: 15 | D146: =+D$6*AnnMiles*MaintC2*(EXP((D22+0.75*AnnMiles)*MaintC1)+EXP((D23+0.25*AnnMiles)*MaintC1))/2 -> 5019338.766 | E146: 1333446.679 | F146: 9322592.182 | G146: 1666546.44 | H146: 12116567.21 | I146: 2438937.642 | J146: 3658406.463 | K146: 10999206.51 | L146: 637542.3786 | M146: 2274243.483 | N146: 334622.5844 | O146: 3658406.463 | P146: 1821817.828 | Q146: 3764579.918 | R146: 0 | S146: 0 | T146: 0 | U146: 0 | V146: 0 | W146: 0 | X146: 0 | Y146: 0 | Z146: 0 | AA146: 0 | AB146: 0 | AC146: 0 | AD146: 0 | AE146: 0 | AF146: 0 | AG146: 0 | AH146: 0 | AI146: 0 | AJ146: =+AJ$6*AnnMiles*MaintC2*(EXP((AJ22+0.75*AnnMiles)*MaintC1)+EXP((AJ23+0.25*AnnMiles)*MaintC1))/2 -> 0 | AK146: 0 | AL146: 0 | AM146: 0 | AN146: 0 | AO146: 0 | AP146: 0 | AQ146: 0 | AR146: 0 | AS146: 0 | AT146: 0 | AU146: 0 | AV146: 0 | AW146: 0 | AX146: 0 | AY146: 0 | AZ146: 0 | BA146: 0 | BC146: 59046254.54
C147: 16 | D147: =+D$6*AnnMiles*MaintC2*(EXP((D23+0.75*AnnMiles)*MaintC1)+EXP((D24+0.25*AnnMiles)*MaintC1))/2 -> 5248254.193 | E147: 1394260.768 | F147: 9747764.752 | G147: 1742552.107 | H147: 12669163.73 | I147: 2550169.514 | J147: 3825254.272 | K147: 11500843.91 | L147: 666618.5762 | M147: 2377964.201 | N147: 349883.6128 | O147: 3825254.272 | P147: 1268446.887 | Q147: 2634466.612 | R147: 0 | S147: 0 | T147: 0 | U147: 0 | V147: 0 | W147: 0 | X147: 0 | Y147: 0 | Z147: 0 | AA147: 0 | AB147: 0 | AC147: 0 | AD147: 0 | AE147: 0 | AF147: 0 | AG147: 0 | AH147: 0 | AI147: 0 | AJ147: =+AJ$6*AnnMiles*MaintC2*(EXP((AJ23+0.75*AnnMiles)*MaintC1)+EXP((AJ24+0.25*AnnMiles)*MaintC1))/2 -> 0 | AK147: 0 | AL147: 0 | AM147: 0 | AN147: 0 | AO147: 0 | AP147: 0 | AQ147: 0 | AR147: 0 | AS147: 0 | AT147: 0 | AU147: 0 | AV147: 0 | AW147: 0 | AX147: 0 | AY147: 0 | AZ147: 0 | BA147: 0 | BC147: 59800897.41
C148: 17 | D148: =+D$6*AnnMiles*MaintC2*(EXP((D24+0.75*AnnMiles)*MaintC1)+EXP((D25+0.25*AnnMiles)*MaintC1))/2 -> 5487609.694 | E148: 1457848.387 | F148: 10192328.04 | G148: 1822024.141 | H148: 13246962.36 | I148: 2666474.305 | J148: 3999711.457 | K148: 12025359.33 | L148: 697020.8428 | M148: 2486415.277 | N148: 365840.6463 | O148: 3999711.457 | P148: 1326296.551 | Q148: 2754615.913 | R148: 0 | S148: 0 | T148: 0 | U148: 0 | V148: 0 | W148: 0 | X148: 0 | Y148: 0 | Z148: 0 | AA148: 0 | AB148: 0 | AC148: 0 | AD148: 0 | AE148: 0 | AF148: 0 | AG148: 0 | AH148: 0 | AI148: 0 | AJ148: =+AJ$6*AnnMiles*MaintC2*(EXP((AJ24+0.75*AnnMiles)*MaintC1)+EXP((AJ25+0.25*AnnMiles)*MaintC1))/2 -> 0 | AK148: 0 | AL148: 0 | AM148: 0 | AN148: 0 | AO148: 0 | AP148: 0 | AQ148: 0 | AR148: 0 | AS148: 0 | AT148: 0 | AU148: 0 | AV148: 0 | AW148: 0 | AX148: 0 | AY148: 0 | AZ148: 0 | BA148: 0 | BC148: 62528218.39
C149: 18 | D149: =+D$6*AnnMiles*MaintC2*(EXP((D25+0.75*AnnMiles)*MaintC1)+EXP((D26+0.25*AnnMiles)*MaintC1))/2 -> 5737881.408 | E149: 1524336.026 | F149: 8029127.689 | G149: 1905120.631 | H149: 13851112.46 | I149: 2788083.371 | J149: 4182125.057 | K149: 12573796.16 | L149: 728809.6563 | M149: 2599812.447 | N149: 382525.4272 | O149: 4182125.057 | P149: 1386784.546 | Q149: 2880244.827 | R149: 0 | S149: 0 | T149: 0 | U149: 0 | V149: 0 | W149: 0 | X149: 0 | Y149: 0 | Z149: 0 | AA149: 0 | AB149: 0 | AC149: 0 | AD149: 0 | AE149: 0 | AF149: 0 | AG149: 0 | AH149: 0 | AI149: 0 | AJ149: =+AJ$6*AnnMiles*MaintC2*(EXP((AJ25+0.75*AnnMiles)*MaintC1)+EXP((AJ26+0.25*AnnMiles)*MaintC1))/2 -> 0 | AK149: 0 | AL149: 0 | AM149: 0 | AN149: 0 | AO149: 0 | AP149: 0 | AQ149: 0 | AR149: 0 | AS149: 0 | AT149: 0 | AU149: 0 | AV149: 0 | AW149: 0 | AX149: 0 | AY149: 0 | AZ149: 0 | BA149: 0 | BC149: 62751884.76
C150: 19 | D150: =+D$6*AnnMiles*MaintC2*(EXP((D26+0.75*AnnMiles)*MaintC1)+EXP((D27+0.25*AnnMiles)*MaintC1))/2 -> 5999567.185 | E150: 1593855.947 | F150: 5708010.992 | G150: 1992006.876 | H150: 10911378.65 | I150: 2915238.625 | J150: 4372857.938 | K150: 13147245.38 | L150: 762048.2522 | M150: 2718381.287 | N150: 399971.1457 | O150: 4372857.938 | P150: 1450031.199 | Q150: 3011603.26 | R150: 0 | S150: 0 | T150: 0 | U150: 0 | V150: 0 | W150: 0 | X150: 0 | Y150: 0 | Z150: 0 | AA150: 0 | AB150: 0 | AC150: 0 | AD150: 0 | AE150: 0 | AF150: 0 | AG150: 0 | AH150: 0 | AI150: 0 | AJ150: =+AJ$6*AnnMiles*MaintC2*(EXP((AJ26+0.75*AnnMiles)*MaintC1)+EXP((AJ27+0.25*AnnMiles)*MaintC1))/2 -> 0 | AK150: 0 | AL150: 0 | AM150: 0 | AN150: 0 | AO150: 0 | AP150: 0 | AQ150: 0 | AR150: 0 | AS150: 0 | AT150: 0 | AU150: 0 | AV150: 0 | AW150: 0 | AX150: 0 | AY150: 0 | AZ150: 0 | BA150: 0 | BC150: 59355054.68
C151: 20 | D151: =+D$6*AnnMiles*MaintC2*(EXP((D27+0.75*AnnMiles)*MaintC1)+EXP((D28+0.25*AnnMiles)*MaintC1))/2 -> 6273187.586 | E151: 1666546.44 | F151: 5968334.479 | G151: 2082855.716 | H151: 7757040.578 | I151: 3048193.009 | J151: 4572289.513 | K151: 13746847.73 | L151: 796802.7506 | M151: 2842357.659 | N151: 418212.5057 | O151: 4572289.513 | P151: 1516162.322 | Q151: 3148952.516 | R151: 0 | S151: 0 | T151: 0 | U151: 0 | V151: 0 | W151: 0 | X151: 0 | Y151: 0 | Z151: 0 | AA151: 0 | AB151: 0 | AC151: 0 | AD151: 0 | AE151: 0 | AF151: 0 | AG151: 0 | AH151: 0 | AI151: 0 | AJ151: =+AJ$6*AnnMiles*MaintC2*(EXP((AJ27+0.75*AnnMiles)*MaintC1)+EXP((AJ28+0.25*AnnMiles)*MaintC1))/2 -> 0 | AK151: 0 | AL151: 0 | AM151: 0 | AN151: 0 | AO151: 0 | AP151: 0 | AQ151: 0 | AR151: 0 | AS151: 0 | AT151: 0 | AU151: 0 | AV151: 0 | AW151: 0 | AX151: 0 | AY151: 0 | AZ151: 0 | BA151: 0 | BC151: 58410072.32
C152: 21 | D152: =+D$6*AnnMiles*MaintC2*(EXP((D28+0.75*AnnMiles)*MaintC1)+EXP((D29+0.25*AnnMiles)*MaintC1))/2 -> 6559286.906 | E152: 1742552.107 | F152: 6240530.459 | G152: 2177847.871 | H152: 8110813.523 | I152: 3187211.002 | J152: 4780816.503 | K152: 14373795.95 | L152: 833142.2865 | M152: 2971988.184 | N152: 437285.7938 | O152: 4780816.503 | P152: 1585309.467 | Q152: 3292565.816 | R152: 0 | S152: 0 | T152: 0 | U152: 0 | V152: 0 | W152: 0 | X152: 0 | Y152: 0 | Z152: 0 | AA152: 0 | AB152: 0 | AC152: 0 | AD152: 0 | AE152: 0 | AF152: 0 | AG152: 0 | AH152: 0 | AI152: 0 | AJ152: =+AJ$6*AnnMiles*MaintC2*(EXP((AJ28+0.75*AnnMiles)*MaintC1)+EXP((AJ29+0.25*AnnMiles)*MaintC1))/2 -> 0 | AK152: 0 | AL152: 0 | AM152: 0 | AN152: 0 | AO152: 0 | AP152: 0 | AQ152: 0 | AR152: 0 | AS152: 0 | AT152: 0 | AU152: 0 | AV152: 0 | AW152: 0 | AX152: 0 | AY152: 0 | AZ152: 0 | BA152: 0 | BC152: 61073962.37
C153: 22 | D153: =+D$6*AnnMiles*MaintC2*(EXP((D29+0.75*AnnMiles)*MaintC1)+EXP((D30+0.25*AnnMiles)*MaintC1))/2 -> 6858434.27 | E153: 1822024.141 | F153: 6525140.396 | G153: 1715625.575 | H153: 8480720.88 | I153: 3332569.146 | J153: 4998853.719 | K153: 11323128.79 | L153: 871139.1484 | M153: 3107530.727 | N153: 457228.9513 | O153: 4998853.719 | P153: 1657610.184 | Q153: 3442728.845 | R153: 0 | S153: 0 | T153: 0 | U153: 0 | V153: 0 | W153: 0 | X153: 0 | Y153: 0 | Z153: 0 | AA153: 0 | AB153: 0 | AC153: 0 | AD153: 0 | AE153: 0 | AF153: 0 | AG153: 0 | AH153: 0 | AI153: 0 | AJ153: =+AJ$6*AnnMiles*MaintC2*(EXP((AJ29+0.75*AnnMiles)*MaintC1)+EXP((AJ30+0.25*AnnMiles)*MaintC1))/2 -> 0 | AK153: 0 | AL153: 0 | AM153: 0 | AN153: 0 | AO153: 0 | AP153: 0 | AQ153: 0 | AR153: 0 | AS153: 0 | AT153: 0 | AU153: 0 | AV153: 0 | AW153: 0 | AX153: 0 | AY153: 0 | AZ153: 0 | BA153: 0 | BC153: 59591588.49
C154: 23 | D154: =+D$6*AnnMiles*MaintC2*(EXP((D30+0.75*AnnMiles)*MaintC1)+EXP((D31+0.25*AnnMiles)*MaintC1))/2 -> 7171224.755 | E154: 1905120.631 | F154: 6822730.45 | G154: 1219660.468 | H154: 8867498.487 | I154: 3484556.594 | J154: 5226834.89 | K154: 8049759.091 | L154: 686250.2299 | M154: 3249254.917 | N154: 478081.6503 | O154: 5226834.89 | P154: 1733208.298 | Q154: 3599740.311 | R154: 0 | S154: 0 | T154: 0 | U154: 0 | V154: 0 | W154: 0 | X154: 0 | Y154: 0 | Z154: 0 | AA154: 0 | AB154: 0 | AC154: 0 | AD154: 0 | AE154: 0 | AF154: 0 | AG154: 0 | AH154: 0 | AI154: 0 | AJ154: =+AJ$6*AnnMiles*MaintC2*(EXP((AJ30+0.75*AnnMiles)*MaintC1)+EXP((AJ31+0.25*AnnMiles)*MaintC1))/2 -> 0 | AK154: 0 | AL154: 0 | AM154: 0 | AN154: 0 | AO154: 0 | AP154: 0 | AQ154: 0 | AR154: 0 | AS154: 0 | AT154: 0 | AU154: 0 | AV154: 0 | AW154: 0 | AX154: 0 | AY154: 0 | AZ154: 0 | BA154: 0 | BC154: 57720755.66
C155: 24 | D155: =+D$6*AnnMiles*MaintC2*(EXP((D31+0.75*AnnMiles)*MaintC1)+EXP((D32+0.25*AnnMiles)*MaintC1))/2 -> 7498280.579 | E155: 1992006.876 | F155: 7133892.602 | G155: 1275285.145 | H155: 9271915.74 | I155: 2745000.919 | J155: 4117501.379 | K155: 8416881.957 | L155: 487864.1873 | M155: 3397442.679 | N155: 499885.3719 | O155: 4117501.379 | P155: 1812254.191 | Q155: 3763912.551 | R155: 0 | S155: 0 | T155: 0 | U155: 0 | V155: 0 | W155: 0 | X155: 0 | Y155: 0 | Z155: 0 | AA155: 0 | AB155: 0 | AC155: 0 | AD155: 0 | AE155: 0 | AF155: 0 | AG155: 0 | AH155: 0 | AI155: 0 | AJ155: =+AJ$6*AnnMiles*MaintC2*(EXP((AJ31+0.75*AnnMiles)*MaintC1)+EXP((AJ32+0.25*AnnMiles)*MaintC1))/2 -> 0 | AK155: 0 | AL155: 0 | AM155: 0 | AN155: 0 | AO155: 0 | AP155: 0 | AQ155: 0 | AR155: 0 | AS155: 0 | AT155: 0 | AU155: 0 | AV155: 0 | AW155: 0 | AX155: 0 | AY155: 0 | AZ155: 0 | BA155: 0 | BC155: 56529625.56
C156: 25 | D156: =+D$6*AnnMiles*MaintC2*(EXP((D32+0.75*AnnMiles)*MaintC1)+EXP((D33+0.25*AnnMiles)*MaintC1))/2 -> 7840252.336 | E156: 2082855.716 | F156: 7459245.83 | G156: 1333446.679 | H156: 9694777.126 | I156: 1951456.749 | J156: 2927185.124 | K156: 8800748.083 | L156: 510114.058 | M156: 2676375.896 | N156: 522683.489 | O156: 2927185.124 | P156: 1894905.106 | Q156: 3935572.144 | R156: 0 | S156: 0 | T156: 0 | U156: 0 | V156: 0 | W156: 0 | X156: 0 | Y156: 0 | Z156: 0 | AA156: 0 | AB156: 0 | AC156: 0 | AD156: 0 | AE156: 0 | AF156: 0 | AG156: 0 | AH156: 0 | AI156: 0 | AJ156: =+AJ$6*AnnMiles*MaintC2*(EXP((AJ32+0.75*AnnMiles)*MaintC1)+EXP((AJ33+0.25*AnnMiles)*MaintC1))/2 -> 0 | AK156: 0 | AL156: 0 | AM156: 0 | AN156: 0 | AO156: 0 | AP156: 0 | AQ156: 0 | AR156: 0 | AS156: 0 | AT156: 0 | AU156: 0 | AV156: 0 | AW156: 0 | AX156: 0 | AY156: 0 | AZ156: 0 | BA156: 0 | BC156: 54556803.46
C157: 26 | D157: =+D$6*AnnMiles*MaintC2*(EXP((D33+0.75*AnnMiles)*MaintC1)+EXP((D34+0.25*AnnMiles)*MaintC1))/2 -> 6176252.069 | E157: 2177847.871 | F157: 7799437.341 | G157: 1394260.768 | H157: 10136923.82 | I157: 2040456.232 | J157: 3060684.348 | K157: 9202121.071 | L157: 533378.6717 | M157: 1902670.331 | N157: 411750.1379 | O157: 3060684.348 | P157: 1981325.456 | Q157: 4115060.562 | R157: 0 | S157: 0 | T157: 0 | U157: 0 | V157: 0 | W157: 0 | X157: 0 | Y157: 0 | Z157: 0 | AA157: 0 | AB157: 0 | AC157: 0 | AD157: 0 | AE157: 0 | AF157: 0 | AG157: 0 | AH157: 0 | AI157: 0 | AJ157: =+AJ$6*AnnMiles*MaintC2*(EXP((AJ33+0.75*AnnMiles)*MaintC1)+EXP((AJ34+0.25*AnnMiles)*MaintC1))/2 -> 0 | AK157: 0 | AL157: 0 | AM157: 0 | AN157: 0 | AO157: 0 | AP157: 0 | AQ157: 0 | AR157: 0 | AS157: 0 | AT157: 0 | AU157: 0 | AV157: 0 | AW157: 0 | AX157: 0 | AY157: 0 | AZ157: 0 | BA157: 0 | BC157: 53992853.03
C158: 27 | D158: =+D$6*AnnMiles*MaintC2*(EXP((D34+0.75*AnnMiles)*MaintC1)+EXP((D35+0.25*AnnMiles)*MaintC1))/2 -> 4390777.686 | E158: 1715625.575 | F158: 8155143.861 | G158: 1457848.387 | H158: 10599235.36 | I158: 2133514.687 | J158: 3200272.03 | K158: 9621799.353 | L158: 557704.3073 | M158: 1989444.826 | N158: 292718.5124 | O158: 3200272.03 | P158: 2071687.151 | Q158: 4302734.853 | R158: 0 | S158: 0 | T158: 0 | U158: 0 | V158: 0 | W158: 0 | X158: 0 | Y158: 0 | Z158: 0 | AA158: 0 | AB158: 0 | AC158: 0 | AD158: 0 | AE158: 0 | AF158: 0 | AG158: 0 | AH158: 0 | AI158: 0 | AJ158: =+AJ$6*AnnMiles*MaintC2*(EXP((AJ34+0.75*AnnMiles)*MaintC1)+EXP((AJ35+0.25*AnnMiles)*MaintC1))/2 -> 0 | AK158: 0 | AL158: 0 | AM158: 0 | AN158: 0 | AO158: 0 | AP158: 0 | AQ158: 0 | AR158: 0 | AS158: 0 | AT158: 0 | AU158: 0 | AV158: 0 | AW158: 0 | AX158: 0 | AY158: 0 | AZ158: 0 | BA158: 0 | BC158: 53688778.62
C159: 28 | D159: =+D$6*AnnMiles*MaintC2*(EXP((D35+0.75*AnnMiles)*MaintC1)+EXP((D36+0.25*AnnMiles)*MaintC1))/2 -> 4591026.522 | E159: 1219660.468 | F159: 8527072.978 | G159: 1524336.026 | H159: 11082631.4 | I159: 2230817.229 | J159: 3346225.844 | K159: 10060617.77 | L159: 583139.3547 | M159: 2080176.82 | N159: 306068.4348 | O159: 3346225.844 | P159: 2166169.945 | Q159: 4498968.347 | R159: 0 | S159: 0 | T159: 0 | U159: 0 | V159: 0 | W159: 0 | X159: 0 | Y159: 0 | Z159: 0 | AA159: 0 | AB159: 0 | AC159: 0 | AD159: 0 | AE159: 0 | AF159: 0 | AG159: 0 | AH159: 0 | AI159: 0 | AJ159: =+AJ$6*AnnMiles*MaintC2*(EXP((AJ35+0.75*AnnMiles)*MaintC1)+EXP((AJ36+0.25*AnnMiles)*MaintC1))/2 -> 0 | AK159: 0 | AL159: 0 | AM159: 0 | AN159: 0 | AO159: 0 | AP159: 0 | AQ159: 0 | AR159: 0 | AS159: 0 | AT159: 0 | AU159: 0 | AV159: 0 | AW159: 0 | AX159: 0 | AY159: 0 | AZ159: 0 | BA159: 0 | BC159: 55563136.99
C160: 29 | D160: =+D$6*AnnMiles*MaintC2*(EXP((D36+0.75*AnnMiles)*MaintC1)+EXP((D37+0.25*AnnMiles)*MaintC1))/2 -> 4800408.045 | E160: 1275285.145 | F160: 8915964.551 | G160: 1593855.947 | H160: 11588073.53 | I160: 2332557.419 | J160: 3498836.128 | K160: 10519449.25 | L160: 609734.4104 | M160: 2175046.799 | N160: 320027.203 | O160: 3498836.128 | P160: 2264961.786 | Q160: 4704151.401 | R160: 0 | S160: 0 | T160: 0 | U160: 0 | V160: 0 | W160: 0 | X160: 0 | Y160: 0 | Z160: 0 | AA160: 0 | AB160: 0 | AC160: 0 | AD160: 0 | AE160: 0 | AF160: 0 | AG160: 0 | AH160: 0 | AI160: 0 | AJ160: =+AJ$6*AnnMiles*MaintC2*(EXP((AJ36+0.75*AnnMiles)*MaintC1)+EXP((AJ37+0.25*AnnMiles)*MaintC1))/2 -> 0 | AK160: 0 | AL160: 0 | AM160: 0 | AN160: 0 | AO160: 0 | AP160: 0 | AQ160: 0 | AR160: 0 | AS160: 0 | AT160: 0 | AU160: 0 | AV160: 0 | AW160: 0 | AX160: 0 | AY160: 0 | AZ160: 0 | BA160: 0 | BC160: 58097187.74
C161: 30 | D161: =+D$6*AnnMiles*MaintC2*(EXP((D37+0.75*AnnMiles)*MaintC1)+EXP((D38+0.25*AnnMiles)*MaintC1))/2 -> 5019338.766 | E161: 1333446.679 | F161: 9322592.182 | G161: 1666546.44 | H161: 12116567.21 | I161: 2438937.642 | J161: 3658406.463 | K161: 10999206.51 | L161: 637542.3786 | M161: 2274243.483 | N161: 334622.5844 | O161: 3658406.463 | P161: 1784250.598 | Q161: 3705751.241 | R161: 0 | S161: 0 | T161: 0 | U161: 0 | V161: 0 | W161: 0 | X161: 0 | Y161: 0 | Z161: 0 | AA161: 0 | AB161: 0 | AC161: 0 | AD161: 0 | AE161: 0 | AF161: 0 | AG161: 0 | AH161: 0 | AI161: 0 | AJ161: =+AJ$6*AnnMiles*MaintC2*(EXP((AJ37+0.75*AnnMiles)*MaintC1)+EXP((AJ38+0.25*AnnMiles)*MaintC1))/2 -> 0 | AK161: 0 | AL161: 0 | AM161: 0 | AN161: 0 | AO161: 0 | AP161: 0 | AQ161: 0 | AR161: 0 | AS161: 0 | AT161: 0 | AU161: 0 | AV161: 0 | AW161: 0 | AX161: 0 | AY161: 0 | AZ161: 0 | BA161: 0 | BC161: 58949858.64
A162: Passenger Delay | C162: 1 | D162: =D$6*AnnMiles*DelayC2*(EXP(DelayC1*(D7+0.75*AnnMiles))+EXP(DelayC1*(D9+0.25*AnnMiles)))/2 -> 383065.231 | E162: 99552.39068 | F162: 917213.3949 | G162: 142777.2331 | H162: 1156378.274 | I162: 206917.6554 | J162: 309885.236 | K162: 922637.6456 | L162: 54438.57127 | M162: 181126.211 | N162: 26278.5293 | O162: 290362.8368 | P162: 86774.30377 | Q162: 178062.3744 | R162: 0 | S162: 0 | T162: 0 | U162: 0 | V162: 0 | W162: 0 | X162: 0 | Y162: 0 | Z162: 0 | AA162: 0 | AB162: 0 | AC162: 0 | AD162: 0 | AE162: 0 | AF162: 0 | AG162: 0 | AH162: 0 | AI162: 0 | AJ162: =AJ$6*AnnMiles*DelayC2*(EXP(DelayC1*(AJ7+0.75*AnnMiles))+EXP(DelayC1*(AJ9+0.25*AnnMiles)))/2 -> 0 | AK162: 0 | AL162: 0 | AM162: 0 | AN162: 0 | AO162: 0 | AP162: 0 | AQ162: 0 | AR162: 0 | AS162: 0 | AT162: 0 | AU162: 0 | AV162: 0 | AW162: 0 | AX162: 0 | AY162: 0 | AZ162: 0 | BA162: 0 | BC162: =SUM(D162:BB162) -> 4955469.887
C163: =1+C162 -> 2 | D163: =D$6*AnnMiles*DelayC2*(EXP(DelayC1*(D9+0.75*AnnMiles))+EXP(DelayC1*(D10+0.25*AnnMiles)))/2 -> 410874.0553 | E163: 106779.4495 | F163: 983798.9896 | G163: 153142.2223 | H163: 1240326.17 | I163: 221938.9528 | J163: 332381.5197 | K163: 989617.0166 | L163: 58390.56832 | M163: 194275.1647 | N163: 28186.23313 | O163: 311441.8815 | P163: 93073.73054 | Q163: 190988.9072 | R163: 0 | S163: 0 | T163: 0 | U163: 0 | V163: 0 | W163: 0 | X163: 0 | Y163: 0 | Z163: 0 | AA163: 0 | AB163: 0 | AC163: 0 | AD163: 0 | AE163: 0 | AF163: 0 | AG163: 0 | AH163: 0 | AI163: 0 | AJ163: =AJ$6*AnnMiles*DelayC2*(EXP(DelayC1*(AJ9+0.75*AnnMiles))+EXP(DelayC1*(AJ10+0.25*AnnMiles)))/2 -> 0 | AK163: 0 | AL163: 0 | AM163: 0 | AN163: 0 | AO163: 0 | AP163: 0 | AQ163: 0 | AR163: 0 | AS163: 0 | AT163: 0 | AU163: 0 | AV163: 0 | AW163: 0 | AX163: 0 | AY163: 0 | AZ163: 0 | BA163: 0 | BC163: 5315214.862
C164: =1+C163 -> 3 | D164: =D$6*AnnMiles*DelayC2*(EXP(DelayC1*(D10+0.75*AnnMiles))+EXP(DelayC1*(D11+0.25*AnnMiles)))/2 -> 440701.6761 | E164: 114531.1604 | F164: 694615.8933 | G164: 164259.6635 | H164: 1330368.309 | I164: 238050.7292 | J164: 356510.933 | K164: 1061458.791 | L164: 62629.46271 | M164: 208378.6736 | N164: 30232.42772 | O164: 334051.1707 | P164: 99830.46755 | Q164: 204853.8486 | R164: 0 | S164: 0 | T164: 0 | U164: 0 | V164: 0 | W164: 0 | X164: 0 | Y164: 0 | Z164: 0 | AA164: 0 | AB164: 0 | AC164: 0 | AD164: 0 | AE164: 0 | AF164: 0 | AG164: 0 | AH164: 0 | AI164: 0 | AJ164: =AJ$6*AnnMiles*DelayC2*(EXP(DelayC1*(AJ10+0.75*AnnMiles))+EXP(DelayC1*(AJ11+0.25*AnnMiles)))/2 -> 0 | AK164: 0 | AL164: 0 | AM164: 0 | AN164: 0 | AO164: 0 | AP164: 0 | AQ164: 0 | AR164: 0 | AS164: 0 | AT164: 0 | AU164: 0 | AV164: 0 | AW164: 0 | AX164: 0 | AY164: 0 | AZ164: 0 | BA164: 0 | BC164: 5340473.206
C165: 4 | D165: =D$6*AnnMiles*DelayC2*(EXP(DelayC1*(D11+0.75*AnnMiles))+EXP(DelayC1*(D12+0.25*AnnMiles)))/2 -> 472694.6489 | E165: 122845.611 | F165: 371579.6325 | G165: 176184.1812 | H165: 940493.2732 | I165: 255332.1486 | J165: 382392.034 | K165: 1138515.957 | L165: 67176.0819 | M165: 223506.0344 | N165: 32427.16691 | O165: 358301.7933 | P165: 107077.7135 | Q165: 219725.3228 | R165: 0 | S165: 0 | T165: 0 | U165: 0 | V165: 0 | W165: 0 | X165: 0 | Y165: 0 | Z165: 0 | AA165: 0 | AB165: 0 | AC165: 0 | AD165: 0 | AE165: 0 | AF165: 0 | AG165: 0 | AH165: 0 | AI165: 0 | AJ165: =AJ$6*AnnMiles*DelayC2*(EXP(DelayC1*(AJ11+0.75*AnnMiles))+EXP(DelayC1*(AJ12+0.25*AnnMiles)))/2 -> 0 | AK165: 0 | AL165: 0 | AM165: 0 | AN165: 0 | AO165: 0 | AP165: 0 | AQ165: 0 | AR165: 0 | AS165: 0 | AT165: 0 | AU165: 0 | AV165: 0 | AW165: 0 | AX165: 0 | AY165: 0 | AZ165: 0 | BA165: 0 | BC165: 4868251.599
C166: 5 | D166: =D$6*AnnMiles*DelayC2*(EXP(DelayC1*(D12+0.75*AnnMiles))+EXP(DelayC1*(D13+0.25*AnnMiles)))/2 -> 507010.1685 | E166: 131763.6535 | F166: 398554.6537 | G166: 188974.3656 | H166: 504967.1928 | I166: 273868.1218 | J166: 410151.9872 | K166: 1221167.129 | L166: 72052.76532 | M166: 239731.5739 | N166: 34781.23435 | O166: 384312.9027 | P166: 114851.0771 | Q166: 235676.3996 | R166: 0 | S166: 0 | T166: 0 | U166: 0 | V166: 0 | W166: 0 | X166: 0 | Y166: 0 | Z166: 0 | AA166: 0 | AB166: 0 | AC166: 0 | AD166: 0 | AE166: 0 | AF166: 0 | AG166: 0 | AH166: 0 | AI166: 0 | AJ166: =AJ$6*AnnMiles*DelayC2*(EXP(DelayC1*(AJ12+0.75*AnnMiles))+EXP(DelayC1*(AJ13+0.25*AnnMiles)))/2 -> 0 | AK166: 0 | AL166: 0 | AM166: 0 | AN166: 0 | AO166: 0 | AP166: 0 | AQ166: 0 | AR166: 0 | AS166: 0 | AT166: 0 | AU166: 0 | AV166: 0 | AW166: 0 | AX166: 0 | AY166: 0 | AZ166: 0 | BA166: 0 | BC166: 4717863.225
C167: 6 | D167: =D$6*AnnMiles*DelayC2*(EXP(DelayC1*(D13+0.75*AnnMiles))+EXP(DelayC1*(D14+0.25*AnnMiles)))/2 -> 543816.8416 | E167: 141329.1061 | F167: 427487.9409 | G167: 202693.0603 | H167: 541625.555 | I167: 293749.7239 | J167: 439927.189 | K167: 1309818.406 | L167: 77283.47417 | M167: 257135.0151 | N167: 37306.19657 | O167: 412212.3024 | P167: 123188.7522 | Q167: 252785.4533 | R167: 0 | S167: 0 | T167: 0 | U167: 0 | V167: 0 | W167: 0 | X167: 0 | Y167: 0 | Z167: 0 | AA167: 0 | AB167: 0 | AC167: 0 | AD167: 0 | AE167: 0 | AF167: 0 | AG167: 0 | AH167: 0 | AI167: 0 | AJ167: =AJ$6*AnnMiles*DelayC2*(EXP(DelayC1*(AJ13+0.75*AnnMiles))+EXP(DelayC1*(AJ14+0.25*AnnMiles)))/2 -> 0 | AK167: 0 | AL167: 0 | AM167: 0 | AN167: 0 | AO167: 0 | AP167: 0 | AQ167: 0 | AR167: 0 | AS167: 0 | AT167: 0 | AU167: 0 | AV167: 0 | AW167: 0 | AX167: 0 | AY167: 0 | AZ167: 0 | BA167: 0 | BC167: 5060359.017
C168: 7 | D168: =D$6*AnnMiles*DelayC2*(EXP(DelayC1*(D14+0.75*AnnMiles))+EXP(DelayC1*(D15+0.25*AnnMiles)))/2 -> 583295.5147 | E168: 151588.9678 | F168: 458521.6555 | G168: 144459.6816 | H168: 580945.1505 | I168: 315074.6415 | J168: 471863.9375 | K168: 938703.9197 | L168: 82893.90912 | M168: 275801.8684 | N168: 40014.45977 | O168: 442137.0739 | P168: 132131.7052 | Q168: 271136.5478 | R168: 0 | S168: 0 | T168: 0 | U168: 0 | V168: 0 | W168: 0 | X168: 0 | Y168: 0 | Z168: 0 | AA168: 0 | AB168: 0 | AC168: 0 | AD168: 0 | AE168: 0 | AF168: 0 | AG168: 0 | AH168: 0 | AI168: 0 | AJ168: =AJ$6*AnnMiles*DelayC2*(EXP(DelayC1*(AJ14+0.75*AnnMiles))+EXP(DelayC1*(AJ15+0.25*AnnMiles)))/2 -> 0 | AK168: 0 | AL168: 0 | AM168: 0 | AN168: 0 | AO168: 0 | AP168: 0 | AQ168: 0 | AR168: 0 | AS168: 0 | AT168: 0 | AU168: 0 | AV168: 0 | AW168: 0 | AX168: 0 | AY168: 0 | AZ168: 0 | BA168: 0 | BC168: 4888569.033
C169: 8 | D169: =D$6*AnnMiles*DelayC2*(EXP(DelayC1*(D15+0.75*AnnMiles))+EXP(DelayC1*(D16+0.25*AnnMiles)))/2 -> 625640.163 | E169: 162593.6496 | F169: 491808.2792 | G169: 79397.35736 | H169: 623119.1729 | I169: 337947.6528 | J169: 506119.1512 | K169: 524022.5586 | L169: 58741.08871 | M169: 295823.8519 | N169: 42919.33078 | O169: 474234.2502 | P169: 141723.8767 | Q169: 290819.8498 | R169: 0 | S169: 0 | T169: 0 | U169: 0 | V169: 0 | W169: 0 | X169: 0 | Y169: 0 | Z169: 0 | AA169: 0 | AB169: 0 | AC169: 0 | AD169: 0 | AE169: 0 | AF169: 0 | AG169: 0 | AH169: 0 | AI169: 0 | AJ169: =AJ$6*AnnMiles*DelayC2*(EXP(DelayC1*(AJ15+0.75*AnnMiles))+EXP(DelayC1*(AJ16+0.25*AnnMiles)))/2 -> 0 | AK169: 0 | AL169: 0 | AM169: 0 | AN169: 0 | AO169: 0 | AP169: 0 | AQ169: 0 | AR169: 0 | AS169: 0 | AT169: 0 | AU169: 0 | AV169: 0 | AW169: 0 | AX169: 0 | AY169: 0 | AZ169: 0 | BA169: 0 | BC169: 4654910.233
C170: 9 | D170: =D$6*AnnMiles*DelayC2*(EXP(DelayC1*(D16+0.75*AnnMiles))+EXP(DelayC1*(D17+0.25*AnnMiles)))/2 -> 671058.8437 | E170: 174397.2221 | F170: 527511.363 | G170: 85161.25078 | H170: 668354.8409 | I170: 238321.7868 | J170: 357059.9315 | K170: 562064.2552 | L170: 31758.94295 | M170: 317299.3419 | N170: 46035.08244 | O170: 340259.6943 | P170: 152012.3969 | Q170: 311932.0716 | R170: 0 | S170: 0 | T170: 0 | U170: 0 | V170: 0 | W170: 0 | X170: 0 | Y170: 0 | Z170: 0 | AA170: 0 | AB170: 0 | AC170: 0 | AD170: 0 | AE170: 0 | AF170: 0 | AG170: 0 | AH170: 0 | AI170: 0 | AJ170: =AJ$6*AnnMiles*DelayC2*(EXP(DelayC1*(AJ16+0.75*AnnMiles))+EXP(DelayC1*(AJ17+0.25*AnnMiles)))/2 -> 0 | AK170: 0 | AL170: 0 | AM170: 0 | AN170: 0 | AO170: 0 | AP170: 0 | AQ170: 0 | AR170: 0 | AS170: 0 | AT170: 0 | AU170: 0 | AV170: 0 | AW170: 0 | AX170: 0 | AY170: 0 | AZ170: 0 | BA170: 0 | BC170: 4483227.024
C171: 10 | D171: =D$6*AnnMiles*DelayC2*(EXP(DelayC1*(D17+0.75*AnnMiles))+EXP(DelayC1*(D18+0.25*AnnMiles)))/2 -> 719774.7177 | E171: 187057.6813 | F171: 565806.3312 | G171: 91343.57712 | H171: 716874.4164 | I171: 127035.7718 | J171: 190553.6577 | K171: 602867.609 | L171: 34064.50031 | M171: 225935.7309 | N171: 49377.02375 | O171: 190553.6577 | P171: 163047.8178 | Q171: 334576.9464 | R171: 0 | S171: 0 | T171: 0 | U171: 0 | V171: 0 | W171: 0 | X171: 0 | Y171: 0 | Z171: 0 | AA171: 0 | AB171: 0 | AC171: 0 | AD171: 0 | AE171: 0 | AF171: 0 | AG171: 0 | AH171: 0 | AI171: 0 | AJ171: =AJ$6*AnnMiles*DelayC2*(EXP(DelayC1*(AJ17+0.75*AnnMiles))+EXP(DelayC1*(AJ18+0.25*AnnMiles)))/2 -> 0 | AK171: 0 | AL171: 0 | AM171: 0 | AN171: 0 | AO171: 0 | AP171: 0 | AQ171: 0 | AR171: 0 | AS171: 0 | AT171: 0 | AU171: 0 | AV171: 0 | AW171: 0 | AX171: 0 | AY171: 0 | AZ171: 0 | BA171: 0 | BC171: 4198869.439
C172: 11 | D172: =D$6*AnnMiles*DelayC2*(EXP(DelayC1*(D18+0.75*AnnMiles))+EXP(DelayC1*(D19+0.25*AnnMiles)))/2 -> 514827.8224 | E172: 200637.2332 | F172: 606881.343 | G172: 97974.71272 | H172: 768916.2962 | I172: 136258.0013 | J172: 204387.0019 | K172: 646633.1039 | L172: 36537.43085 | M172: 123859.8775 | N172: 35055.32568 | O172: 204387.0019 | P172: 174884.3609 | Q172: 358865.7379 | R172: 0 | S172: 0 | T172: 0 | U172: 0 | V172: 0 | W172: 0 | X172: 0 | Y172: 0 | Z172: 0 | AA172: 0 | AB172: 0 | AC172: 0 | AD172: 0 | AE172: 0 | AF172: 0 | AG172: 0 | AH172: 0 | AI172: 0 | AJ172: =AJ$6*AnnMiles*DelayC2*(EXP(DelayC1*(AJ18+0.75*AnnMiles))+EXP(DelayC1*(AJ19+0.25*AnnMiles)))/2 -> 0 | AK172: 0 | AL172: 0 | AM172: 0 | AN172: 0 | AO172: 0 | AP172: 0 | AQ172: 0 | AR172: 0 | AS172: 0 | AT172: 0 | AU172: 0 | AV172: 0 | AW172: 0 | AX172: 0 | AY172: 0 | AZ172: 0 | BA172: 0 | BC172: 4110105.249
C173: 12 | D173: =D$6*AnnMiles*DelayC2*(EXP(DelayC1*(D19+0.75*AnnMiles))+EXP(DelayC1*(D20+0.25*AnnMiles)))/2 -> 285830.4865 | E173: 143376.461 | F173: 650938.2171 | G173: 105087.2391 | H173: 824736.1841 | I173: 146149.7234 | J173: 219224.5851 | K173: 693575.7783 | L173: 39189.88509 | M173: 132851.5512 | N173: 19055.36577 | O173: 219224.5851 | P173: 187580.1842 | Q173: 384917.7872 | R173: 0 | S173: 0 | T173: 0 | U173: 0 | V173: 0 | W173: 0 | X173: 0 | Y173: 0 | Z173: 0 | AA173: 0 | AB173: 0 | AC173: 0 | AD173: 0 | AE173: 0 | AF173: 0 | AG173: 0 | AH173: 0 | AI173: 0 | AJ173: =AJ$6*AnnMiles*DelayC2*(EXP(DelayC1*(AJ19+0.75*AnnMiles))+EXP(DelayC1*(AJ20+0.25*AnnMiles)))/2 -> 0 | AK173: 0 | AL173: 0 | AM173: 0 | AN173: 0 | AO173: 0 | AP173: 0 | AQ173: 0 | AR173: 0 | AS173: 0 | AT173: 0 | AU173: 0 | AV173: 0 | AW173: 0 | AX173: 0 | AY173: 0 | AZ173: 0 | BA173: 0 | BC173: 4051738.033
C174: 13 | D174: =D$6*AnnMiles*DelayC2*(EXP(DelayC1*(D20+0.75*AnnMiles))+EXP(DelayC1*(D21+0.25*AnnMiles)))/2 -> 306580.5028 | E174: 79397.35736 | F174: 698193.4235 | G174: 112716.1032 | H174: 884608.3463 | I174: 156759.5404 | J174: 235139.3105 | K174: 743926.2811 | L174: 42034.89566 | M174: 142495.9803 | N174: 20438.70019 | O174: 235139.3105 | P174: 201197.6675 | Q174: 412861.0988 | R174: 0 | S174: 0 | T174: 0 | U174: 0 | V174: 0 | W174: 0 | X174: 0 | Y174: 0 | Z174: 0 | AA174: 0 | AB174: 0 | AC174: 0 | AD174: 0 | AE174: 0 | AF174: 0 | AG174: 0 | AH174: 0 | AI174: 0 | AJ174: =AJ$6*AnnMiles*DelayC2*(EXP(DelayC1*(AJ20+0.75*AnnMiles))+EXP(DelayC1*(AJ21+0.25*AnnMiles)))/2 -> 0 | AK174: 0 | AL174: 0 | AM174: 0 | AN174: 0 | AO174: 0 | AP174: 0 | AQ174: 0 | AR174: 0 | AS174: 0 | AT174: 0 | AU174: 0 | AV174: 0 | AW174: 0 | AX174: 0 | AY174: 0 | AZ174: 0 | BA174: 0 | BC174: 4271488.518
C175: 14 | D175: =D$6*AnnMiles*DelayC2*(EXP(DelayC1*(D21+0.75*AnnMiles))+EXP(DelayC1*(D22+0.25*AnnMiles)))/2 -> 328836.8776 | E175: 85161.25078 | F175: 748879.1467 | G175: 120898.7887 | H175: 948826.9601 | I175: 168139.5826 | J175: 252209.3739 | K175: 797932.0055 | L175: 45086.44128 | M175: 152840.5518 | N175: 21922.45851 | O175: 252209.3739 | P175: 215803.7193 | Q175: 442832.9701 | R175: 0 | S175: 0 | T175: 0 | U175: 0 | V175: 0 | W175: 0 | X175: 0 | Y175: 0 | Z175: 0 | AA175: 0 | AB175: 0 | AC175: 0 | AD175: 0 | AE175: 0 | AF175: 0 | AG175: 0 | AH175: 0 | AI175: 0 | AJ175: =AJ$6*AnnMiles*DelayC2*(EXP(DelayC1*(AJ21+0.75*AnnMiles))+EXP(DelayC1*(AJ22+0.25*AnnMiles)))/2 -> 0 | AK175: 0 | AL175: 0 | AM175: 0 | AN175: 0 | AO175: 0 | AP175: 0 | AQ175: 0 | AR175: 0 | AS175: 0 | AT175: 0 | AU175: 0 | AV175: 0 | AW175: 0 | AX175: 0 | AY175: 0 | AZ175: 0 | BA175: 0 | BC175: 4581579.501
C176: 15 | D176: =D$6*AnnMiles*DelayC2*(EXP(DelayC1*(D22+0.75*AnnMiles))+EXP(DelayC1*(D23+0.25*AnnMiles)))/2 -> 352708.9658 | E176: 91343.57712 | F176: 803244.427 | G176: 129675.5006 | H176: 1017707.558 | I176: 180345.7651 | J176: 270518.6477 | K176: 855858.3042 | L176: 48359.51549 | M176: 163936.0931 | N176: 23513.93105 | O176: 270518.6477 | P176: 152874.1292 | Q176: 314675.8346 | R176: 0 | S176: 0 | T176: 0 | U176: 0 | V176: 0 | W176: 0 | X176: 0 | Y176: 0 | Z176: 0 | AA176: 0 | AB176: 0 | AC176: 0 | AD176: 0 | AE176: 0 | AF176: 0 | AG176: 0 | AH176: 0 | AI176: 0 | AJ176: =AJ$6*AnnMiles*DelayC2*(EXP(DelayC1*(AJ22+0.75*AnnMiles))+EXP(DelayC1*(AJ23+0.25*AnnMiles)))/2 -> 0 | AK176: 0 | AL176: 0 | AM176: 0 | AN176: 0 | AO176: 0 | AP176: 0 | AQ176: 0 | AR176: 0 | AS176: 0 | AT176: 0 | AU176: 0 | AV176: 0 | AW176: 0 | AX176: 0 | AY176: 0 | AZ176: 0 | BA176: 0 | BC176: 4675280.897
C177: 16 | D177: =D$6*AnnMiles*DelayC2*(EXP(DelayC1*(D23+0.75*AnnMiles))+EXP(DelayC1*(D24+0.25*AnnMiles)))/2 -> 378314.0609 | E177: 97974.71272 | F177: 861556.3837 | G177: 139089.3626 | H177: 1091588.58 | I177: 193438.0619 | J177: 290157.0929 | K177: 917989.7934 | L177: 51870.20025 | M177: 175837.121 | N177: 25220.93739 | O177: 290157.0929 | P177: 82573.25166 | Q177: 171498.2919 | R177: 0 | S177: 0 | T177: 0 | U177: 0 | V177: 0 | W177: 0 | X177: 0 | Y177: 0 | Z177: 0 | AA177: 0 | AB177: 0 | AC177: 0 | AD177: 0 | AE177: 0 | AF177: 0 | AG177: 0 | AH177: 0 | AI177: 0 | AJ177: =AJ$6*AnnMiles*DelayC2*(EXP(DelayC1*(AJ23+0.75*AnnMiles))+EXP(DelayC1*(AJ24+0.25*AnnMiles)))/2 -> 0 | AK177: 0 | AL177: 0 | AM177: 0 | AN177: 0 | AO177: 0 | AP177: 0 | AQ177: 0 | AR177: 0 | AS177: 0 | AT177: 0 | AU177: 0 | AV177: 0 | AW177: 0 | AX177: 0 | AY177: 0 | AZ177: 0 | BA177: 0 | BC177: 4767264.944
C178: 17 | D178: =D$6*AnnMiles*DelayC2*(EXP(DelayC1*(D24+0.75*AnnMiles))+EXP(DelayC1*(D25+0.25*AnnMiles)))/2 -> 405777.9715 | E178: 105087.2391 | F178: 924101.528 | G178: 149186.6289 | H178: 1170833.034 | I178: 207480.801 | J178: 311221.2015 | K178: 984631.7511 | L178: 55635.74505 | M178: 188602.1104 | N178: 27051.86477 | O178: 311221.2015 | P178: 88567.70082 | Q178: 183948.3017 | R178: 0 | S178: 0 | T178: 0 | U178: 0 | V178: 0 | W178: 0 | X178: 0 | Y178: 0 | Z178: 0 | AA178: 0 | AB178: 0 | AC178: 0 | AD178: 0 | AE178: 0 | AF178: 0 | AG178: 0 | AH178: 0 | AI178: 0 | AJ178: =AJ$6*AnnMiles*DelayC2*(EXP(DelayC1*(AJ24+0.75*AnnMiles))+EXP(DelayC1*(AJ25+0.25*AnnMiles)))/2 -> 0 | AK178: 0 | AL178: 0 | AM178: 0 | AN178: 0 | AO178: 0 | AP178: 0 | AQ178: 0 | AR178: 0 | AS178: 0 | AT178: 0 | AU178: 0 | AV178: 0 | AW178: 0 | AX178: 0 | AY178: 0 | AZ178: 0 | BA178: 0 | BC178: 5113347.08
C179: 18 | D179: =D$6*AnnMiles*DelayC2*(EXP(DelayC1*(D25+0.75*AnnMiles))+EXP(DelayC1*(D26+0.25*AnnMiles)))/2 -> 435235.6394 | E179: 112716.1032 | F179: 663161.1458 | G179: 160016.9117 | H179: 1255830.282 | I179: 222542.9802 | J179: 333814.4703 | K179: 1056111.617 | L179: 59674.65158 | M179: 202293.781 | N179: 29015.70929 | O179: 333814.4703 | P179: 94997.3202 | Q179: 197302.1266 | R179: 0 | S179: 0 | T179: 0 | U179: 0 | V179: 0 | W179: 0 | X179: 0 | Y179: 0 | Z179: 0 | AA179: 0 | AB179: 0 | AC179: 0 | AD179: 0 | AE179: 0 | AF179: 0 | AG179: 0 | AH179: 0 | AI179: 0 | AJ179: =AJ$6*AnnMiles*DelayC2*(EXP(DelayC1*(AJ25+0.75*AnnMiles))+EXP(DelayC1*(AJ26+0.25*AnnMiles)))/2 -> 0 | AK179: 0 | AL179: 0 | AM179: 0 | AN179: 0 | AO179: 0 | AP179: 0 | AQ179: 0 | AR179: 0 | AS179: 0 | AT179: 0 | AU179: 0 | AV179: 0 | AW179: 0 | AX179: 0 | AY179: 0 | AZ179: 0 | BA179: 0 | BC179: 5156527.208
C180: 19 | D180: =D$6*AnnMiles*DelayC2*(EXP(DelayC1*(D26+0.75*AnnMiles))+EXP(DelayC1*(D27+0.25*AnnMiles)))/2 -> 466831.8023 | E180: 120898.7887 | F180: 371579.6325 | G180: 171633.4246 | H180: 901218.993 | I180: 238698.6063 | J180: 358047.9095 | K180: 1132780.602 | L180: 64006.76468 | M180: 216979.4057 | N180: 31122.12015 | O180: 358047.9095 | P180: 101893.7012 | Q180: 211625.3795 | R180: 0 | S180: 0 | T180: 0 | U180: 0 | V180: 0 | W180: 0 | X180: 0 | Y180: 0 | Z180: 0 | AA180: 0 | AB180: 0 | AC180: 0 | AD180: 0 | AE180: 0 | AF180: 0 | AG180: 0 | AH180: 0 | AI180: 0 | AJ180: =AJ$6*AnnMiles*DelayC2*(EXP(DelayC1*(AJ26+0.75*AnnMiles))+EXP(DelayC1*(AJ27+0.25*AnnMiles)))/2 -> 0 | AK180: 0 | AL180: 0 | AM180: 0 | AN180: 0 | AO180: 0 | AP180: 0 | AQ180: 0 | AR180: 0 | AS180: 0 | AT180: 0 | AU180: 0 | AV180: 0 | AW180: 0 | AX180: 0 | AY180: 0 | AZ180: 0 | BA180: 0 | BC180: 4745365.04
C181: 20 | D181: =D$6*AnnMiles*DelayC2*(EXP(DelayC1*(D27+0.75*AnnMiles))+EXP(DelayC1*(D28+0.25*AnnMiles)))/2 -> 500721.7055 | E181: 129675.5006 | F181: 398554.6537 | G181: 184093.2444 | H181: 504967.1928 | I181: 256027.0587 | J181: 384040.5881 | K181: 1215015.413 | L181: 68653.36983 | M181: 232731.1412 | N181: 33381.44703 | O181: 384040.5881 | P181: 109290.7287 | Q181: 226988.4365 | R181: 0 | S181: 0 | T181: 0 | U181: 0 | V181: 0 | W181: 0 | X181: 0 | Y181: 0 | Z181: 0 | AA181: 0 | AB181: 0 | AC181: 0 | AD181: 0 | AE181: 0 | AF181: 0 | AG181: 0 | AH181: 0 | AI181: 0 | AJ181: =AJ$6*AnnMiles*DelayC2*(EXP(DelayC1*(AJ27+0.75*AnnMiles))+EXP(DelayC1*(AJ28+0.25*AnnMiles)))/2 -> 0 | AK181: 0 | AL181: 0 | AM181: 0 | AN181: 0 | AO181: 0 | AP181: 0 | AQ181: 0 | AR181: 0 | AS181: 0 | AT181: 0 | AU181: 0 | AV181: 0 | AW181: 0 | AX181: 0 | AY181: 0 | AZ181: 0 | BA181: 0 | BC181: 4628181.068
C182: 21 | D182: =D$6*AnnMiles*DelayC2*(EXP(DelayC1*(D28+0.75*AnnMiles))+EXP(DelayC1*(D29+0.25*AnnMiles)))/2 -> 537071.8642 | E182: 139089.3626 | F182: 427487.9409 | G182: 197457.5915 | H182: 541625.555 | I182: 274613.4793 | J182: 411920.219 | K182: 1303220.104 | L182: 73637.29776 | M182: 249626.3822 | N182: 35804.79095 | O182: 411920.219 | P182: 117224.7473 | Q182: 243466.7829 | R182: 0 | S182: 0 | T182: 0 | U182: 0 | V182: 0 | W182: 0 | X182: 0 | Y182: 0 | Z182: 0 | AA182: 0 | AB182: 0 | AC182: 0 | AD182: 0 | AE182: 0 | AF182: 0 | AG182: 0 | AH182: 0 | AI182: 0 | AJ182: =AJ$6*AnnMiles*DelayC2*(EXP(DelayC1*(AJ28+0.75*AnnMiles))+EXP(DelayC1*(AJ29+0.25*AnnMiles)))/2 -> 0 | AK182: 0 | AL182: 0 | AM182: 0 | AN182: 0 | AO182: 0 | AP182: 0 | AQ182: 0 | AR182: 0 | AS182: 0 | AT182: 0 | AU182: 0 | AV182: 0 | AW182: 0 | AX182: 0 | AY182: 0 | AZ182: 0 | BA182: 0 | BC182: 4964166.336
C183: 22 | D183: =D$6*AnnMiles*DelayC2*(EXP(DelayC1*(D29+0.75*AnnMiles))+EXP(DelayC1*(D30+0.25*AnnMiles)))/2 -> 576060.8821 | E183: 149186.6289 | F183: 458521.6555 | G183: 141701.0995 | H183: 580945.1505 | I183: 294549.191 | J183: 441823.7865 | K183: 935227.2569 | L183: 78983.03658 | M183: 267748.1423 | N183: 38404.05881 | O183: 441823.7865 | P183: 125734.7403 | Q183: 261141.3836 | R183: 0 | S183: 0 | T183: 0 | U183: 0 | V183: 0 | W183: 0 | X183: 0 | Y183: 0 | Z183: 0 | AA183: 0 | AB183: 0 | AC183: 0 | AD183: 0 | AE183: 0 | AF183: 0 | AG183: 0 | AH183: 0 | AI183: 0 | AJ183: =AJ$6*AnnMiles*DelayC2*(EXP(DelayC1*(AJ29+0.75*AnnMiles))+EXP(DelayC1*(AJ30+0.25*AnnMiles)))/2 -> 0 | AK183: 0 | AL183: 0 | AM183: 0 | AN183: 0 | AO183: 0 | AP183: 0 | AQ183: 0 | AR183: 0 | AS183: 0 | AT183: 0 | AU183: 0 | AV183: 0 | AW183: 0 | AX183: 0 | AY183: 0 | AZ183: 0 | BA183: 0 | BC183: 4791850.799
C184: 23 | D184: =D$6*AnnMiles*DelayC2*(EXP(DelayC1*(D30+0.75*AnnMiles))+EXP(DelayC1*(D31+0.25*AnnMiles)))/2 -> 617880.3285 | E184: 160016.9117 | F184: 491808.2792 | G184: 79397.35736 | H184: 623119.1729 | I184: 315932.1463 | J184: 473898.2195 | K184: 524022.5586 | L184: 56680.43981 | M184: 287185.4612 | N184: 41192.0219 | O184: 473898.2195 | P184: 134862.5207 | Q184: 280099.0814 | R184: 0 | S184: 0 | T184: 0 | U184: 0 | V184: 0 | W184: 0 | X184: 0 | Y184: 0 | Z184: 0 | AA184: 0 | AB184: 0 | AC184: 0 | AD184: 0 | AE184: 0 | AF184: 0 | AG184: 0 | AH184: 0 | AI184: 0 | AJ184: =AJ$6*AnnMiles*DelayC2*(EXP(DelayC1*(AJ30+0.75*AnnMiles))+EXP(DelayC1*(AJ31+0.25*AnnMiles)))/2 -> 0 | AK184: 0 | AL184: 0 | AM184: 0 | AN184: 0 | AO184: 0 | AP184: 0 | AQ184: 0 | AR184: 0 | AS184: 0 | AT184: 0 | AU184: 0 | AV184: 0 | AW184: 0 | AX184: 0 | AY184: 0 | AZ184: 0 | BA184: 0 | BC184: 4559992.719
C185: 24 | D185: =D$6*AnnMiles*DelayC2*(EXP(DelayC1*(D31+0.75*AnnMiles))+EXP(DelayC1*(D32+0.25*AnnMiles)))/2 -> 662735.6798 | E185: 171633.4246 | F185: 527511.363 | G185: 85161.25078 | H185: 668354.8409 | I185: 226721.7592 | J185: 340082.6389 | K185: 562064.2552 | L185: 31758.94295 | M185: 308033.8427 | N185: 44182.37865 | O185: 340082.6389 | P185: 144652.9371 | Q185: 300433.0233 | R185: 0 | S185: 0 | T185: 0 | U185: 0 | V185: 0 | W185: 0 | X185: 0 | Y185: 0 | Z185: 0 | AA185: 0 | AB185: 0 | AC185: 0 | AD185: 0 | AE185: 0 | AF185: 0 | AG185: 0 | AH185: 0 | AI185: 0 | AJ185: =AJ$6*AnnMiles*DelayC2*(EXP(DelayC1*(AJ31+0.75*AnnMiles))+EXP(DelayC1*(AJ32+0.25*AnnMiles)))/2 -> 0 | AK185: 0 | AL185: 0 | AM185: 0 | AN185: 0 | AO185: 0 | AP185: 0 | AQ185: 0 | AR185: 0 | AS185: 0 | AT185: 0 | AU185: 0 | AV185: 0 | AW185: 0 | AX185: 0 | AY185: 0 | AZ185: 0 | BA185: 0 | BC185: 4413408.976
C186: 25 | D186: =D$6*AnnMiles*DelayC2*(EXP(DelayC1*(D32+0.75*AnnMiles))+EXP(DelayC1*(D33+0.25*AnnMiles)))/2 -> 710847.3293 | E186: 184093.2444 | F186: 565806.3312 | G186: 91343.57712 | H186: 716874.4164 | I186: 127035.7718 | J186: 190553.6577 | K186: 602867.609 | L186: 34064.50031 | M186: 221053.7153 | N186: 47389.82195 | O186: 190553.6577 | P186: 155154.0941 | Q186: 322243.1185 | R186: 0 | S186: 0 | T186: 0 | U186: 0 | V186: 0 | W186: 0 | X186: 0 | Y186: 0 | Z186: 0 | AA186: 0 | AB186: 0 | AC186: 0 | AD186: 0 | AE186: 0 | AF186: 0 | AG186: 0 | AH186: 0 | AI186: 0 | AJ186: =AJ$6*AnnMiles*DelayC2*(EXP(DelayC1*(AJ32+0.75*AnnMiles))+EXP(DelayC1*(AJ33+0.25*AnnMiles)))/2 -> 0 | AK186: 0 | AL186: 0 | AM186: 0 | AN186: 0 | AO186: 0 | AP186: 0 | AQ186: 0 | AR186: 0 | AS186: 0 | AT186: 0 | AU186: 0 | AV186: 0 | AW186: 0 | AX186: 0 | AY186: 0 | AZ186: 0 | BA186: 0 | BC186: 4159880.845
C187: 26 | D187: =D$6*AnnMiles*DelayC2*(EXP(DelayC1*(D33+0.75*AnnMiles))+EXP(DelayC1*(D34+0.25*AnnMiles)))/2 -> 510123.9583 | E187: 197457.5915 | F187: 606881.343 | G187: 97974.71272 | H187: 768916.2962 | I187: 136258.0013 | J187: 204387.0019 | K187: 646633.1039 | L187: 36537.43085 | M187: 123859.8775 | N187: 34008.26389 | O187: 204387.0019 | P187: 166417.5882 | Q187: 345636.5293 | R187: 0 | S187: 0 | T187: 0 | U187: 0 | V187: 0 | W187: 0 | X187: 0 | Y187: 0 | Z187: 0 | AA187: 0 | AB187: 0 | AC187: 0 | AD187: 0 | AE187: 0 | AF187: 0 | AG187: 0 | AH187: 0 | AI187: 0 | AJ187: =AJ$6*AnnMiles*DelayC2*(EXP(DelayC1*(AJ33+0.75*AnnMiles))+EXP(DelayC1*(AJ34+0.25*AnnMiles)))/2 -> 0 | AK187: 0 | AL187: 0 | AM187: 0 | AN187: 0 | AO187: 0 | AP187: 0 | AQ187: 0 | AR187: 0 | AS187: 0 | AT187: 0 | AU187: 0 | AV187: 0 | AW187: 0 | AX187: 0 | AY187: 0 | AZ187: 0 | BA187: 0 | BC187: 4079478.7
C188: 27 | D188: =D$6*AnnMiles*DelayC2*(EXP(DelayC1*(D34+0.75*AnnMiles))+EXP(DelayC1*(D35+0.25*AnnMiles)))/2 -> 285830.4865 | E188: 141701.0995 | F188: 650938.2171 | G188: 105087.2391 | H188: 824736.1841 | I188: 146149.7234 | J188: 219224.5851 | K188: 693575.7783 | L188: 39189.88509 | M188: 132851.5512 | N188: 19055.36577 | O188: 219224.5851 | P188: 178498.7616 | Q188: 370728.1971 | R188: 0 | S188: 0 | T188: 0 | U188: 0 | V188: 0 | W188: 0 | X188: 0 | Y188: 0 | Z188: 0 | AA188: 0 | AB188: 0 | AC188: 0 | AD188: 0 | AE188: 0 | AF188: 0 | AG188: 0 | AH188: 0 | AI188: 0 | AJ188: =AJ$6*AnnMiles*DelayC2*(EXP(DelayC1*(AJ34+0.75*AnnMiles))+EXP(DelayC1*(AJ35+0.25*AnnMiles)))/2 -> 0 | AK188: 0 | AL188: 0 | AM188: 0 | AN188: 0 | AO188: 0 | AP188: 0 | AQ188: 0 | AR188: 0 | AS188: 0 | AT188: 0 | AU188: 0 | AV188: 0 | AW188: 0 | AX188: 0 | AY188: 0 | AZ188: 0 | BA188: 0 | BC188: 4026791.659
C189: 28 | D189: =D$6*AnnMiles*DelayC2*(EXP(DelayC1*(D35+0.75*AnnMiles))+EXP(DelayC1*(D36+0.25*AnnMiles)))/2 -> 306580.5028 | E189: 79397.35736 | F189: 698193.4235 | G189: 112716.1032 | H189: 884608.3463 | I189: 156759.5404 | J189: 235139.3105 | K189: 743926.2811 | L189: 42034.89566 | M189: 142495.9803 | N189: 20438.70019 | O189: 235139.3105 | P189: 191456.9742 | Q189: 397641.4079 | R189: 0 | S189: 0 | T189: 0 | U189: 0 | V189: 0 | W189: 0 | X189: 0 | Y189: 0 | Z189: 0 | AA189: 0 | AB189: 0 | AC189: 0 | AD189: 0 | AE189: 0 | AF189: 0 | AG189: 0 | AH189: 0 | AI189: 0 | AJ189: =AJ$6*AnnMiles*DelayC2*(EXP(DelayC1*(AJ35+0.75*AnnMiles))+EXP(DelayC1*(AJ36+0.25*AnnMiles)))/2 -> 0 | AK189: 0 | AL189: 0 | AM189: 0 | AN189: 0 | AO189: 0 | AP189: 0 | AQ189: 0 | AR189: 0 | AS189: 0 | AT189: 0 | AU189: 0 | AV189: 0 | AW189: 0 | AX189: 0 | AY189: 0 | AZ189: 0 | BA189: 0 | BC189: 4246528.134
C190: 29 | D190: =D$6*AnnMiles*DelayC2*(EXP(DelayC1*(D36+0.75*AnnMiles))+EXP(DelayC1*(D37+0.25*AnnMiles)))/2 -> 328836.8776 | E190: 85161.25078 | F190: 748879.1467 | G190: 120898.7887 | H190: 948826.9601 | I190: 168139.5826 | J190: 252209.3739 | K190: 797932.0055 | L190: 45086.44128 | M190: 152840.5518 | N190: 21922.45851 | O190: 252209.3739 | P190: 205355.8951 | Q190: 426508.3976 | R190: 0 | S190: 0 | T190: 0 | U190: 0 | V190: 0 | W190: 0 | X190: 0 | Y190: 0 | Z190: 0 | AA190: 0 | AB190: 0 | AC190: 0 | AD190: 0 | AE190: 0 | AF190: 0 | AG190: 0 | AH190: 0 | AI190: 0 | AJ190: =AJ$6*AnnMiles*DelayC2*(EXP(DelayC1*(AJ36+0.75*AnnMiles))+EXP(DelayC1*(AJ37+0.25*AnnMiles)))/2 -> 0 | AK190: 0 | AL190: 0 | AM190: 0 | AN190: 0 | AO190: 0 | AP190: 0 | AQ190: 0 | AR190: 0 | AS190: 0 | AT190: 0 | AU190: 0 | AV190: 0 | AW190: 0 | AX190: 0 | AY190: 0 | AZ190: 0 | BA190: 0 | BC190: 4554807.104
C191: 30 | D191: =D$6*AnnMiles*DelayC2*(EXP(DelayC1*(D37+0.75*AnnMiles))+EXP(DelayC1*(D38+0.25*AnnMiles)))/2 -> 352708.9658 | E191: 91343.57712 | F191: 803244.427 | G191: 129675.5006 | H191: 1017707.558 | I191: 180345.7651 | J191: 270518.6477 | K191: 855858.3042 | L191: 48359.51549 | M191: 163936.0931 | N191: 23513.93105 | O191: 270518.6477 | P191: 147369.1435 | Q191: 306074.375 | R191: 0 | S191: 0 | T191: 0 | U191: 0 | V191: 0 | W191: 0 | X191: 0 | Y191: 0 | Z191: 0 | AA191: 0 | AB191: 0 | AC191: 0 | AD191: 0 | AE191: 0 | AF191: 0 | AG191: 0 | AH191: 0 | AI191: 0 | AJ191: =AJ$6*AnnMiles*DelayC2*(EXP(DelayC1*(AJ37+0.75*AnnMiles))+EXP(DelayC1*(AJ38+0.25*AnnMiles)))/2 -> 0 | AK191: 0 | AL191: 0 | AM191: 0 | AN191: 0 | AO191: 0 | AP191: 0 | AQ191: 0 | AR191: 0 | AS191: 0 | AT191: 0 | AU191: 0 | AV191: 0 | AW191: 0 | AX191: 0 | AY191: 0 | AZ191: 0 | BA191: 0 | BC191: 4661174.452
A193: Life Cycle Cost Analysis
B194: Mid-Year | C194: Annual Cost | G194: Discount Factor | H194: Annual Cost Accumulated and Disc. | L194: Annual-ization | M194: Life Cycle Cost Per Year
A195: Age | B195: LTDMiles | C195: Rehab | D195: Maint | E195: Fuel | F195: Delay | H195: Rehab | I195: Maint | J195: Fuel | K195: Delay | M195: Replace | N195: Rehab | O195: Maint | P195: Fuel | Q195: Delay
A196: 1 | B196: =AnnMiles*(A196-0.5) -> 17697.3339 | C196: =AnnMiles*VLOOKUP(B196,RehabArray,3)*(1+InterestRate)^0.5 -> 5821.089073 | D196: =AnnMiles*MaintC2*EXP(B196*MaintC1)*(1+InterestRate)^0.5 -> 49349.14797 | E196: =AnnMiles*FuelC2*EXP(B196*FuelC1)*(1+InterestRate)^0.5 -> 22992.17597 | F196: =AnnMiles*DelayC2*EXP(DelayC1*B196)*(1+InterestRate)^0.5 -> 3171.562567 | G196: =1/(1+InterestRate)^A196 -> 0.9345794393 | H196: =$G196*C196 -> 5440.270162 | I196: =$G196*D196 -> 46120.69903 | J196: =$G196*E196 -> 21488.01493 | K196: =$G196*F196 -> 2964.077165 | L196: =InterestRate/(1-(1+InterestRate)^-A196) -> 1.07 | M196: =NewBusCost*L196 -> 424790 | N196: =H196*$L196 -> 5821.089073 | O196: 49349.14797 | P196: 22992.17597 | Q196: 3171.562567
A197: =1+A196 -> 2 | B197: 53092.00171 | C197: 13668.45719 | D197: =AnnMiles*MaintC2*EXP(B197*MaintC1)*(1+InterestRate)^0.5 -> 51599.79925 | E197: =AnnMiles*FuelC2*EXP(B197*FuelC1)*(1+InterestRate)^0.5 -> 23508.13284 | F197: =AnnMiles*DelayC2*EXP(DelayC1*B197)*(1+InterestRate)^0.5 -> 3401.803839 | G197: =1/(1+InterestRate)^A197 -> 0.8734387283 | H197: =+H196+$G197*C197 -> 17378.83002 | I197: 91189.96207 | J197: 42020.92858 | K197: 5935.344384 | L197: =InterestRate/(1-(1+InterestRate)^-A197) -> 0.5530917874 | M197: 219577.4396 | N197: 9612.088162 | O197: 50436.41912 | P197: 23241.4305 | Q197: 3282.790235
A198: =1+A197 -> 3 | B198: 88486.66952 | C198: 19080.22535 | D198: =AnnMiles*MaintC2*EXP(B198*MaintC1)*(1+InterestRate)^0.5 -> 53953.0953 | E198: =AnnMiles*FuelC2*EXP(B198*FuelC1)*(1+InterestRate)^0.5 -> 24035.66806 | F198: =AnnMiles*DelayC2*EXP(DelayC1*B198)*(1+InterestRate)^0.5 -> 3648.7596 | G198: =1/(1+InterestRate)^A198 -> 0.8162978769 | H198: 32953.97747 | I198: 135231.7592 | J198: 61641.19339 | K198: 8913.819099 | L198: =InterestRate/(1-(1+InterestRate)^-A198) -> 0.3810516657 | M198: 151277.5113 | N198: 12557.168 | O198: 51530.2871 | P198: 23488.47941 | Q198: 3396.625615
A199: =1+A198 -> 4 | B199: 123881.3373 | C199: 21777.6453 | D199: =AnnMiles*MaintC2*EXP(B199*MaintC1)*(1+InterestRate)^0.5 -> 56413.71738 | E199: =AnnMiles*FuelC2*EXP(B199*FuelC1)*(1+InterestRate)^0.5 -> 24575.04146 | F199: =AnnMiles*DelayC2*EXP(DelayC1*B199)*(1+InterestRate)^0.5 -> 3913.643245 | G199: =1/(1+InterestRate)^A199 -> 0.762895212 | H199: 49568.0388 | I199: 178269.5141 | J199: 80389.37485 | K199: 11899.51879 | L199: =InterestRate/(1-(1+InterestRate)^-A199) -> 0.2952281167 | M199: 117205.5623 | N199: 14633.87874 | O199: 52630.17291 | P199: 23733.20374 | Q199: 3513.072522
A200: =1+A199 -> 5 | B200: 159276.0051 | C200: 22974.41077 | D200: =AnnMiles*MaintC2*EXP(B200*MaintC1)*(1+InterestRate)^0.5 -> 58986.56029 | E200: =AnnMiles*FuelC2*EXP(B200*FuelC1)*(1+InterestRate)^0.5 -> 25126.51869 | F200: =AnnMiles*DelayC2*EXP(DelayC1*B200)*(1+InterestRate)^0.5 -> 4197.75626 | G200: =1/(1+InterestRate)^A200 -> 0.7129861795 | H200: 65948.47615 | I200: 220326.1164 | J200: 98304.23541 | K200: 14892.46099 | L200: =InterestRate/(1-(1+InterestRate)^-A200) -> 0.2438906944 | M200: 96824.60569 | N200: 16084.21965 | O200: 53735.48952 | P200: 23975.48824 | Q200: 3632.132653
A201: =1+A200 -> 6 | B201: 194670.6729 | C201: 23491.0662 | D201: =AnnMiles*MaintC2*EXP(B201*MaintC1)*(1+InterestRate)^0.5 -> 61676.74206 | E201: =AnnMiles*FuelC2*EXP(B201*FuelC1)*(1+InterestRate)^0.5 -> 25690.37136 | F201: =AnnMiles*DelayC2*EXP(DelayC1*B201)*(1+InterestRate)^0.5 -> 4502.49461 | G201: =1/(1+InterestRate)^A201 -> 0.6663422238 | H201: =+H200+$G201*C201 -> 81601.56545 | I201: =+I200+$G201*D201 -> 261423.9338 | J201: =+J200+$G201*E201 -> 115422.8146 | K201: =+K200+$G201*F201 -> 17892.66326 | L201: =InterestRate/(1-(1+InterestRate)^-A201) -> 0.2097957998 | M201: 83288.9325 | N201: =H201*$L201 -> 17119.66568 | O201: =I201*$L201 -> 54845.64327 | P201: =J201*$L201 -> 24215.2217 | Q201: =K201*$L201 -> 3753.805599
A202: 7 | B202: 230065.3408 | C202: 23737.90603 | D202: 64489.61411 | E202: 26266.87719 | F202: 4829.355603 | G202: 0.6227497419 | H202: 96384.3403 | I202: 301584.8244 | J202: 131780.5056 | K202: 20900.14322 | L202: 0.1855532196 | M202: 73664.62819 | N202: 17884.42467 | O202: 55960.03515 | P202: 24452.2971 | Q202: 3878.088865
... 78 more rows
